{"text_format":"1","workbook":"xlsx","n_sheets":7,"sheets":["Relatório de Atividades","BD Docentes","BD Disciplinas","BD Atividades","BD Listas","Filtro","BD PrevisãoOrçamentária"],"not_rendered":{"charts":0,"images":8,"macros":1,"external_links":0,"defined_names":13,"comments":0,"pivot_tables":0},"unopened":[],"bounds":{"document_bytes":16777216,"sheet_cells":100000,"rows_first":2000,"rows_last":500,"rows_between":2000,"halvings":0,"cell_chars":16384,"cell_head_chars":4096},"cells_cut":0,"cells_raw":0,"read":"whole","date_system":"1900"}

{"sheet":"Relatório de Atividades","index":0,"n_rows":137,"n_cols":15,"rows_kept":137,"cut":false,"hidden":false,"merged":[[70,3,70,6],[119,0,119,8],[120,0,120,7],[77,3,77,6],[95,0,95,9],[96,0,96,7],[86,3,86,6],[93,3,93,6],[94,3,94,6],[94,0,94,2],[109,3,109,6],[110,3,110,6],[101,3,101,6],[78,3,78,6],[102,3,102,6],[85,3,85,6],[88,0,88,7],[93,0,93,2],[122,4,122,6],[117,3,117,6],[118,3,118,6],[86,0,86,2],[85,0,85,2],[87,0,87,9],[71,0,71,9],[72,0,72,7],[111,0,111,9],[112,0,112,7],[115,0,115,2],[107,0,107,2],[101,0,101,2],[102,0,102,2],[103,0,103,9],[104,0,104,7],[109,0,109,2],[0,1,0,11],[33,4,33,5],[34,4,34,5],[33,8,33,9],[34,8,34,9],[2,4,2,6],[8,4,8,6],[18,3,18,6],[3,4,3,6],[5,4,5,6],[6,4,6,6],[7,4,7,6],[10,4,10,6],[19,4,19,5],[4,4,4,6],[11,3,11,6],[9,4,9,6],[34,0,34,2],[33,0,33,2],[14,3,14,4],[42,0,42,11],[50,0,50,11],[35,0,35,11],[45,0,45,11],[76,3,76,4],[40,8,40,9],[41,8,41,9],[69,3,69,6],[62,3,62,6],[57,6,57,11],[54,6,54,11],[48,3,48,4],[59,0,59,2],[64,0,64,7],[62,0,62,2],[61,0,61,2],[60,0,60,2],[51,0,51,10],[52,0,52,10],[36,0,36,10],[37,0,37,10],[43,0,43,10],[44,0,44,10],[55,5,55,10],[49,3,49,4],[63,0,63,9],[56,5,56,10],[135,6,136,11],[61,3,61,6],[124,7,126,8],[55,0,55,1],[56,0,56,1],[75,0,75,3],[77,0,77,2],[78,0,78,2],[79,0,79,9],[80,0,80,7],[67,0,67,2],[73,0,73,9],[69,0,69,2],[70,0,70,2],[136,2,138,5],[99,0,99,2],[91,0,91,2],[83,0,83,2],[117,0,117,2],[118,0,118,2],[110,0,110,2]]}
[null,{"$f":"E11","v":"Relatório p/ Progressão ou Promoção Funcional"}]
[]
[null,null,null,"SIAPE:"]
[null,null,null,"Docente:",{"$f":"IFERROR(VLOOKUP(E3,'BD Docentes'!A:B,2,),\"\")","v":""}]
[null,null,null,"Unidade:",{"$f":"IFERROR(VLOOKUP(E3,'BD Docentes'!A:G,7,), \"\")","v":""}]
[null,null,null,"Regime:",{"$f":"IFERROR(VLOOKUP(E3,'BD Docentes'!A:C,3,),\"\")","v":""}]
[null,null,null,"Classe:",{"$f":"IFERROR(VLOOKUP(E3,'BD Docentes'!A:D,4,),\"\")","v":""}]
[null,null,null,"Fone:",{"$f":"IFERROR(VLOOKUP(E3,'BD Docentes'!A:E,5,),\"\")","v":""}]
[null,null,null,"Email:",{"$f":"IFERROR(VLOOKUP(E3,'BD Docentes'!A:F,6,),\"\")","v":""}]
[null,null,null,"Vínculo:",{"$f":"IFERROR(VLOOKUP(E3,'BD Docentes'!A:H,8,),\"\")","v":""}]
[null,null,null,"Finalidade:","Relatório p/ Progressão ou Promoção Funcional"]
[null,null,null,"Desconsidere as pontuações"]
[null,null,null,"Ano"]
[]
[null,null,null,"Interstício para Progressão"]
[null,null,null,"Início","Fim"]
[]
[]
[null,null,null,"Inserir somente os semestres letivos com mais de 50% dos dias letivos cumpridos pelo docente.\n(Res.001/2008 UFCG/CSGAF Art.16 §2º)"]
[null,null,null,null,"Semestres (OBRIGATÓRIO)"]
[null,null,null,null,"Graduação","Pós-Grad."]
[]
[]
[]
[]
[]
[null,null,null,"Total",{"$f":"COUNTA(E22:E26)","v":0},{"$f":"COUNTA(F22:F26)","v":0}]
[]
[]
["Seção 1.1 (Ministração de Aulas - Exceto TCC e Estágio Supervisionado)"]
["Graduação"]
["Código","Curso","Disciplina","Pontos","Qtd de Alunos","Semestre","CH extrassala","CH Total","Créditos","Modo","Qtd Prof.","Total",null,null,"CH extrassala"]
[null,"Escolha um curso...",{"$f":"IFERROR(VLOOKUP(A33,'BD Disciplinas'!A:C,3,),\"Insira  o código correto da disciplina\")","v":"Insira  o código correto da disciplina"},"10/17,5*",null,null,{"$f":"IFERROR(VLOOKUP(A33,'BD Disciplinas'!A:G,7,),\"\")","v":""},{"$f":"IFERROR((G33/K33)+I33,\"\")","v":""},{"$f":"IFERROR(VLOOKUP(A33,'BD Disciplinas'!A:F,6,)/K33,\"\")","v":""},{"$f":"IF(I33=\"\",\"\",(IFERROR(VLOOKUP(F33,'BD Listas'!G:H,2,),\"Presencial\")))","v":""},1,{"$f":"IFERROR(IF(J33=\"remoto\",(I33+M33)*17.5,(I33+M33)*10),\"0\")","v":"0"},{"$f":"IF(E33>9,LEFT(E33,1)/10,0)","v":0}]
["AULAS MINISTRADAS em Curso de Extensão (insira o título do curso)",null,null,"Pontos","Semestre",null,"CH extrassala","CH Total","Carga Horária Total do Curso",null,null,null,null,null,"CH extrassala"]
[null,null,null,10,null,null,null,{"$f":"IFERROR(((I35/15)+G35)/K35,\"\")","v":0},null,null,1,{"$f":"(I35/15)*D35","v":0}]
[]
["Total de Pontos em Atividades de ensino na Graduação (exceto seção 1.2)",null,null,null,null,null,null,null,null,null,null,{"$f":"SUM(L33:L36)","v":0}]
["Média de Pontos em Atividades de ensino na Graduação (exceto seção 1.2)",null,null,null,null,null,null,null,null,null,null,{"$f":"IFERROR((L37/E27),\"0\")","v":"0"}]
[null,null,null,null,null,null,null,{"$f":"SUM(H33:H35)","v":0}]
["Pós-Graduação"]
["Código","Curso","Disciplina","Pontos","Qtd de Alunos","Semestre","CH extrassala","CH total","Créditos",null,"Qtd Prof.","Total",null,null,"CH extrassala"]
[null,null,null,10,null,null,{"$f":"I42","v":"b"},{"$f":"IFERROR((I42*2)/K42,\"\")","v":""},"b",null,1,{"$f":"IFERROR((I42+M42)*D42,\"\")","v":""},{"$f":"IF(E42>9,LEFT(E42,1)/10,0)","v":0}]
[]
["Total de Pontos em Atividades de ensino na Pós-Graduação",null,null,null,null,null,null,null,null,null,null,{"$f":"SUM(L42:L43)","v":0}]
["Média de Pontos em Atividades de ensino na Pós-Graduação",null,null,null,null,null,null,null,null,null,null,{"$f":"IFERROR((L44/4),\"0\")","v":0}]
[]
["*A pontuação de períodos remotos será multiplicados por 17.5",null,null,null,null,null,null,{"$f":"SUM(H42:H45)","v":0}]
["Seção 1.2 (Demais Atividades de Ensino)"]
["Código","Curso","Disciplina","Tipo de atividade",null,"Pontos","Semestre","CH extrassala","CH Total","Créditos*","Qtd de Professores","Total",null,null,"CH extrassala"]
[null,"Escolha um curso...",{"$f":"IFERROR(VLOOKUP(A50,'BD Disciplinas'!A:C,3,),\"\")","v":""},"Escolha um item...",null,{"$f":"IFERROR(VLOOKUP(D50,'BD Atividades'!A:B,2,),\"\")","v":0},null,null,{"$f":"IFERROR(J50+(H50/K50),\"\")","v":""},{"$f":"IFERROR((VLOOKUP(A50,'BD Disciplinas'!A:F,6,))/K50,\"não localizada\")","v":"não localizada"},1,{"$f":"IFERROR(J50*F50,\"0\")","v":"0"}]
[]
["Totais de Pontos Seção 1.2",null,null,null,null,null,null,null,null,null,null,{"$f":"IFERROR(SUM(L50:L51),\"\")","v":0}]
["Média de Pontos Seção 1.2",null,null,null,null,null,null,null,null,null,null,{"$f":"IFERROR((L52/E27),\"0\")","v":"0"}]
["* Créditos recebido pelo aluno",null,null,null,null,null,null,null,{"$f":"SUM(I50:I53)","v":0}]
[null,null,null,null,null,null,"Pontuação mínima não atingida (80pts por semestre letivo)"]
[null,null,null,null,null,"Média de Pontos na Seção 1 ( Todas as Atividades de Ensino)",null,null,null,null,null,{"$f":"IFERROR(L53+L45+L38,\"\")","v":0}]
[null,null,null,null,null,"Carga Horária Total Seção 1 (Todas as atividades de Ensino)",null,null,null,null,null,{"$f":"(I54+H47+H39&\"h\")","v":"0h"}]
[null,null,null,null,null,null,"Carga horária de ensino inferior a 08 horas semanais"]
[]
["Seção 2 (Produção Intelectual)"]
[]
["Tipo de produção",null,null,"Título da atividade",null,null,null,"Semestre","CH Semanal","Pontos",null,null,null,null,"CH extrassala"]
["Escolha um item...",null,null,null,null,null,null,null,null,{"$f":"IFERROR(VLOOKUP(A63,'BD Atividades'!A:B,2,),\"0\")","v":0}]
[]
["Total de Pontos Seção 2",null,null,null,null,null,null,null,{"$f":"SUM(I63:I64)","v":0},{"$f":"SUM(J63:J64)","v":0}]
[]
[]
["Seção 3 (Atividades de Pesquisa e de Extensão)"]
[]
["Tipo de atividade",null,null,"Título da atividade",null,null,null,"Semestre","CH Semanal","Pontos*",null,null,null,null,"CH extrassala"]
["Escolha um item...",null,null,null,null,null,null,null,null,{"$f":"IFERROR(VLOOKUP(A71,'BD Atividades'!A:B,2,),\"\")","v":0}]
[]
["Total de Pontos Seção 3",null,null,null,null,null,null,null,{"$f":"SUM(I71:I72)","v":0},{"$f":"SUM(J71:J72)","v":0}]
["* Pontos por semestre. Em alguns casos a pontuação é por projeto e mediante relatório - consultar Resolução 03/2013 UFCG/CSGAF"]
[]
["Seção 4 (Atividades de Qualificação)"]
[]
["Tipo de atividade",null,null,"Título da atividade",null,null,null,"Semestre","CH Semanal","Pontos*",null,null,null,null,"CH extrassala"]
["Escolha um item...",null,null,null,null,null,null,null,null,{"$f":"IFERROR(VLOOKUP(A79,'BD Atividades'!A:B,2,),\"\")","v":0}]
[]
["Total de Pontos Seção 4",null,null,null,null,null,null,null,{"$f":"SUM(I79:I80)","v":0},{"$f":"SUM(J79:J80)","v":0}]
["* Pontos por semestre"]
[]
["Seção 5 (Atividades Administrativas e de Representação)"]
[]
["Tipo de atividade",null,null,"Título da atividade",null,null,null,"Semestre","CH Semanal","Pontos*",null,null,null,null,"CH extrassala"]
["Escolha um item...",null,null,null,null,null,null,null,null,{"$f":"IFERROR(VLOOKUP(A87,'BD Atividades'!A:B,2,),\"\")","v":0}]
[]
["Total de Pontos Seção 5",null,null,null,null,null,null,null,{"$f":"SUM(I87:I88)","v":0},{"$f":"SUM(J87:J88)","v":0}]
["* Pontos por semestre"]
[]
["Seção 6 (Orientação Acadêmica)"]
[]
["Tipo de atividade",null,null,"Título da Atividade",null,null,null,"Semestre","CH Semanal","Pontos*",null,null,null,null,"CH extrassala"]
["Escolha um item...",null,null,null,null,null,null,null,null,{"$f":"IFERROR(VLOOKUP(A95,'BD Atividades'!A:B,2,),\"\")","v":0}]
[]
["Total de Pontos Seção 6",null,null,null,null,null,null,null,{"$f":"SUM(I95:I96)","v":0},{"$f":"SUM(J95:J96)","v":0}]
["* Pontos por atividade, independente da duração"]
[]
["Seção 7 (Outras Atividades)"]
[]
["Tipo de atividade",null,null,"Título da Atividade",null,null,null,{"$f":"H86","v":"Semestre"},"CH Semanal","Pontos*",null,null,null,null,"CH extrassala"]
["Escolha um item...",null,null,null,null,null,null,null,null,{"$f":"IFERROR(VLOOKUP(A103,'BD Atividades'!A:B,2,),\"\")","v":0}]
[]
["Total de Pontos Seção 7",null,null,null,null,null,null,null,{"$f":"SUM(I103:I104)","v":0},{"$f":"SUM(J103:J104)","v":0}]
["* Pontos por atividade, independente da duração"]
[]
["Seção 8 (Cargo de Direção e ou de Chefia)"]
[]
["Tipo de Atividade",null,null,"Título da Atividade",null,null,null,"Semestre","CH Semanal","Pontos*",null,null,null,null,"CH extrassala"]
["Escolha um item...",null,null,null,null,null,null,null,null,{"$f":"IFERROR(VLOOKUP(A111,'BD Atividades'!A:B,2,),\"\")","v":0}]
[]
["Total de Pontos Seção 8",null,null,null,null,null,null,null,{"$f":"SUM(I111:I112)","v":0},{"$f":"SUM(J111:J112)","v":0}]
["* Pontos por semestre"]
[]
["Seção 9 (Outras atividades não pontuadas)"]
[]
["Tipo de Atividade",null,null,"Título da Atividade",null,null,null,"Semestre","CH Semanal",null,null,null,null,null,"CH extrassala"]
[]
[]
["Total de Pontos Seção 9",null,null,null,null,null,null,null,{"$f":"SUM(I119:I120)","v":0}]
[]
[null,null,null,null,"Atenção!! Você ainda não atingiu a pontuação de média mínima por semestre (140pts)"]
[null,null,"Resumo Geral","Total de Pontos","Média de Pontos por semestre","CH Semanal"]
[null,null,"               Seção 1 (Atividades de Ensino na Graduação)",{"$f":"L37","v":0},{"$f":"IFERROR((D125/E27),0)","v":0},{"$f":"H39","v":0}]
[null,null,"               Seção 1 (Atividades de Ensino na Pós-Graduação)",{"$f":"L44","v":0},{"$f":"IF(F27<>0, (D126/4),0)","v":0},{"$f":"H47","v":0}]
[null,null,"               Seção 1.2 (Demais Atividades de Ensino)",{"$f":"L52","v":0},{"$f":"IFERROR((D127/E27),0)","v":0},{"$f":"I54","v":0}]
[null,null,"Seção 2 (Produção intelectual)",{"$f":"J65","v":0},{"$f":"IFERROR((D128/4),\"\")","v":0},{"$f":"I65","v":0}]
[null,null,"Seção 3 (Atividades de Pesquisa e Extensão)",{"$f":"J73","v":0},0,{"$f":"I73","v":0}]
[null,null,"Seção 4 (Atividades de Qualificação)",{"$f":"J81","v":0},0,{"$f":"I81","v":0}]
[null,null,"Seção 5 (Atividades Administrativas e de Representação)",{"$f":"J89","v":0},0,{"$f":"I89","v":0}]
[null,null,"Seção 6 (Orientação Acadêmica)",{"$f":"J97","v":0},0,{"$f":"I97","v":0}]
[null,null,"Seção 7 (Outras Atividades)",{"$f":"J105","v":0},0,{"$f":"I105","v":0}]
[null,null,"Seção 8 (Cargo de Direção e ou de Chefia)",{"$f":"J113","v":0},0,{"$f":"I113","v":0}]
[null,null,"Seção 9 (Atividades não contempladas anteriormente)","-","-",{"$f":"I121","v":0}]
[null,null,"Total",{"$f":"SUM(D125:D134)","v":0},{"$f":"SUM(E125:E134)","v":0},{"$f":"SUM(F125:F135)","v":0},"O docente está ciente de que é desobrigado a cumprir carga horária excedente à definida no seu regime contratual, salvo exceções da lei Federal 8112/1990."]
[null,null,"Para efeitos de Progressão/Promoção: \nMédia mínima por semestre ainda não atingida\n(140pts por semestre)"]

{"sheet":"BD Docentes","index":1,"n_rows":89,"n_cols":10,"rows_kept":89,"cut":false,"hidden":true,"merged":[]}
["Siape","Nome","Regime","Classe","Fone","Email","UNIDADE","Vínculo","ID","88"]
[2056139,"ALEX BRUNO F. M. DO NASCIMENTO","T-40 - DE","Adjunto(a)","(83) 9 9656-5444","alexbruno.fmn@gmail.com","UAGESP","Efetivo",1]
[1187149,"ALLAN GUSTAVO FREIRE DA SILVA","T-40 - DE","Assistente","(83) 9 9966-3733","allangfs@hotmail.com","UAGESP","Efetivo",2]
[1451144,"ANTONIO DA SILVA CAMPOS JUNIOR","T-40 - DE","Adjunto(a)","(83) 9 9972-1535","junior.campos@uol.com.br","UAGESP","Efetivo",3]
[4496352,"GILVAN DIAS DE LIMA FILHO","T-40 - DE","Adjunto(a)","(83) 9 9618-7764","gilvandl@gmail.com","UAGESP","Efetivo",4]
[1325944,"JOSE IRIVALDO ALVES OLIVEIRA SILVA","T-40 - DE","Adjunto(a)","(83) 9 9982-4068","irivaldo.cdsa@gmail.com","UAGESP","Efetivo",5]
[1838740,"JOSÉ MARIA PEREIRA DA NÓBREGA JUNIOR","T-40 - DE","Associado(a)","(81) 9 8963-2841","nobrega.jr.ufpe@gmail.com","UAGESP","Efetivo",6]
[1314111,"KELLY CRISTINA COSTA SOARES","T-40 - DE","Adjunto(a)","(81) 9 9927-6003","kelsoares2016@uol.com.br","UAGESP","Efetivo",7]
[2489293,"LUIZ ANTÔNIO COELHO DA SILVA","T-40 - DE","Adjunto(a)","(83) 9 9822-8800","luidd@yahoo.com.br","UAGESP","Efetivo",8]
[1836148,"JOSÉ MARCIANO MONTEIRO","T-40 - DE","Adjunto(a)",null,"jm.monteiro17@gmail.com","UACIS","Efetivo",9]
[1840616,"JUNIA MARUSIA TRIGUEIRO DE LIMA","T-40 - DE","Adjunto(a)",null,"juniama@gmail.com","UACIS","Efetivo",10]
[1138045,"KÁTIA RAMOS SILVA","T-40 - DE","Adjunto(a)",null,"katya6@gmail.com","UACIS","Efetivo",11]
[3147774,"MARIA HELENA COSTA CARVALHO DE A. LIMA","T-40 - DE","Adjunto(a)",null,"lenacarvalho@gmail.com","UACIS","Efetivo",12]
[1569252,"PAULO CÉSAR OLIVEIRA DINIZ","T-40 - DE","Associado(a)","(83) 9 9843-0050","paulo.cesar@professor.ufcg.edu.br","UACIS","Efetivo",13]
[1071498,"ROZENVAL DE ALMEIDA E SOUSA","T-40 - DE","Adjunto(a)",null,"rozenval.estrela@gmail.com","UACIS","Efetivo",14]
[1435140,"VALDONILSON BARBOSA DOS SANTOS","T-40 - DE","Adjunto(a)","(83) 9 9968-6986","valdonilson.santos@uol.com.br","UACIS","Efetivo",15]
[2081790,"WALLACE GOMES FERREIRA DE SOUZA","T-40 - DE","Adjunto(a)","(83) 9 9622-5091","wallace.ferreiradesouza@gmail.com","UACIS","Efetivo",16]
[2317841,"ALDRE JORGE MORAIS DE BARROS","T-40 - DE","Adjunto(a)",null,"ajmbarros@yahoo.com.br","UAEB","Efetivo",17]
[1323519,"ANA MARY DA SILVA","T-40 - DE","Adjunto(a)",null,"aninha123@yahoo.com","UAEB","Efetivo",18]
[1624579,"ANA VERÔNICA SILVA DO NASCIMENTO","T-40 - DE","Adjunto(a)",null,"anaveronicasn@gmail.com","UAEB","Efetivo",19]
[2331779,"BRUNO RAFAEL PEREIRA NUNES","T-40 - DE","Adjunto(a)",null,"bruno.nunes@ufcg.edu.br","UAEB","Efetivo",20]
[1994682,"FRANKLIN FERREIRA DE FARIAS NOBREGA","T-40 - DE","Adjunto(a)",null,"franklinnobrega@yahoo.com.br","UAEB","Efetivo",21]
[2621135,"GEORGE DO NASCIMENTO RIBEIRO","T-40 - DE","Adjunto(a)",null,"georgenribeiro@gmail.com","UAEB","Efetivo",22]
[1786136,"GLAUCIANE DANUSA COELHO","T-40 - DE","Adjunto(a)",null,"glauciane.coelho.pb@gmail.com","UAEB","Efetivo",23]
[1867672,"JANDUY GUERRA ARAÚJO","T-40 - DE","Adjunto(a)",null,"janduy.guerra@gmail.com","UAEB","Efetivo",24]
[1785537,"JEAN CÉSAR FARIAS DE QUEIROZ","T-40 - DE","Adjunto(a)",null,"queiroz.jcf@gmail.com","UAEB","Efetivo",25]
[3143540,"JOSEDITE SARAIVA DE SOUZA","TEMPORÁRIO","TEMPORÁRIO",null,"prof.josedite@gmail.com","UAEB","TEMPORÁRIO",26]
[2301176,"LENILDE MERGIA RIBEIRO LIMA","T-40 - DE","Adjunto(a)",null,"mergia@gmail.com","UAEB","Efetivo",27]
[1994719,"MICHELLE ROSSANA FERREIRA VAZ","T-40 - DE","Adjunto(a)",null,"mrossanavaz@gmail.com","UAEB","Efetivo",28]
[337191,"RIVALDO VITAL DOS SANTOS","T-40 - DE","Titular",null,"rvital@cstr.ufcg.edu.br","UAEB","Efetivo",29]
[1810217,"ALMIR ANACLETO DE ARAÚJO GOMES","T-40 - DE","Assistente",null,"almir.anacleto@professor.ufcg.edu.br","UAEDUC","Efetivo",30]
[1785202,"BRUNO MEDEIROS ROLDAO DE ARAUJO","T-40 - DE","Adjunto(a)",null,"bruno.mr.araujo@ufcg.edu.br","UAEDUC","Efetivo",31]
[2324134,"CAROLINA FIGUEIREDO DE SÁ","T-40 - DE","Assistente",null,"carolina.fsa2013@gmail.com","UAEDUC","Efetivo",32]
[1866294,"DALILA GOMES DA SILVA","TEMPORÁRIO","TEMPORÁRIO",null,"gomes_dalila@yahoo.com.br","UAEDUC","TEMPORÁRIO",33]
[2328344,"DENISE MARIA DUARTE COUTINHO","T-40 - DE","Assistente",null,"jeanisetessier@gmail.com","UAEDUC","Efetivo",34]
[1983241,"DENISE XAVIER TORRES","T-40 - DE","Assistente",null,"dniseduca77@gmail.com","UAEDUC","Efetivo",35]
[2115195,"ERIVAN SILVA","T-40 - DE","Assistente",null,"erivansilva.pb@gmail.com","UAEDUC","Efetivo",36]
[1770329,"FABIANO CUSTODIO","T-40 - DE","Adjunto(a)",null,"fabianocustodio@ufcg.edu.br","UAEDUC","Efetivo",37]
[3524120,"FAUSTINO TEATINO CAVALCANTE NETO","T-40 - DE","Adjunto(a)",null,"faustinoteatinoneto@gmail.com","UAEDUC","Efetivo",38]
[2323773,"FILIPE GERVÁSIO PINTO DA SILVA","T-40 - DE","Assistente",null,"filipe.gervasio@ufcg.edu.br","UAEDUC","Efetivo",39]
[1812485,"ISAAC ALEXANDRE DA SILVA","T-40 - DE","Adjunto(a)",null,"isaac2015isaac@yahoo.com.br","UAEDUC","Efetivo",40]
[1354780,"JOSE IRELANIO LEITE DE ATAIDE","T-40 - DE","Adjunto(a)",null,"joseirelanio@ufcg.edu.br","UAEDUC","Efetivo",41]
[2461887,"MARCELLE VENTURA CARVALHO","T-20","Assistente",null,"marcellevc@ufcg.edu.br","UAEDUC","Efetivo",42]
[1582010,"MARCUS BESSA","T-40 - DE","Adjunto(a)",null,"marcusbessa@ufcg.edu.br","UAEDUC","Efetivo",43]
[1126203,"MARIA DO SOCORRO SILVA","T-40 - DE","Associado(a)","(83) 9 96043772","maria.socorro@professor.ufcg.edu.br","UAEDUC","Efetivo",44]
[1741502,"MONICA MARTINS NEGREIROS","T-40 - DE","Adjunto(a)",null,"monicanegreiros@ufcg.edu.br","UAEDUC","Efetivo",45]
[338350,"NADEGE DA SILVA DANTAS","T-40 - DE","Adjunto(a)",null,"nadege.dantas@gmail.com","UAEDUC","Efetivo",46]
[1728508,"NAHUM ISAQUE DOS SANTOS CAVALCANTE","T-40 - DE","Assistente",null,"nahum.isaque@ufcg.edu.br","UAEDUC","Efetivo",47]
[1778738,"RAFAEL TRINDADE MAIA","T-40 - DE","Adjunto(a)",null,"rafael.rafatrin@gmail.com","UAEDUC","Efetivo",48]
[3331082,"SONIA MARIA LIRA FERREIRA","T-40 - DE","Assistente",null,"sonia.lira@ufcg.edu.br","UAEDUC","Efetivo",49]
[1767990,"VALERIA ANDRADE","T-40 - DE","Adjunto(a)",null,"val.andradepb@gmail.com","UAEDUC","Efetivo",50]
[1810467,"VÍNICIUS RAMOS BEZERRA","T-40 - DE","Assistente",null,"vinicius.ramos@professor.ufcg.edu.br","UAEDUC","Efetivo",51]
[1783998,"WALBERTO BARBOSA DA SILVA","T-40 - DE","Assistente",null,"walberto@ufcg.edu.br","UAEDUC","Efetivo",52]
[1785378,"ADRIANA DE FÁTIMA MEIRA VITAL","T-40 - DE","Adjunto(a)",null,"vital.adriana@hotmail.com","UATEC","Efetivo",53]
[1805235,"ALDINETE BARRETO BEZERRA ANASTÁCIO","T-40 - DE","Adjunto(a)",null,"aldibarreto@hotmail.com","UATEC","Efetivo",54]
[1771989,"ALECKSANDRA VIEIRA DE LACERDA","T-40 - DE","Adjunto(a)",null,"alecksandra.vieira@professor.ufcg.edu.br","UATEC","Efetivo",55]
[1768805,"ANA CRISTINA CHACON LISBOA","T-40 - DE","Assistente",null,"aclisboa@ufcg.edu.br","UATEC","Efetivo",56]
[1543981,"CACIANA CAVALCANTI COSTA","T-40 - DE","Associada",null,"ccavalcantic@gmail.com","UATEC","Efetivo",57]
[1771906,"CARINA SEIXAS MAIA DORNELAS","T-40 - DE","Adjunto(a)",null,"carinadornelas@ufcg.edu.br","UATEC","Efetivo",58]
[1835917,"EDVALDO ELOY DANTAS JÚNIOR","T-40 - DE","Adjunto(a)",null,"edvaldoeloyjr@gmail.com","UATEC","Efetivo",59]
[1786030,"FABIANA PIMENTEL MACEDO FARIAS","T-40 - DE","Adjunto(a)",null,"fabianapmf@msn.com","UATEC","Efetivo",60]
[2115731,"HUGO MORAIS DE ALCANTARA","T-40 - DE","Adjunto(a)",null,"hugo.ma@ufcg.edu.br","UATEC","Efetivo",61]
[2552724,"ILZA MARIA DO NASCIMENTO","T-40 - DE","Adjunto(a)",null,"ilzabras@ufcg.edu.br","UATEC","Efetivo",62]
[1812730,"JOELMA SALES DOS SANTOS","T-40 - DE","Adjunto(a)",null,"joelma_salles@yahoo.com.br","UATEC","Efetivo",63]
[2420112,"JOSÉ GEORGE FERREIRA MEDEIROS","T-40 - DE","Adjunto(a)",null,"georgemedeiros_jp@hotmail.com","UATEC","Efetivo",64]
[1456798,"MARCIANO MARINHO","T-40 - DE","Assistente",null,"marcianomarinho@hotmail.com","UATEC","Efetivo",65]
[2555880,"MARIA LEIDE SILVA DE ALENCAR","T-40 - DE","Adjunto(a)",null,"leide@ufcg.edu.br","UATEC","Efetivo",66]
[2050244,"MORGANA FABÍOLA CUNHA SILVA CANUTO","T-40 - DE","Adjunto(a)",null,"morgana.canuto@ufcg.edu.br","UATEC","Efetivo",67]
[1253152,"PAULO DA COSTA MEDEIROS","T-40 - DE","Adjunto(a)",null,"medeirospc@gmail.com","UATEC","Efetivo",68]
[1850725,"RANOEL JOSÉ DE SOUSA GONÇALVES","T-40 - DE","Adjunto(a)",null,"ranoelgoncalves@hotmail.com","UATEC","Efetivo",69]
[1744336,"RENATO ISIDRO","T-40 - DE","Adjunto(a)",null,"renatoisidro@ufcg.edu.br","UATEC","Efetivo",70]
[1803521,"ROBSON FERNANDES BARBOSA","T-40 - DE","Assistente",null,"robson_rfb@yahoo.com.br","UATEC","Efetivo",71]
[1813333,"RÔMULO AUGUSTO VENTURA SILVA","T-40 - DE","Adjunto(a)",null,"romuloaugusto@ufcg.edu.br","UATEC","Efetivo",72]
[1640581,"TIAGO GONÇALVES PEREIRA ARAÚJO","T-40 - DE","Adjunto(a)",null,"tiagoaraujo@yahoo.com","UATEC","Efetivo",73]
[1030682,"ADRIANO TRINDADE DE BARROS","T-40 - DE","Adjunto(a)",null,"adrianotbarros@ufcg.edu.br","UAEP","Efetivo",74]
[1812152,"ALEX DE ALBUQUERQUE SILVA","T-40 - DE","Adjunto(a)",null,"aalb7a@ufcg.edu.br","UAEP","Efetivo",75]
[1771779,"CECIR BARBOSA DE ALMEIDA FARIAS","T-40 - DE","Adjunto(a)",null,"profceciralmeida@gmail.com","UAEP","Efetivo",76]
[1771877,"DANIEL AUGUSTO DE MOURA PEREIRA","T-40 - DE","Assistente",null,"danielmoura@ufcg.edu.br","UAEP","Efetivo",77]
[2892540,"DANIEL OLIVEIRA DE FARIAS","T-40 - DE","Assistente",null,"daniel.farias@ufcg.edu.br","UAEP","Efetivo",78]
[3233125,"DAVID SANTOS ROSA","TEMPORÁRIO","TEMPORÁRIO",null,"david.rosa@eq.ufcg.edu.br","UAEP","TEMPORÁRIO",79]
[3156430,"FERNANDA RAQUEL ROBERTO PEREIRA","TEMPORÁRIO","TEMPORÁRIO",null,"fernandaraqueleng@gmail.com","UAEP","TEMPORÁRIO",80]
[1955268,"JOHN ELTON DE BRITO LEITE CUNHA","T-40 - DE","Assistente",null,"john.elton@professor.ufcg.edu.br","UAEP","Efetivo",81]
[388163,"JOSE VANDERLAN LEITE DE OLIVEIRA","T-40 - DE","Adjunto(a)",null,"vanderlan.leite@ufcg.edu.br","UAEP","Efetivo",82]
[3233351,"JOSEAN DA SILVA LIMA JÚNIOR","TEMPORÁRIO","TEMPORÁRIO",null,"joseanjuniorsume@gmail.com","UAEP","TEMPORÁRIO",83]
[1281054,"MARIA CREUZA BORGES DE ARAÚJO","T-40 - DE","Adjunto(a)",null,"maria.creuza.borges@gmail.com","UAEP","Efetivo",84]
[3578285,"PATRÍCIO JOSÉ FÉLIX DA SILVA","T-40 - DE","Assistente",null,"patricio@df.ufcg.edu.br","UAEP","Efetivo",85]
[1534207,"WLADIMIR TADEU VIESI","T-40 - DE","Assistente",null,"wladviesi@hotmail.com","UAEP","Assistente",86]
[3138980,"YURI LAIO TEIXEIRA VERAS SILVA","T-40 - DE","TEMPORÁRIO",null,"yurilaio@gmail.com","UAEP","TEMPORÁRIO",87]
[2313213,"ALEX BRUNO F. M. DO NASCIMENTO","T-40 - DE","Adjunto(a)","(83) 9 9656-5444","alexbruno.fmn@gmail.com","UAGESP","Efetivo",87]

{"sheet":"BD Disciplinas","index":2,"n_rows":449,"n_cols":11,"rows_kept":449,"cut":false,"hidden":false,"merged":[]}
["Cód","codUnid","Disciplina","codun","hifen","Créditos","CH extrassala","Unidade","IDD",null,448]
[7101190,{"$f":"CONCATENATE(Tabela4[[#This Row],[Unidade]],Tabela4[[#This Row],[hifen]],Tabela4[[#This Row],[codun]])","v":"UAEDUC-7101"},"A EDUCACAO DA PESSOA SURDA",{"$f":"LEFT(Tabela4[[#This Row],[Cód]],4)","v":"7101"},"-",2,{"$f":"F2","v":2},"UAEDUC",1]
[7101051,{"$f":"CONCATENATE(Tabela4[[#This Row],[Unidade]],Tabela4[[#This Row],[hifen]],Tabela4[[#This Row],[codun]])","v":"UAEDUC-7101"},"AÇÃO COLETIVA,ASSOCIAT E COOPERATIVISMO",{"$f":"LEFT(Tabela4[[#This Row],[Cód]],4)","v":"7101"},"-",2,2,"UAEDUC",2]
[7102094,{"$f":"CONCATENATE(Tabela4[[#This Row],[Unidade]],Tabela4[[#This Row],[hifen]],Tabela4[[#This Row],[codun]])","v":"UATEC-7102"},"ADMINISTRAÇÃO E EMPREENDEDORISMO",{"$f":"LEFT(Tabela4[[#This Row],[Cód]],4)","v":"7102"},"-",2,2,"UATEC",3]
[7106047,{"$f":"CONCATENATE(Tabela4[[#This Row],[Unidade]],Tabela4[[#This Row],[hifen]],Tabela4[[#This Row],[codun]])","v":"UAGESP-7106"},"ADMINISTRAÇÃO ESTRATÉGICA",{"$f":"LEFT(Tabela4[[#This Row],[Cód]],4)","v":"7106"},"-",4,4,"UAGESP",4]
[7102266,{"$f":"CONCATENATE(Tabela4[[#This Row],[Unidade]],Tabela4[[#This Row],[hifen]],Tabela4[[#This Row],[codun]])","v":"UATEC-7102"},"AGRICULTURA DE PRECISAO",{"$f":"LEFT(Tabela4[[#This Row],[Cód]],4)","v":"7102"},"-",4,4,"UATEC",5]
[7102307,{"$f":"CONCATENATE(Tabela4[[#This Row],[Unidade]],Tabela4[[#This Row],[hifen]],Tabela4[[#This Row],[codun]])","v":"UATEC-7102"},"AGRICULTURA ORGÂNICA",{"$f":"LEFT(Tabela4[[#This Row],[Cód]],4)","v":"7102"},"-",2,2,"UATEC",6]
[7102086,{"$f":"CONCATENATE(Tabela4[[#This Row],[Unidade]],Tabela4[[#This Row],[hifen]],Tabela4[[#This Row],[codun]])","v":"UATEC-7102"},"AGROEC APLIC AO CULT DE PLANTAS ALIMENT",{"$f":"LEFT(Tabela4[[#This Row],[Cód]],4)","v":"7102"},"-",4,4,"UATEC",7]
[7102085,{"$f":"CONCATENATE(Tabela4[[#This Row],[Unidade]],Tabela4[[#This Row],[hifen]],Tabela4[[#This Row],[codun]])","v":"UATEC-7102"},"AGROEC APLIC AO CULTIVO DE FRUTIFERAS",{"$f":"LEFT(Tabela4[[#This Row],[Cód]],4)","v":"7102"},"-",2,2,"UATEC",8]
[7102082,{"$f":"CONCATENATE(Tabela4[[#This Row],[Unidade]],Tabela4[[#This Row],[hifen]],Tabela4[[#This Row],[codun]])","v":"UATEC-7102"},"AGROEC APLIC AO CULTIVO DE OLERICOLAS",{"$f":"LEFT(Tabela4[[#This Row],[Cód]],4)","v":"7102"},"-",4,4,"UATEC",9]
[7102063,{"$f":"CONCATENATE(Tabela4[[#This Row],[Unidade]],Tabela4[[#This Row],[hifen]],Tabela4[[#This Row],[codun]])","v":"UATEC-7102"},"AGROECOLOGIA",{"$f":"LEFT(Tabela4[[#This Row],[Cód]],4)","v":"7102"},"-",2,2,"UATEC",10]
[7102083,{"$f":"CONCATENATE(Tabela4[[#This Row],[Unidade]],Tabela4[[#This Row],[hifen]],Tabela4[[#This Row],[codun]])","v":"UATEC-7102"},"AGROECOLOGIA ANIMAL",{"$f":"LEFT(Tabela4[[#This Row],[Cód]],4)","v":"7102"},"-",4,4,"UATEC",11]
[7102067,{"$f":"CONCATENATE(Tabela4[[#This Row],[Unidade]],Tabela4[[#This Row],[hifen]],Tabela4[[#This Row],[codun]])","v":"UATEC-7102"},"AGROMETEOROLOGIA",{"$f":"LEFT(Tabela4[[#This Row],[Cód]],4)","v":"7102"},"-",4,4,"UATEC",12]
[7102010,{"$f":"CONCATENATE(Tabela4[[#This Row],[Unidade]],Tabela4[[#This Row],[hifen]],Tabela4[[#This Row],[codun]])","v":"UATEC-7102"},"ÁLGEBRA LINEAR",{"$f":"LEFT(Tabela4[[#This Row],[Cód]],4)","v":"7102"},"-",4,4,"UATEC",13]
[7102036,{"$f":"CONCATENATE(Tabela4[[#This Row],[Unidade]],Tabela4[[#This Row],[hifen]],Tabela4[[#This Row],[codun]])","v":"UATEC-7102"},"ANATO-FISIOLOGIA VEGETAL",{"$f":"LEFT(Tabela4[[#This Row],[Cód]],4)","v":"7102"},"-",4,4,"UATEC",14]
[7102068,{"$f":"CONCATENATE(Tabela4[[#This Row],[Unidade]],Tabela4[[#This Row],[hifen]],Tabela4[[#This Row],[codun]])","v":"UATEC-7102"},"ANATOMIA VEGETAL",{"$f":"LEFT(Tabela4[[#This Row],[Cód]],4)","v":"7102"},"-",2,2,"UATEC",15]
[7105088,{"$f":"CONCATENATE(Tabela4[[#This Row],[Unidade]],Tabela4[[#This Row],[hifen]],Tabela4[[#This Row],[codun]])","v":"UACIS-7105"},"ANTROPOLOGIA BRASILEIRA",{"$f":"LEFT(Tabela4[[#This Row],[Cód]],4)","v":"7105"},"-",2,2,"UACIS",16]
[7105192,{"$f":"CONCATENATE(Tabela4[[#This Row],[Unidade]],Tabela4[[#This Row],[hifen]],Tabela4[[#This Row],[codun]])","v":"UACIS-7105"},"ANTROPOLOGIA DA ARTE",{"$f":"LEFT(Tabela4[[#This Row],[Cód]],4)","v":"7105"},"-",2,2,"UACIS",17]
[7105001,{"$f":"CONCATENATE(Tabela4[[#This Row],[Unidade]],Tabela4[[#This Row],[hifen]],Tabela4[[#This Row],[codun]])","v":"UACIS-7105"},"ANTROPOLOGIA E EDUCAÇÃO",{"$f":"LEFT(Tabela4[[#This Row],[Cód]],4)","v":"7105"},"-",4,4,"UACIS",18]
[7102303,{"$f":"CONCATENATE(Tabela4[[#This Row],[Unidade]],Tabela4[[#This Row],[hifen]],Tabela4[[#This Row],[codun]])","v":"UATEC-7102"},"APICULTURA",{"$f":"LEFT(Tabela4[[#This Row],[Cód]],4)","v":"7102"},"-",4,4,"UATEC",19]
[7101123,{"$f":"CONCATENATE(Tabela4[[#This Row],[Unidade]],Tabela4[[#This Row],[hifen]],Tabela4[[#This Row],[codun]])","v":"UAEDUC-7101"},"ASPECT MORFOSSINTATICOS DA L PORTUGUESA",{"$f":"LEFT(Tabela4[[#This Row],[Cód]],4)","v":"7101"},"-",4,4,"UAEDUC",20]
[7101173,{"$f":"CONCATENATE(Tabela4[[#This Row],[Unidade]],Tabela4[[#This Row],[hifen]],Tabela4[[#This Row],[codun]])","v":"UAEDUC-7101"},"ASPECTOS SOCIOANTROPOLOGICOS DO ESPORTE",{"$f":"LEFT(Tabela4[[#This Row],[Cód]],4)","v":"7101"},"-",2,2,"UAEDUC",21]
[7101172,{"$f":"CONCATENATE(Tabela4[[#This Row],[Unidade]],Tabela4[[#This Row],[hifen]],Tabela4[[#This Row],[codun]])","v":"UAEDUC-7101"},"ATIVID ACADEMICO-CIENTIFICO-CULTURAIS",{"$f":"LEFT(Tabela4[[#This Row],[Cód]],4)","v":"7101"},"-",14,14,"UAEDUC",22]
[7105157,{"$f":"CONCATENATE(Tabela4[[#This Row],[Unidade]],Tabela4[[#This Row],[hifen]],Tabela4[[#This Row],[codun]])","v":"UACIS-7105"},"ATIVIDADES COMPLEMENTARES FLEXIVEIS",{"$f":"LEFT(Tabela4[[#This Row],[Cód]],4)","v":"7105"},"-",14,14,"UACIS",23]
[7102258,{"$f":"CONCATENATE(Tabela4[[#This Row],[Unidade]],Tabela4[[#This Row],[hifen]],Tabela4[[#This Row],[codun]])","v":"UATEC-7102"},"ATIVIDADES COMPLEMENTARES FLEXIVEIS",{"$f":"LEFT(Tabela4[[#This Row],[Cód]],4)","v":"7102"},"-",16,16,"UATEC",24]
[7102286,{"$f":"CONCATENATE(Tabela4[[#This Row],[Unidade]],Tabela4[[#This Row],[hifen]],Tabela4[[#This Row],[codun]])","v":"UATEC-7102"},"ATIVIDADES COMPLEMENTARES FLEXIVEIS",{"$f":"LEFT(Tabela4[[#This Row],[Cód]],4)","v":"7102"},"-",4,4,"UATEC",25]
[7102289,{"$f":"CONCATENATE(Tabela4[[#This Row],[Unidade]],Tabela4[[#This Row],[hifen]],Tabela4[[#This Row],[codun]])","v":"UATEC-7102"},"ATIVIDADES COMPLEMENTARES FLEXIVEIS",{"$f":"LEFT(Tabela4[[#This Row],[Cód]],4)","v":"7102"},"-",5,5,"UATEC",26]
[7102292,{"$f":"CONCATENATE(Tabela4[[#This Row],[Unidade]],Tabela4[[#This Row],[hifen]],Tabela4[[#This Row],[codun]])","v":"UATEC-7102"},"ATIVIDADES COMPLEMENTARES FLEXIVEIS",{"$f":"LEFT(Tabela4[[#This Row],[Cód]],4)","v":"7102"},"-",4,4,"UATEC",27]
[7106111,{"$f":"CONCATENATE(Tabela4[[#This Row],[Unidade]],Tabela4[[#This Row],[hifen]],Tabela4[[#This Row],[codun]])","v":"UAGESP-7106"},"AVALIAÇÃO DE POLÍTICAS PÚBLICAS",{"$f":"LEFT(Tabela4[[#This Row],[Cód]],4)","v":"7106"},"-",4,4,"UAGESP",28]
[7101091,{"$f":"CONCATENATE(Tabela4[[#This Row],[Unidade]],Tabela4[[#This Row],[hifen]],Tabela4[[#This Row],[codun]])","v":"UAEDUC-7101"},"AVALIAÇÃO DOS PROCESSOS EDUCACIONAIS",{"$f":"LEFT(Tabela4[[#This Row],[Cód]],4)","v":"7101"},"-",4,4,"UAEDUC",29]
[7103244,{"$f":"CONCATENATE(Tabela4[[#This Row],[Unidade]],Tabela4[[#This Row],[hifen]],Tabela4[[#This Row],[codun]])","v":"UAEB-7103"},"BIOCOMBUSTIVEIS",{"$f":"LEFT(Tabela4[[#This Row],[Cód]],4)","v":"7103"},"-",2,2,"UAEB",30]
[7103303,{"$f":"CONCATENATE(Tabela4[[#This Row],[Unidade]],Tabela4[[#This Row],[hifen]],Tabela4[[#This Row],[codun]])","v":"UAEB-7103"},"BIOCOMBUSTIVEIS",{"$f":"LEFT(Tabela4[[#This Row],[Cód]],4)","v":"7103"},"-",4,4,"UAEB",31]
[7102304,{"$f":"CONCATENATE(Tabela4[[#This Row],[Unidade]],Tabela4[[#This Row],[hifen]],Tabela4[[#This Row],[codun]])","v":"UATEC-7102"},"BIOCONTROLE DE DOENCAS DE PLANTAS",{"$f":"LEFT(Tabela4[[#This Row],[Cód]],4)","v":"7102"},"-",2,2,"UATEC",32]
[7106138,{"$f":"CONCATENATE(Tabela4[[#This Row],[Unidade]],Tabela4[[#This Row],[hifen]],Tabela4[[#This Row],[codun]])","v":"UAGESP-7106"},"BIODIREITO",{"$f":"LEFT(Tabela4[[#This Row],[Cód]],4)","v":"7106"},"-",2,{"$f":"F34","v":2},"UAGESP",33]
[7103253,{"$f":"CONCATENATE(Tabela4[[#This Row],[Unidade]],Tabela4[[#This Row],[hifen]],Tabela4[[#This Row],[codun]])","v":"UAEB-7103"},"BIOINFORMÁTICA",{"$f":"LEFT(Tabela4[[#This Row],[Cód]],4)","v":"7103"},"-",4,4,"UAEB",34]
[7103001,{"$f":"CONCATENATE(Tabela4[[#This Row],[Unidade]],Tabela4[[#This Row],[hifen]],Tabela4[[#This Row],[codun]])","v":"UAEB-7103"},"BIOLOGIA CELULAR E MOLECULAR",{"$f":"LEFT(Tabela4[[#This Row],[Cód]],4)","v":"7103"},"-",4,4,"UAEB",35]
[7102016,{"$f":"CONCATENATE(Tabela4[[#This Row],[Unidade]],Tabela4[[#This Row],[hifen]],Tabela4[[#This Row],[codun]])","v":"UATEC-7102"},"BIOLOGIA DO SEMIARIDO",{"$f":"LEFT(Tabela4[[#This Row],[Cód]],4)","v":"7102"},"-",2,2,"UATEC",36]
[7103254,{"$f":"CONCATENATE(Tabela4[[#This Row],[Unidade]],Tabela4[[#This Row],[hifen]],Tabela4[[#This Row],[codun]])","v":"UAEB-7103"},"BIOMATERIAIS",{"$f":"LEFT(Tabela4[[#This Row],[Cód]],4)","v":"7103"},"-",2,2,"UAEB",37]
[7103053,{"$f":"CONCATENATE(Tabela4[[#This Row],[Unidade]],Tabela4[[#This Row],[hifen]],Tabela4[[#This Row],[codun]])","v":"UAEB-7103"},"BIOQUÍMICA",{"$f":"LEFT(Tabela4[[#This Row],[Cód]],4)","v":"7103"},"-",4,4,"UAEB",38]
[7103055,{"$f":"CONCATENATE(Tabela4[[#This Row],[Unidade]],Tabela4[[#This Row],[hifen]],Tabela4[[#This Row],[codun]])","v":"UAEB-7103"},"BIOSSEGURANCA",{"$f":"LEFT(Tabela4[[#This Row],[Cód]],4)","v":"7103"},"-",2,2,"UAEB",39]
[7103272,{"$f":"CONCATENATE(Tabela4[[#This Row],[Unidade]],Tabela4[[#This Row],[hifen]],Tabela4[[#This Row],[codun]])","v":"UAEB-7103"},"BIOTECNOLOGIA AMBIENTAL",{"$f":"LEFT(Tabela4[[#This Row],[Cód]],4)","v":"7103"},"-",4,4,"UAEB",40]
[7102283,{"$f":"CONCATENATE(Tabela4[[#This Row],[Unidade]],Tabela4[[#This Row],[hifen]],Tabela4[[#This Row],[codun]])","v":"UATEC-7102"},"BIOTECNOLOGIA DOS SOLOS",{"$f":"LEFT(Tabela4[[#This Row],[Cód]],4)","v":"7102"},"-",2,2,"UATEC",41]
[7102022,{"$f":"CONCATENATE(Tabela4[[#This Row],[Unidade]],Tabela4[[#This Row],[hifen]],Tabela4[[#This Row],[codun]])","v":"UATEC-7102"},"BOTANICA",{"$f":"LEFT(Tabela4[[#This Row],[Cód]],4)","v":"7102"},"-",2,2,"UATEC",42]
[7101144,{"$f":"CONCATENATE(Tabela4[[#This Row],[Unidade]],Tabela4[[#This Row],[hifen]],Tabela4[[#This Row],[codun]])","v":"UAEDUC-7101"},"BOTANICA DO SEMIARIDO",{"$f":"LEFT(Tabela4[[#This Row],[Cód]],4)","v":"7101"},"-",4,4,"UAEDUC",43]
[7102002,{"$f":"CONCATENATE(Tabela4[[#This Row],[Unidade]],Tabela4[[#This Row],[hifen]],Tabela4[[#This Row],[codun]])","v":"UATEC-7102"},"CALCULO DIFERENCIAL E INTEGRAL I",{"$f":"LEFT(Tabela4[[#This Row],[Cód]],4)","v":"7102"},"-",4,4,"UATEC",44]
[7102009,{"$f":"CONCATENATE(Tabela4[[#This Row],[Unidade]],Tabela4[[#This Row],[hifen]],Tabela4[[#This Row],[codun]])","v":"UATEC-7102"},"CALCULO DIFERENCIAL E INTEGRAL II",{"$f":"LEFT(Tabela4[[#This Row],[Cód]],4)","v":"7102"},"-",4,4,"UATEC",45]
[7102028,{"$f":"CONCATENATE(Tabela4[[#This Row],[Unidade]],Tabela4[[#This Row],[hifen]],Tabela4[[#This Row],[codun]])","v":"UATEC-7102"},"CALCULO DIFERENCIAL E INTEGRAL III",{"$f":"LEFT(Tabela4[[#This Row],[Cód]],4)","v":"7102"},"-",4,4,"UATEC",46]
[7102088,{"$f":"CONCATENATE(Tabela4[[#This Row],[Unidade]],Tabela4[[#This Row],[hifen]],Tabela4[[#This Row],[codun]])","v":"UATEC-7102"},"CAPRINOCULTURA LEITEIRA",{"$f":"LEFT(Tabela4[[#This Row],[Cód]],4)","v":"7102"},"-",4,4,"UATEC",47]
[7101117,{"$f":"CONCATENATE(Tabela4[[#This Row],[Unidade]],Tabela4[[#This Row],[hifen]],Tabela4[[#This Row],[codun]])","v":"UAEDUC-7101"},"CARTOGRAFIA GERAL",{"$f":"LEFT(Tabela4[[#This Row],[Cód]],4)","v":"7101"},"-",4,4,"UAEDUC",48]
[7102235,{"$f":"CONCATENATE(Tabela4[[#This Row],[Unidade]],Tabela4[[#This Row],[hifen]],Tabela4[[#This Row],[codun]])","v":"UATEC-7102"},"CERTIFICAÇÃO DE SISTEMAS AGROECOLÓGICOS",{"$f":"LEFT(Tabela4[[#This Row],[Cód]],4)","v":"7102"},"-",4,4,"UATEC",49]
[7105137,{"$f":"CONCATENATE(Tabela4[[#This Row],[Unidade]],Tabela4[[#This Row],[hifen]],Tabela4[[#This Row],[codun]])","v":"UACIS-7105"},"CIDADANIA E TRABALHO",{"$f":"LEFT(Tabela4[[#This Row],[Cód]],4)","v":"7105"},"-",2,2,"UACIS",50]
[7102051,{"$f":"CONCATENATE(Tabela4[[#This Row],[Unidade]],Tabela4[[#This Row],[hifen]],Tabela4[[#This Row],[codun]])","v":"UATEC-7102"},"CIÊNCIAS DO AMBIENTE",{"$f":"LEFT(Tabela4[[#This Row],[Cód]],4)","v":"7102"},"-",2,2,"UATEC",51]
[7103126,{"$f":"CONCATENATE(Tabela4[[#This Row],[Unidade]],Tabela4[[#This Row],[hifen]],Tabela4[[#This Row],[codun]])","v":"UAEB-7103"},"CINETICA E CALCULO DE BIORREATORES",{"$f":"LEFT(Tabela4[[#This Row],[Cód]],4)","v":"7103"},"-",4,4,"UAEB",52]
[7102247,{"$f":"CONCATENATE(Tabela4[[#This Row],[Unidade]],Tabela4[[#This Row],[hifen]],Tabela4[[#This Row],[codun]])","v":"UATEC-7102"},"CLIMATIZAÇÃO E AUTOM. EM AMB. PROTEGIDOS",{"$f":"LEFT(Tabela4[[#This Row],[Cód]],4)","v":"7102"},"-",4,4,"UATEC",53]
[7101174,{"$f":"CONCATENATE(Tabela4[[#This Row],[Unidade]],Tabela4[[#This Row],[hifen]],Tabela4[[#This Row],[codun]])","v":"UAEDUC-7101"},"CLIMATOLOGIA,HIDROLOGIA E SOLOS DO SEMIA",{"$f":"LEFT(Tabela4[[#This Row],[Cód]],4)","v":"7101"},"-",4,4,"UAEDUC",54]
[7102111,{"$f":"CONCATENATE(Tabela4[[#This Row],[Unidade]],Tabela4[[#This Row],[hifen]],Tabela4[[#This Row],[codun]])","v":"UATEC-7102"},"CONSTRUÇÕES E MÁQUINAS RURAIS",{"$f":"LEFT(Tabela4[[#This Row],[Cód]],4)","v":"7102"},"-",4,4,"UATEC",55]
[7102121,{"$f":"CONCATENATE(Tabela4[[#This Row],[Unidade]],Tabela4[[#This Row],[hifen]],Tabela4[[#This Row],[codun]])","v":"UATEC-7102"},"CONSTRUCOES RURAIS E AMBIENCIA",{"$f":"LEFT(Tabela4[[#This Row],[Cód]],4)","v":"7102"},"-",4,4,"UATEC",56]
[7106063,{"$f":"CONCATENATE(Tabela4[[#This Row],[Unidade]],Tabela4[[#This Row],[hifen]],Tabela4[[#This Row],[codun]])","v":"UAGESP-7106"},"CONT INTERNOS E EXTERNOS DA GEST PUBLICA",{"$f":"LEFT(Tabela4[[#This Row],[Cód]],4)","v":"7106"},"-",4,4,"UAGESP",57]
[7106112,{"$f":"CONCATENATE(Tabela4[[#This Row],[Unidade]],Tabela4[[#This Row],[hifen]],Tabela4[[#This Row],[codun]])","v":"UAGESP-7106"},"CONTABILIDADE AMBIENTAL",{"$f":"LEFT(Tabela4[[#This Row],[Cód]],4)","v":"7106"},"-",4,4,"UAGESP",58]
[7102246,{"$f":"CONCATENATE(Tabela4[[#This Row],[Unidade]],Tabela4[[#This Row],[hifen]],Tabela4[[#This Row],[codun]])","v":"UATEC-7102"},"CONTROLE EM PROCESSOS AGROPECUARIOS",{"$f":"LEFT(Tabela4[[#This Row],[Cód]],4)","v":"7102"},"-",2,2,"UATEC",59]
[7101015,{"$f":"CONCATENATE(Tabela4[[#This Row],[Unidade]],Tabela4[[#This Row],[hifen]],Tabela4[[#This Row],[codun]])","v":"UAEDUC-7101"},"CULTURA CORPORAL",{"$f":"LEFT(Tabela4[[#This Row],[Cód]],4)","v":"7101"},"-",4,4,"UAEDUC",60]
[7103098,{"$f":"CONCATENATE(Tabela4[[#This Row],[Unidade]],Tabela4[[#This Row],[hifen]],Tabela4[[#This Row],[codun]])","v":"UAEB-7103"},"CULTURA DE CELULAS ANIMAIS",{"$f":"LEFT(Tabela4[[#This Row],[Cód]],4)","v":"7103"},"-",4,4,"UAEB",61]
[7103099,{"$f":"CONCATENATE(Tabela4[[#This Row],[Unidade]],Tabela4[[#This Row],[hifen]],Tabela4[[#This Row],[codun]])","v":"UAEB-7103"},"CULTURA DE TECIDOS VEGETAIS",{"$f":"LEFT(Tabela4[[#This Row],[Cód]],4)","v":"7103"},"-",4,4,"UAEB",62]
[7105186,{"$f":"CONCATENATE(Tabela4[[#This Row],[Unidade]],Tabela4[[#This Row],[hifen]],Tabela4[[#This Row],[codun]])","v":"UACIS-7105"},"CULTURA POLÍTICA",{"$f":"LEFT(Tabela4[[#This Row],[Cód]],4)","v":"7105"},"-",2,2,"UACIS",63]
[7101066,{"$f":"CONCATENATE(Tabela4[[#This Row],[Unidade]],Tabela4[[#This Row],[hifen]],Tabela4[[#This Row],[codun]])","v":"UAEDUC-7101"},"CURRICULO E ESCOLA",{"$f":"LEFT(Tabela4[[#This Row],[Cód]],4)","v":"7101"},"-",4,4,"UAEDUC",64]
[7105030,{"$f":"CONCATENATE(Tabela4[[#This Row],[Unidade]],Tabela4[[#This Row],[hifen]],Tabela4[[#This Row],[codun]])","v":"UACIS-7105"},"DES SUST, IDENTIDADES E TERRITORIALIDADE",{"$f":"LEFT(Tabela4[[#This Row],[Cód]],4)","v":"7105"},"-",2,{"$f":"F66","v":2},"UACIS",65]
[7102012,{"$f":"CONCATENATE(Tabela4[[#This Row],[Unidade]],Tabela4[[#This Row],[hifen]],Tabela4[[#This Row],[codun]])","v":"UATEC-7102"},"DESENHO TÉCNICO",{"$f":"LEFT(Tabela4[[#This Row],[Cód]],4)","v":"7102"},"-",4,4,"UATEC",66]
[7101082,{"$f":"CONCATENATE(Tabela4[[#This Row],[Unidade]],Tabela4[[#This Row],[hifen]],Tabela4[[#This Row],[codun]])","v":"UAEDUC-7101"},"DESENVOLVIMENTO HUMANO E MOVIM CORPORAIS",{"$f":"LEFT(Tabela4[[#This Row],[Cód]],4)","v":"7101"},"-",4,4,"UAEDUC",67]
[7102305,{"$f":"CONCATENATE(Tabela4[[#This Row],[Unidade]],Tabela4[[#This Row],[hifen]],Tabela4[[#This Row],[codun]])","v":"UATEC-7102"},"DESENVOLVIMENTO RURAL E SUSTENTABILIDADE",{"$f":"LEFT(Tabela4[[#This Row],[Cód]],4)","v":"7102"},"-",2,2,"UATEC",68]
[7101029,{"$f":"CONCATENATE(Tabela4[[#This Row],[Unidade]],Tabela4[[#This Row],[hifen]],Tabela4[[#This Row],[codun]])","v":"UAEDUC-7101"},"DIDATICA",{"$f":"LEFT(Tabela4[[#This Row],[Cód]],4)","v":"7101"},"-",4,4,"UAEDUC",69]
[7106077,{"$f":"CONCATENATE(Tabela4[[#This Row],[Unidade]],Tabela4[[#This Row],[hifen]],Tabela4[[#This Row],[codun]])","v":"UAGESP-7106"},"DIREITO",{"$f":"LEFT(Tabela4[[#This Row],[Cód]],4)","v":"7106"},"-",2,2,"UAGESP",70]
[7106061,{"$f":"CONCATENATE(Tabela4[[#This Row],[Unidade]],Tabela4[[#This Row],[hifen]],Tabela4[[#This Row],[codun]])","v":"UAGESP-7106"},"DIREITO ADMINISTRATIVO",{"$f":"LEFT(Tabela4[[#This Row],[Cód]],4)","v":"7106"},"-",4,4,"UAGESP",71]
[7106127,{"$f":"CONCATENATE(Tabela4[[#This Row],[Unidade]],Tabela4[[#This Row],[hifen]],Tabela4[[#This Row],[codun]])","v":"UAGESP-7106"},"DIREITO AGRARIO E AMBIENTAL",{"$f":"LEFT(Tabela4[[#This Row],[Cód]],4)","v":"7106"},"-",2,2,"UAGESP",72]
[7106155,{"$f":"CONCATENATE(Tabela4[[#This Row],[Unidade]],Tabela4[[#This Row],[hifen]],Tabela4[[#This Row],[codun]])","v":"UAGESP-7106"},"DIREITO AMBIENTAL",{"$f":"LEFT(Tabela4[[#This Row],[Cód]],4)","v":"7106"},"-",2,2,"UAGESP",73]
[7106049,{"$f":"CONCATENATE(Tabela4[[#This Row],[Unidade]],Tabela4[[#This Row],[hifen]],Tabela4[[#This Row],[codun]])","v":"UAGESP-7106"},"DIREITO CONSTITUCIONAL",{"$f":"LEFT(Tabela4[[#This Row],[Cód]],4)","v":"7106"},"-",4,4,"UAGESP",74]
[7106177,{"$f":"CONCATENATE(Tabela4[[#This Row],[Unidade]],Tabela4[[#This Row],[hifen]],Tabela4[[#This Row],[codun]])","v":"UAGESP-7106"},"DIREITO E ETICA",{"$f":"LEFT(Tabela4[[#This Row],[Cód]],4)","v":"7106"},"-",2,2,"UAGESP",75]
[7106080,{"$f":"CONCATENATE(Tabela4[[#This Row],[Unidade]],Tabela4[[#This Row],[hifen]],Tabela4[[#This Row],[codun]])","v":"UAGESP-7106"},"DIREITO REGULATORIO",{"$f":"LEFT(Tabela4[[#This Row],[Cód]],4)","v":"7106"},"-",2,2,"UAGESP",76]
[7106108,{"$f":"CONCATENATE(Tabela4[[#This Row],[Unidade]],Tabela4[[#This Row],[hifen]],Tabela4[[#This Row],[codun]])","v":"UAGESP-7106"},"DIREITO TRIBUTARIO",{"$f":"LEFT(Tabela4[[#This Row],[Cód]],4)","v":"7106"},"-",2,2,"UAGESP",77]
[7105198,{"$f":"CONCATENATE(Tabela4[[#This Row],[Unidade]],Tabela4[[#This Row],[hifen]],Tabela4[[#This Row],[codun]])","v":"UACIS-7105"},"DIREITOS HUMANOS",{"$f":"LEFT(Tabela4[[#This Row],[Cód]],4)","v":"7105"},"-",2,2,"UACIS",78]
[7106156,{"$f":"CONCATENATE(Tabela4[[#This Row],[Unidade]],Tabela4[[#This Row],[hifen]],Tabela4[[#This Row],[codun]])","v":"UAGESP-7106"},"DIREITOS HUMANOS E DESENVOLV. HUMANO",{"$f":"LEFT(Tabela4[[#This Row],[Cód]],4)","v":"7106"},"-",4,4,"UAGESP",79]
[7101189,{"$f":"CONCATENATE(Tabela4[[#This Row],[Unidade]],Tabela4[[#This Row],[hifen]],Tabela4[[#This Row],[codun]])","v":"UAEDUC-7101"},"DIREITOS HUMANOS E DESENVOLVIMENTO",{"$f":"LEFT(Tabela4[[#This Row],[Cód]],4)","v":"7101"},"-",4,4,"UAEDUC",80]
[7102248,{"$f":"CONCATENATE(Tabela4[[#This Row],[Unidade]],Tabela4[[#This Row],[hifen]],Tabela4[[#This Row],[codun]])","v":"UATEC-7102"},"DRENAGEM AGRICOLA",{"$f":"LEFT(Tabela4[[#This Row],[Cód]],4)","v":"7102"},"-",4,4,"UATEC",81]
[7101128,{"$f":"CONCATENATE(Tabela4[[#This Row],[Unidade]],Tabela4[[#This Row],[hifen]],Tabela4[[#This Row],[codun]])","v":"UAEDUC-7101"},"ECOLOGIA DO SEMIARIDO",{"$f":"LEFT(Tabela4[[#This Row],[Cód]],4)","v":"7101"},"-",2,2,"UAEDUC",82]
[7102035,{"$f":"CONCATENATE(Tabela4[[#This Row],[Unidade]],Tabela4[[#This Row],[hifen]],Tabela4[[#This Row],[codun]])","v":"UATEC-7102"},"ECOLOGIA DO SEMIARIDO",{"$f":"LEFT(Tabela4[[#This Row],[Cód]],4)","v":"7102"},"-",4,4,"UATEC",83]
[7106132,{"$f":"CONCATENATE(Tabela4[[#This Row],[Unidade]],Tabela4[[#This Row],[hifen]],Tabela4[[#This Row],[codun]])","v":"UAGESP-7106"},"ECONOMIA",{"$f":"LEFT(Tabela4[[#This Row],[Cód]],4)","v":"7106"},"-",2,2,"UAGESP",84]
[7106184,{"$f":"CONCATENATE(Tabela4[[#This Row],[Unidade]],Tabela4[[#This Row],[hifen]],Tabela4[[#This Row],[codun]])","v":"UAGESP-7106"},"ECONOMIA POLÍTICA",{"$f":"LEFT(Tabela4[[#This Row],[Cód]],4)","v":"7106"},"-",4,4,"UAGESP",85]
[7106181,{"$f":"CONCATENATE(Tabela4[[#This Row],[Unidade]],Tabela4[[#This Row],[hifen]],Tabela4[[#This Row],[codun]])","v":"UAGESP-7106"},"ECONOMIA RURAL",{"$f":"LEFT(Tabela4[[#This Row],[Cód]],4)","v":"7106"},"-",4,4,"UAGESP",86]
[7106106,{"$f":"CONCATENATE(Tabela4[[#This Row],[Unidade]],Tabela4[[#This Row],[hifen]],Tabela4[[#This Row],[codun]])","v":"UAGESP-7106"},"ECONOMIA SOLIDARIA E AUTOGESTAO",{"$f":"LEFT(Tabela4[[#This Row],[Cód]],4)","v":"7106"},"-",4,4,"UAGESP",87]
[7101150,{"$f":"CONCATENATE(Tabela4[[#This Row],[Unidade]],Tabela4[[#This Row],[hifen]],Tabela4[[#This Row],[codun]])","v":"UAEDUC-7101"},"ED. FÍSICA NO ENS. FUND. E ENS. MÉDIO",{"$f":"LEFT(Tabela4[[#This Row],[Cód]],4)","v":"7101"},"-",4,4,"UAEDUC",88]
[7101114,{"$f":"CONCATENATE(Tabela4[[#This Row],[Unidade]],Tabela4[[#This Row],[hifen]],Tabela4[[#This Row],[codun]])","v":"UAEDUC-7101"},"EDUCAÇÃO DE JOVENS E ADULTOS",{"$f":"LEFT(Tabela4[[#This Row],[Cód]],4)","v":"7101"},"-",4,4,"UAEDUC",89]
[7101016,{"$f":"CONCATENATE(Tabela4[[#This Row],[Unidade]],Tabela4[[#This Row],[hifen]],Tabela4[[#This Row],[codun]])","v":"UAEDUC-7101"},"EDUCAÇÃO DO CAMPO",{"$f":"LEFT(Tabela4[[#This Row],[Cód]],4)","v":"7101"},"-",4,4,"UAEDUC",90]
[7101067,{"$f":"CONCATENATE(Tabela4[[#This Row],[Unidade]],Tabela4[[#This Row],[hifen]],Tabela4[[#This Row],[codun]])","v":"UAEDUC-7101"},"EDUCAÇÃO ESPECIAL",{"$f":"LEFT(Tabela4[[#This Row],[Cód]],4)","v":"7101"},"-",4,4,"UAEDUC",91]
[7101100,{"$f":"CONCATENATE(Tabela4[[#This Row],[Unidade]],Tabela4[[#This Row],[hifen]],Tabela4[[#This Row],[codun]])","v":"UAEDUC-7101"},"EDUCAÇÃO MUSICAL",{"$f":"LEFT(Tabela4[[#This Row],[Cód]],4)","v":"7101"},"-",2,2,"UAEDUC",92]
[7101069,{"$f":"CONCATENATE(Tabela4[[#This Row],[Unidade]],Tabela4[[#This Row],[hifen]],Tabela4[[#This Row],[codun]])","v":"UAEDUC-7101"},"EDUCAÇÃO POPULAR E MOVIMENTOS SOCIAIS",{"$f":"LEFT(Tabela4[[#This Row],[Cód]],4)","v":"7101"},"-",4,4,"UAEDUC",93]
[7106152,{"$f":"CONCATENATE(Tabela4[[#This Row],[Unidade]],Tabela4[[#This Row],[hifen]],Tabela4[[#This Row],[codun]])","v":"UAGESP-7106"},"ELAB DE PROJ E CAPT DE RECURS PUBLICOS",{"$f":"LEFT(Tabela4[[#This Row],[Cód]],4)","v":"7106"},"-",4,4,"UAGESP",94]
[7102238,{"$f":"CONCATENATE(Tabela4[[#This Row],[Unidade]],Tabela4[[#This Row],[hifen]],Tabela4[[#This Row],[codun]])","v":"UATEC-7102"},"ELABORAÇÃO E AVAL. DE PROJ. ECONÔMICOS",{"$f":"LEFT(Tabela4[[#This Row],[Cód]],4)","v":"7102"},"-",4,4,"UATEC",95]
[7102075,{"$f":"CONCATENATE(Tabela4[[#This Row],[Unidade]],Tabela4[[#This Row],[hifen]],Tabela4[[#This Row],[codun]])","v":"UATEC-7102"},"ELETRICIDADE BASICA",{"$f":"LEFT(Tabela4[[#This Row],[Cód]],4)","v":"7102"},"-",2,2,"UATEC",96]
[7103090,{"$f":"CONCATENATE(Tabela4[[#This Row],[Unidade]],Tabela4[[#This Row],[hifen]],Tabela4[[#This Row],[codun]])","v":"UAEB-7103"},"EMBRIOLOGIA",{"$f":"LEFT(Tabela4[[#This Row],[Cód]],4)","v":"7103"},"-",4,{"$f":"F98","v":4},"UAEB",97]
[7102038,{"$f":"CONCATENATE(Tabela4[[#This Row],[Unidade]],Tabela4[[#This Row],[hifen]],Tabela4[[#This Row],[codun]])","v":"UATEC-7102"},"ENTOMOLOGIA GERAL",{"$f":"LEFT(Tabela4[[#This Row],[Cód]],4)","v":"7102"},"-",2,2,"UATEC",98]
[7103072,{"$f":"CONCATENATE(Tabela4[[#This Row],[Unidade]],Tabela4[[#This Row],[hifen]],Tabela4[[#This Row],[codun]])","v":"UAEB-7103"},"ENZIMOLOGIA E TECNOLOGIA DA FERMENTAÇÃO",{"$f":"LEFT(Tabela4[[#This Row],[Cód]],4)","v":"7103"},"-",4,4,"UAEB",99]
[7102020,{"$f":"CONCATENATE(Tabela4[[#This Row],[Unidade]],Tabela4[[#This Row],[hifen]],Tabela4[[#This Row],[codun]])","v":"UATEC-7102"},"EQUACOES DIFERENCIAIS LINEARES",{"$f":"LEFT(Tabela4[[#This Row],[Cód]],4)","v":"7102"},"-",4,4,"UATEC",100]
[7101086,{"$f":"CONCATENATE(Tabela4[[#This Row],[Unidade]],Tabela4[[#This Row],[hifen]],Tabela4[[#This Row],[codun]])","v":"UAEDUC-7101"},"ESPANHOL I",{"$f":"LEFT(Tabela4[[#This Row],[Cód]],4)","v":"7101"},"-",4,4,"UAEDUC",101]
[7101120,{"$f":"CONCATENATE(Tabela4[[#This Row],[Unidade]],Tabela4[[#This Row],[hifen]],Tabela4[[#This Row],[codun]])","v":"UAEDUC-7101"},"ESPANHOL II",{"$f":"LEFT(Tabela4[[#This Row],[Cód]],4)","v":"7101"},"-",4,4,"UAEDUC",102]
[7105113,{"$f":"CONCATENATE(Tabela4[[#This Row],[Unidade]],Tabela4[[#This Row],[hifen]],Tabela4[[#This Row],[codun]])","v":"UACIS-7105"},"ESTADO E POLITICAS PUBLICAS",{"$f":"LEFT(Tabela4[[#This Row],[Cód]],4)","v":"7105"},"-",4,4,"UACIS",103]
[7105160,{"$f":"CONCATENATE(Tabela4[[#This Row],[Unidade]],Tabela4[[#This Row],[hifen]],Tabela4[[#This Row],[codun]])","v":"UACIS-7105"},"ESTAGIO CURICULAR SUPERVISIONADO I",{"$f":"LEFT(Tabela4[[#This Row],[Cód]],4)","v":"7105"},"-",13,null,"UACIS",104]
[7102256,{"$f":"CONCATENATE(Tabela4[[#This Row],[Unidade]],Tabela4[[#This Row],[hifen]],Tabela4[[#This Row],[codun]])","v":"UATEC-7102"},"ESTAGIO CURRICULAR SUPERVISIONADO",{"$f":"LEFT(Tabela4[[#This Row],[Cód]],4)","v":"7102"},"-",10,null,"UATEC",105]
[7101092,{"$f":"CONCATENATE(Tabela4[[#This Row],[Unidade]],Tabela4[[#This Row],[hifen]],Tabela4[[#This Row],[codun]])","v":"UAEDUC-7101"},"ESTAGIO CURRICULAR SUPERVISIONADO I",{"$f":"LEFT(Tabela4[[#This Row],[Cód]],4)","v":"7101"},"-",6,null,"UAEDUC",106]
[7105165,{"$f":"CONCATENATE(Tabela4[[#This Row],[Unidade]],Tabela4[[#This Row],[hifen]],Tabela4[[#This Row],[codun]])","v":"UACIS-7105"},"ESTAGIO CURRICULAR SUPERVISIONADO II",{"$f":"LEFT(Tabela4[[#This Row],[Cód]],4)","v":"7105"},"-",14,null,"UACIS",107]
[7101116,{"$f":"CONCATENATE(Tabela4[[#This Row],[Unidade]],Tabela4[[#This Row],[hifen]],Tabela4[[#This Row],[codun]])","v":"UAEDUC-7101"},"ESTAGIO CURRICULAR SUPERVISIONADO II",{"$f":"LEFT(Tabela4[[#This Row],[Cód]],4)","v":"7101"},"-",6,null,"UAEDUC",108]
[7101140,{"$f":"CONCATENATE(Tabela4[[#This Row],[Unidade]],Tabela4[[#This Row],[hifen]],Tabela4[[#This Row],[codun]])","v":"UAEDUC-7101"},"ESTAGIO CURRICULAR SUPERVISIONADO III",{"$f":"LEFT(Tabela4[[#This Row],[Cód]],4)","v":"7101"},"-",9,null,"UAEDUC",109]
[7101168,{"$f":"CONCATENATE(Tabela4[[#This Row],[Unidade]],Tabela4[[#This Row],[hifen]],Tabela4[[#This Row],[codun]])","v":"UAEDUC-7101"},"ESTAGIO CURRICULAR SUPERVISIONADO IV",{"$f":"LEFT(Tabela4[[#This Row],[Cód]],4)","v":"7101"},"-",12,null,"UAEDUC",110]
[7106154,{"$f":"CONCATENATE(Tabela4[[#This Row],[Unidade]],Tabela4[[#This Row],[hifen]],Tabela4[[#This Row],[codun]])","v":"UAGESP-7106"},"ESTAGIO SUPERVISIONADO",{"$f":"LEFT(Tabela4[[#This Row],[Cód]],4)","v":"7106"},"-",4,null,"UAGESP",111]
[7103287,{"$f":"CONCATENATE(Tabela4[[#This Row],[Unidade]],Tabela4[[#This Row],[hifen]],Tabela4[[#This Row],[codun]])","v":"UAEB-7103"},"ESTAGIO SUPERVISIONADO",{"$f":"LEFT(Tabela4[[#This Row],[Cód]],4)","v":"7103"},"-",16,null,"UAEB",112]
[7102284,{"$f":"CONCATENATE(Tabela4[[#This Row],[Unidade]],Tabela4[[#This Row],[hifen]],Tabela4[[#This Row],[codun]])","v":"UATEC-7102"},"ESTAGIO SUPERVISIONADO",{"$f":"LEFT(Tabela4[[#This Row],[Cód]],4)","v":"7102"},"-",12,null,"UATEC",113]
[7106062,{"$f":"CONCATENATE(Tabela4[[#This Row],[Unidade]],Tabela4[[#This Row],[hifen]],Tabela4[[#This Row],[codun]])","v":"UAGESP-7106"},"ESTATÍSTICA BÁSICA",{"$f":"LEFT(Tabela4[[#This Row],[Cód]],4)","v":"7106"},"-",2,{"$f":"F115","v":2},"UAGESP",114]
[7103234,{"$f":"CONCATENATE(Tabela4[[#This Row],[Unidade]],Tabela4[[#This Row],[hifen]],Tabela4[[#This Row],[codun]])","v":"UAEB-7103"},"ESTATÍSTICA EXPERIMENTAL",{"$f":"LEFT(Tabela4[[#This Row],[Cód]],4)","v":"7103"},"-",4,4,"UAEB",115]
[7102294,{"$f":"CONCATENATE(Tabela4[[#This Row],[Unidade]],Tabela4[[#This Row],[hifen]],Tabela4[[#This Row],[codun]])","v":"UATEC-7102"},"ESTATÍSTICA EXPERIMENTAL",{"$f":"LEFT(Tabela4[[#This Row],[Cód]],4)","v":"7102"},"-",4,4,"UATEC",116]
[7101055,{"$f":"CONCATENATE(Tabela4[[#This Row],[Unidade]],Tabela4[[#This Row],[hifen]],Tabela4[[#This Row],[codun]])","v":"UAEDUC-7101"},"ESTUDO DO TEXTO DRAMATICO",{"$f":"LEFT(Tabela4[[#This Row],[Cód]],4)","v":"7101"},"-",4,4,"UAEDUC",117]
[7106064,{"$f":"CONCATENATE(Tabela4[[#This Row],[Unidade]],Tabela4[[#This Row],[hifen]],Tabela4[[#This Row],[codun]])","v":"UAGESP-7106"},"ÉTICA",{"$f":"LEFT(Tabela4[[#This Row],[Cód]],4)","v":"7106"},"-",2,2,"UAGESP",118]
[7105139,{"$f":"CONCATENATE(Tabela4[[#This Row],[Unidade]],Tabela4[[#This Row],[hifen]],Tabela4[[#This Row],[codun]])","v":"UACIS-7105"},"ETNOLOGIA INDIGENA NO BRASIL",{"$f":"LEFT(Tabela4[[#This Row],[Cód]],4)","v":"7105"},"-",4,4,"UACIS",119]
[7101031,{"$f":"CONCATENATE(Tabela4[[#This Row],[Unidade]],Tabela4[[#This Row],[hifen]],Tabela4[[#This Row],[codun]])","v":"UAEDUC-7101"},"ETNOMUSICOLOGIA",{"$f":"LEFT(Tabela4[[#This Row],[Cód]],4)","v":"7101"},"-",4,4,"UAEDUC",120]
[7102237,{"$f":"CONCATENATE(Tabela4[[#This Row],[Unidade]],Tabela4[[#This Row],[hifen]],Tabela4[[#This Row],[codun]])","v":"UATEC-7102"},"ETOLOGIA",{"$f":"LEFT(Tabela4[[#This Row],[Cód]],4)","v":"7102"},"-",4,4,"UATEC",121]
[7102298,{"$f":"CONCATENATE(Tabela4[[#This Row],[Unidade]],Tabela4[[#This Row],[hifen]],Tabela4[[#This Row],[codun]])","v":"UATEC-7102"},"EXTENSAO RURAL",{"$f":"LEFT(Tabela4[[#This Row],[Cód]],4)","v":"7102"},"-",4,4,"UATEC",122]
[7103124,{"$f":"CONCATENATE(Tabela4[[#This Row],[Unidade]],Tabela4[[#This Row],[hifen]],Tabela4[[#This Row],[codun]])","v":"UAEB-7103"},"FARMACOBIOTECNOLOGIA",{"$f":"LEFT(Tabela4[[#This Row],[Cód]],4)","v":"7103"},"-",4,4,"UAEB",123]
[7106059,{"$f":"CONCATENATE(Tabela4[[#This Row],[Unidade]],Tabela4[[#This Row],[hifen]],Tabela4[[#This Row],[codun]])","v":"UAGESP-7106"},"FEDERALISMO FISCAL",{"$f":"LEFT(Tabela4[[#This Row],[Cód]],4)","v":"7106"},"-",4,4,"UAGESP",124]
[7102065,{"$f":"CONCATENATE(Tabela4[[#This Row],[Unidade]],Tabela4[[#This Row],[hifen]],Tabela4[[#This Row],[codun]])","v":"UATEC-7102"},"FENOMENOS DE TRANSPORTE",{"$f":"LEFT(Tabela4[[#This Row],[Cód]],4)","v":"7102"},"-",4,4,"UATEC",125]
[7101095,{"$f":"CONCATENATE(Tabela4[[#This Row],[Unidade]],Tabela4[[#This Row],[hifen]],Tabela4[[#This Row],[codun]])","v":"UAEDUC-7101"},"FILOSOFIA CONTEMPORANEA",{"$f":"LEFT(Tabela4[[#This Row],[Cód]],4)","v":"7101"},"-",4,4,"UAEDUC",126]
[7101012,{"$f":"CONCATENATE(Tabela4[[#This Row],[Unidade]],Tabela4[[#This Row],[hifen]],Tabela4[[#This Row],[codun]])","v":"UAEDUC-7101"},"FILOSOFIA E EDUCAÇÃO",{"$f":"LEFT(Tabela4[[#This Row],[Cód]],4)","v":"7101"},"-",4,4,"UAEDUC",127]
[7106182,{"$f":"CONCATENATE(Tabela4[[#This Row],[Unidade]],Tabela4[[#This Row],[hifen]],Tabela4[[#This Row],[codun]])","v":"UAGESP-7106"},"FILOSOFIA POLITICA",{"$f":"LEFT(Tabela4[[#This Row],[Cód]],4)","v":"7106"},"-",2,2,"UAGESP",128]
[7103052,{"$f":"CONCATENATE(Tabela4[[#This Row],[Unidade]],Tabela4[[#This Row],[hifen]],Tabela4[[#This Row],[codun]])","v":"UAEB-7103"},"FÍSICO-QUÍMICA",{"$f":"LEFT(Tabela4[[#This Row],[Cód]],4)","v":"7103"},"-",4,4,"UAEB",129]
[7102048,{"$f":"CONCATENATE(Tabela4[[#This Row],[Unidade]],Tabela4[[#This Row],[hifen]],Tabela4[[#This Row],[codun]])","v":"UATEC-7102"},"FÍSICO-QUÍMICA DOS SOLOS",{"$f":"LEFT(Tabela4[[#This Row],[Cód]],4)","v":"7102"},"-",4,4,"UATEC",130]
[7103239,{"$f":"CONCATENATE(Tabela4[[#This Row],[Unidade]],Tabela4[[#This Row],[hifen]],Tabela4[[#This Row],[codun]])","v":"UAEB-7103"},"FISIOLOGIA MOLECULAR",{"$f":"LEFT(Tabela4[[#This Row],[Cód]],4)","v":"7103"},"-",4,4,"UAEB",131]
[7101163,{"$f":"CONCATENATE(Tabela4[[#This Row],[Unidade]],Tabela4[[#This Row],[hifen]],Tabela4[[#This Row],[codun]])","v":"UAEDUC-7101"},"FRANCES I",{"$f":"LEFT(Tabela4[[#This Row],[Cód]],4)","v":"7101"},"-",4,4,"UAEDUC",132]
[7101188,{"$f":"CONCATENATE(Tabela4[[#This Row],[Unidade]],Tabela4[[#This Row],[hifen]],Tabela4[[#This Row],[codun]])","v":"UAEDUC-7101"},"FRANCES II",{"$f":"LEFT(Tabela4[[#This Row],[Cód]],4)","v":"7101"},"-",4,4,"UAEDUC",133]
[7101098,{"$f":"CONCATENATE(Tabela4[[#This Row],[Unidade]],Tabela4[[#This Row],[hifen]],Tabela4[[#This Row],[codun]])","v":"UAEDUC-7101"},"FUND FONET E FONOLOG DA LINGUA PORTUGUES",{"$f":"LEFT(Tabela4[[#This Row],[Cód]],4)","v":"7101"},"-",4,4,"UAEDUC",134]
[7105010,{"$f":"CONCATENATE(Tabela4[[#This Row],[Unidade]],Tabela4[[#This Row],[hifen]],Tabela4[[#This Row],[codun]])","v":"UACIS-7105"},"FUND. DE PESQUISA EM CIÊNCIAS SOCIAIS",{"$f":"LEFT(Tabela4[[#This Row],[Cód]],4)","v":"7105"},"-",4,4,"UACIS",135]
[7101075,{"$f":"CONCATENATE(Tabela4[[#This Row],[Unidade]],Tabela4[[#This Row],[hifen]],Tabela4[[#This Row],[codun]])","v":"UAEDUC-7101"},"FUNDAMENTOS DA CIÊNCIA DA LINGUAGEM",{"$f":"LEFT(Tabela4[[#This Row],[Cód]],4)","v":"7101"},"-",4,4,"UAEDUC",136]
[7106025,{"$f":"CONCATENATE(Tabela4[[#This Row],[Unidade]],Tabela4[[#This Row],[hifen]],Tabela4[[#This Row],[codun]])","v":"UAGESP-7106"},"FUNDAMENTOS DA ECONOMIA",{"$f":"LEFT(Tabela4[[#This Row],[Cód]],4)","v":"7106"},"-",4,4,"UAGESP",137]
[7102034,{"$f":"CONCATENATE(Tabela4[[#This Row],[Unidade]],Tabela4[[#This Row],[hifen]],Tabela4[[#This Row],[codun]])","v":"UATEC-7102"},"FUNDAMENTOS DA PESQUISA AMBIENTAL",{"$f":"LEFT(Tabela4[[#This Row],[Cód]],4)","v":"7102"},"-",2,2,"UATEC",138]
[7101033,{"$f":"CONCATENATE(Tabela4[[#This Row],[Unidade]],Tabela4[[#This Row],[hifen]],Tabela4[[#This Row],[codun]])","v":"UAEDUC-7101"},"FUNDAMENTOS DAS LINGUAGENS ARTISTICAS",{"$f":"LEFT(Tabela4[[#This Row],[Cód]],4)","v":"7101"},"-",2,2,"UAEDUC",139]
[7103097,{"$f":"CONCATENATE(Tabela4[[#This Row],[Unidade]],Tabela4[[#This Row],[hifen]],Tabela4[[#This Row],[codun]])","v":"UAEB-7103"},"FUNDAMENTOS DE ENGENHARIA GENETICA",{"$f":"LEFT(Tabela4[[#This Row],[Cód]],4)","v":"7103"},"-",4,4,"UAEB",140]
[7106057,{"$f":"CONCATENATE(Tabela4[[#This Row],[Unidade]],Tabela4[[#This Row],[hifen]],Tabela4[[#This Row],[codun]])","v":"UAGESP-7106"},"FUNDAMENTOS DE SOCIOLOGIA",{"$f":"LEFT(Tabela4[[#This Row],[Cód]],4)","v":"7106"},"-",4,4,"UAGESP",141]
[7106023,{"$f":"CONCATENATE(Tabela4[[#This Row],[Unidade]],Tabela4[[#This Row],[hifen]],Tabela4[[#This Row],[codun]])","v":"UAGESP-7106"},"FUNDAMENTOS E TEORIAS DA ADMINISTRACAO",{"$f":"LEFT(Tabela4[[#This Row],[Cód]],4)","v":"7106"},"-",4,4,"UAGESP",142]
[7101004,{"$f":"CONCATENATE(Tabela4[[#This Row],[Unidade]],Tabela4[[#This Row],[hifen]],Tabela4[[#This Row],[codun]])","v":"UAEDUC-7101"},"FUNDAMENTOS HISTÓRICOS DA EDUCAÇÃO",{"$f":"LEFT(Tabela4[[#This Row],[Cód]],4)","v":"7101"},"-",4,4,"UAEDUC",143]
[7102049,{"$f":"CONCATENATE(Tabela4[[#This Row],[Unidade]],Tabela4[[#This Row],[hifen]],Tabela4[[#This Row],[codun]])","v":"UATEC-7102"},"GENESE E MORFOLOGIA DOS SOLOS",{"$f":"LEFT(Tabela4[[#This Row],[Cód]],4)","v":"7102"},"-",4,4,"UATEC",144]
[7103013,{"$f":"CONCATENATE(Tabela4[[#This Row],[Unidade]],Tabela4[[#This Row],[hifen]],Tabela4[[#This Row],[codun]])","v":"UAEB-7103"},"GENETICA MOLECULAR",{"$f":"LEFT(Tabela4[[#This Row],[Cód]],4)","v":"7103"},"-",4,4,"UAEB",145]
[7101052,{"$f":"CONCATENATE(Tabela4[[#This Row],[Unidade]],Tabela4[[#This Row],[hifen]],Tabela4[[#This Row],[codun]])","v":"UAEDUC-7101"},"GEOGRAFIA AGRARIA",{"$f":"LEFT(Tabela4[[#This Row],[Cód]],4)","v":"7101"},"-",4,4,"UAEDUC",146]
[7101141,{"$f":"CONCATENATE(Tabela4[[#This Row],[Unidade]],Tabela4[[#This Row],[hifen]],Tabela4[[#This Row],[codun]])","v":"UAEDUC-7101"},"GEOGRAFIA DA PARAIBA",{"$f":"LEFT(Tabela4[[#This Row],[Cód]],4)","v":"7101"},"-",4,4,"UAEDUC",147]
[7101094,{"$f":"CONCATENATE(Tabela4[[#This Row],[Unidade]],Tabela4[[#This Row],[hifen]],Tabela4[[#This Row],[codun]])","v":"UAEDUC-7101"},"GEOGRAFIA DO BRASIL",{"$f":"LEFT(Tabela4[[#This Row],[Cód]],4)","v":"7101"},"-",4,4,"UAEDUC",148]
[7101122,{"$f":"CONCATENATE(Tabela4[[#This Row],[Unidade]],Tabela4[[#This Row],[hifen]],Tabela4[[#This Row],[codun]])","v":"UAEDUC-7101"},"GEOMETRIA PLANA,ESPACIAL E ANALÍTICA",{"$f":"LEFT(Tabela4[[#This Row],[Cód]],4)","v":"7101"},"-",4,4,"UAEDUC",149]
[7102093,{"$f":"CONCATENATE(Tabela4[[#This Row],[Unidade]],Tabela4[[#This Row],[hifen]],Tabela4[[#This Row],[codun]])","v":"UATEC-7102"},"GEOPROCESSAMENTO",{"$f":"LEFT(Tabela4[[#This Row],[Cód]],4)","v":"7102"},"-",4,4,"UATEC",150]
[7102103,{"$f":"CONCATENATE(Tabela4[[#This Row],[Unidade]],Tabela4[[#This Row],[hifen]],Tabela4[[#This Row],[codun]])","v":"UATEC-7102"},"GESTAO AMBIENTAL",{"$f":"LEFT(Tabela4[[#This Row],[Cód]],4)","v":"7102"},"-",4,4,"UATEC",151]
[7106109,{"$f":"CONCATENATE(Tabela4[[#This Row],[Unidade]],Tabela4[[#This Row],[hifen]],Tabela4[[#This Row],[codun]])","v":"UAGESP-7106"},"GESTAO DAS ORGAN DO TERCEIRO SETOR",{"$f":"LEFT(Tabela4[[#This Row],[Cód]],4)","v":"7106"},"-",4,4,"UAGESP",152]
[7106060,{"$f":"CONCATENATE(Tabela4[[#This Row],[Unidade]],Tabela4[[#This Row],[hifen]],Tabela4[[#This Row],[codun]])","v":"UAGESP-7106"},"GESTAO DE PESSOAS NA ADM PUBLICA",{"$f":"LEFT(Tabela4[[#This Row],[Cód]],4)","v":"7106"},"-",4,4,"UAGESP",153]
[7102275,{"$f":"CONCATENATE(Tabela4[[#This Row],[Unidade]],Tabela4[[#This Row],[hifen]],Tabela4[[#This Row],[codun]])","v":"UATEC-7102"},"GESTAO DE RECURSOS HIDRICOS",{"$f":"LEFT(Tabela4[[#This Row],[Cód]],4)","v":"7102"},"-",4,4,"UATEC",154]
[7101068,{"$f":"CONCATENATE(Tabela4[[#This Row],[Unidade]],Tabela4[[#This Row],[hifen]],Tabela4[[#This Row],[codun]])","v":"UAEDUC-7101"},"GESTAO DOS PROCESSOS EDUCATIVOS",{"$f":"LEFT(Tabela4[[#This Row],[Cód]],4)","v":"7101"},"-",4,4,"UAEDUC",155]
[7103240,{"$f":"CONCATENATE(Tabela4[[#This Row],[Unidade]],Tabela4[[#This Row],[hifen]],Tabela4[[#This Row],[codun]])","v":"UAEB-7103"},"GESTAO E INOVACAO EM BIOTECNOLOGIA",{"$f":"LEFT(Tabela4[[#This Row],[Cód]],4)","v":"7103"},"-",4,4,"UAEB",156]
[7106107,{"$f":"CONCATENATE(Tabela4[[#This Row],[Unidade]],Tabela4[[#This Row],[hifen]],Tabela4[[#This Row],[codun]])","v":"UAGESP-7106"},"GESTAO PUBLICA SUSTENTAVEL",{"$f":"LEFT(Tabela4[[#This Row],[Cód]],4)","v":"7106"},"-",4,4,"UAGESP",157]
[7102119,{"$f":"CONCATENATE(Tabela4[[#This Row],[Unidade]],Tabela4[[#This Row],[hifen]],Tabela4[[#This Row],[codun]])","v":"UATEC-7102"},"GRANDES CULTIVOS",{"$f":"LEFT(Tabela4[[#This Row],[Cód]],4)","v":"7102"},"-",4,4,"UATEC",158]
[7102062,{"$f":"CONCATENATE(Tabela4[[#This Row],[Unidade]],Tabela4[[#This Row],[hifen]],Tabela4[[#This Row],[codun]])","v":"UATEC-7102"},"HIDRAULICA",{"$f":"LEFT(Tabela4[[#This Row],[Cód]],4)","v":"7102"},"-",4,4,"UATEC",159]
[7102120,{"$f":"CONCATENATE(Tabela4[[#This Row],[Unidade]],Tabela4[[#This Row],[hifen]],Tabela4[[#This Row],[codun]])","v":"UATEC-7102"},"HIDROLOGIA APLICADA",{"$f":"LEFT(Tabela4[[#This Row],[Cód]],4)","v":"7102"},"-",4,4,"UATEC",160]
[7102017,{"$f":"CONCATENATE(Tabela4[[#This Row],[Unidade]],Tabela4[[#This Row],[hifen]],Tabela4[[#This Row],[codun]])","v":"UATEC-7102"},"HIDROLOGIA E CLIMATOLOGIA DO SEMIARIDO",{"$f":"LEFT(Tabela4[[#This Row],[Cód]],4)","v":"7102"},"-",2,2,"UATEC",161]
[7101071,{"$f":"CONCATENATE(Tabela4[[#This Row],[Unidade]],Tabela4[[#This Row],[hifen]],Tabela4[[#This Row],[codun]])","v":"UAEDUC-7101"},"HISTÓRIA ANTIGA E MEDIEVAL",{"$f":"LEFT(Tabela4[[#This Row],[Cód]],4)","v":"7101"},"-",4,4,"UAEDUC",162]
[7101142,{"$f":"CONCATENATE(Tabela4[[#This Row],[Unidade]],Tabela4[[#This Row],[hifen]],Tabela4[[#This Row],[codun]])","v":"UAEDUC-7101"},"HISTÓRIA DA PARAÍBA",{"$f":"LEFT(Tabela4[[#This Row],[Cód]],4)","v":"7101"},"-",4,4,"UAEDUC",163]
[7101118,{"$f":"CONCATENATE(Tabela4[[#This Row],[Unidade]],Tabela4[[#This Row],[hifen]],Tabela4[[#This Row],[codun]])","v":"UAEDUC-7101"},"HISTÓRIA DO BRASIL",{"$f":"LEFT(Tabela4[[#This Row],[Cód]],4)","v":"7101"},"-",4,4,"UAEDUC",164]
[7105115,{"$f":"CONCATENATE(Tabela4[[#This Row],[Unidade]],Tabela4[[#This Row],[hifen]],Tabela4[[#This Row],[codun]])","v":"UACIS-7105"},"HISTÓRIA E CULTURA AFRO-BRASILEIRA",{"$f":"LEFT(Tabela4[[#This Row],[Cód]],4)","v":"7105"},"-",4,4,"UACIS",165]
[7101053,{"$f":"CONCATENATE(Tabela4[[#This Row],[Unidade]],Tabela4[[#This Row],[hifen]],Tabela4[[#This Row],[codun]])","v":"UAEDUC-7101"},"HISTÓRIA E LINGUAGEM",{"$f":"LEFT(Tabela4[[#This Row],[Cód]],4)","v":"7101"},"-",4,4,"UAEDUC",166]
[7101093,{"$f":"CONCATENATE(Tabela4[[#This Row],[Unidade]],Tabela4[[#This Row],[hifen]],Tabela4[[#This Row],[codun]])","v":"UAEDUC-7101"},"HISTÓRIA MODERNA E CONTEMPORÂNEA",{"$f":"LEFT(Tabela4[[#This Row],[Cód]],4)","v":"7101"},"-",4,4,"UAEDUC",167]
[7105050,{"$f":"CONCATENATE(Tabela4[[#This Row],[Unidade]],Tabela4[[#This Row],[hifen]],Tabela4[[#This Row],[codun]])","v":"UACIS-7105"},"HISTÓRIA SOCIAL DO CAMPESINATO",{"$f":"LEFT(Tabela4[[#This Row],[Cód]],4)","v":"7105"},"-",2,2,"UACIS",168]
[7102056,{"$f":"CONCATENATE(Tabela4[[#This Row],[Unidade]],Tabela4[[#This Row],[hifen]],Tabela4[[#This Row],[codun]])","v":"UATEC-7102"},"HORTICULTURA BASICA",{"$f":"LEFT(Tabela4[[#This Row],[Cód]],4)","v":"7102"},"-",2,2,"UATEC",169]
[7105203,{"$f":"CONCATENATE(Tabela4[[#This Row],[Unidade]],Tabela4[[#This Row],[hifen]],Tabela4[[#This Row],[codun]])","v":"UACIS-7105"},"IDENTIDADE E RELACOES INTERETNICAS",{"$f":"LEFT(Tabela4[[#This Row],[Cód]],4)","v":"7105"},"-",2,2,"UACIS",170]
[7105201,{"$f":"CONCATENATE(Tabela4[[#This Row],[Unidade]],Tabela4[[#This Row],[hifen]],Tabela4[[#This Row],[codun]])","v":"UACIS-7105"},"IDENTIDADE E TERRITORIALIDADE",{"$f":"LEFT(Tabela4[[#This Row],[Cód]],4)","v":"7105"},"-",2,2,"UACIS",171]
[7105119,{"$f":"CONCATENATE(Tabela4[[#This Row],[Unidade]],Tabela4[[#This Row],[hifen]],Tabela4[[#This Row],[codun]])","v":"UACIS-7105"},"IDENTIDADES E TERRITORIALIDADES",{"$f":"LEFT(Tabela4[[#This Row],[Cód]],4)","v":"7105"},"-",4,4,"UACIS",172]
[7102058,{"$f":"CONCATENATE(Tabela4[[#This Row],[Unidade]],Tabela4[[#This Row],[hifen]],Tabela4[[#This Row],[codun]])","v":"UATEC-7102"},"IMPACTOS E RECUP DE AREAS DEGRADADAS",{"$f":"LEFT(Tabela4[[#This Row],[Cód]],4)","v":"7102"},"-",4,4,"UATEC",173]
[7103127,{"$f":"CONCATENATE(Tabela4[[#This Row],[Unidade]],Tabela4[[#This Row],[hifen]],Tabela4[[#This Row],[codun]])","v":"UAEB-7103"},"IMUNOLOGIA GERAL E VACINOLOGIA",{"$f":"LEFT(Tabela4[[#This Row],[Cód]],4)","v":"7103"},"-",2,2,"UAEB",174]
[7101115,{"$f":"CONCATENATE(Tabela4[[#This Row],[Unidade]],Tabela4[[#This Row],[hifen]],Tabela4[[#This Row],[codun]])","v":"UAEDUC-7101"},"INFORMÁTICA BÁSICA",{"$f":"LEFT(Tabela4[[#This Row],[Cód]],4)","v":"7101"},"-",2,2,"UAEDUC",175]
[7101042,{"$f":"CONCATENATE(Tabela4[[#This Row],[Unidade]],Tabela4[[#This Row],[hifen]],Tabela4[[#This Row],[codun]])","v":"UAEDUC-7101"},"INGLES I",{"$f":"LEFT(Tabela4[[#This Row],[Cód]],4)","v":"7101"},"-",4,4,"UAEDUC",176]
[7101102,{"$f":"CONCATENATE(Tabela4[[#This Row],[Unidade]],Tabela4[[#This Row],[hifen]],Tabela4[[#This Row],[codun]])","v":"UAEDUC-7101"},"INGLES II",{"$f":"LEFT(Tabela4[[#This Row],[Cód]],4)","v":"7101"},"-",4,4,"UAEDUC",177]
[7102066,{"$f":"CONCATENATE(Tabela4[[#This Row],[Unidade]],Tabela4[[#This Row],[hifen]],Tabela4[[#This Row],[codun]])","v":"UATEC-7102"},"INST. ELÉTRICAS E EFICIÊNCIA ENERGÉTICA",{"$f":"LEFT(Tabela4[[#This Row],[Cód]],4)","v":"7102"},"-",4,{"$f":"F179","v":4},"UATEC",178]
[7106024,{"$f":"CONCATENATE(Tabela4[[#This Row],[Unidade]],Tabela4[[#This Row],[hifen]],Tabela4[[#This Row],[codun]])","v":"UAGESP-7106"},"INSTITUICOES DE DIREITO PUB E PRIVADO",{"$f":"LEFT(Tabela4[[#This Row],[Cód]],4)","v":"7106"},"-",4,4,"UAGESP",179]
[7103255,{"$f":"CONCATENATE(Tabela4[[#This Row],[Unidade]],Tabela4[[#This Row],[hifen]],Tabela4[[#This Row],[codun]])","v":"UAEB-7103"},"INSTRUMENTACAO E CONTROLE DE PROCESSOS",{"$f":"LEFT(Tabela4[[#This Row],[Cód]],4)","v":"7103"},"-",4,4,"UAEB",180]
[7102301,{"$f":"CONCATENATE(Tabela4[[#This Row],[Unidade]],Tabela4[[#This Row],[hifen]],Tabela4[[#This Row],[codun]])","v":"UATEC-7102"},"INSTRUMENTAÇÃO E EXPERIM.EM BIOSSISTEMAS",{"$f":"LEFT(Tabela4[[#This Row],[Cód]],4)","v":"7102"},"-",4,4,"UATEC",181]
[7102007,{"$f":"CONCATENATE(Tabela4[[#This Row],[Unidade]],Tabela4[[#This Row],[hifen]],Tabela4[[#This Row],[codun]])","v":"UATEC-7102"},"INT. A ENG. DE BIOSSISTEMAS",{"$f":"LEFT(Tabela4[[#This Row],[Cód]],4)","v":"7102"},"-",2,2,"UATEC",182]
[7103006,{"$f":"CONCATENATE(Tabela4[[#This Row],[Unidade]],Tabela4[[#This Row],[hifen]],Tabela4[[#This Row],[codun]])","v":"UAEB-7103"},"INT. A ENG. DE BIOTEC. E BIOPROCESSOS",{"$f":"LEFT(Tabela4[[#This Row],[Cód]],4)","v":"7103"},"-",2,2,"UAEB",183]
[7102064,{"$f":"CONCATENATE(Tabela4[[#This Row],[Unidade]],Tabela4[[#This Row],[hifen]],Tabela4[[#This Row],[codun]])","v":"UATEC-7102"},"INTROD A BIOLOGIA CELULAR E MOLECULAR",{"$f":"LEFT(Tabela4[[#This Row],[Cód]],4)","v":"7102"},"-",4,4,"UATEC",184]
[7101121,{"$f":"CONCATENATE(Tabela4[[#This Row],[Unidade]],Tabela4[[#This Row],[hifen]],Tabela4[[#This Row],[codun]])","v":"UAEDUC-7101"},"INTROD. A ANATOMIA E FISIOLOGIA HUMANA",{"$f":"LEFT(Tabela4[[#This Row],[Cód]],4)","v":"7101"},"-",4,4,"UAEDUC",185]
[7102047,{"$f":"CONCATENATE(Tabela4[[#This Row],[Unidade]],Tabela4[[#This Row],[hifen]],Tabela4[[#This Row],[codun]])","v":"UATEC-7102"},"INTRODUÇÃO À AGRICULTURA",{"$f":"LEFT(Tabela4[[#This Row],[Cód]],4)","v":"7102"},"-",2,2,"UATEC",186]
[7102018,{"$f":"CONCATENATE(Tabela4[[#This Row],[Unidade]],Tabela4[[#This Row],[hifen]],Tabela4[[#This Row],[codun]])","v":"UATEC-7102"},"INTRODUÇÃO À AGROECOLOGIA",{"$f":"LEFT(Tabela4[[#This Row],[Cód]],4)","v":"7102"},"-",4,4,"UATEC",187]
[7105008,{"$f":"CONCATENATE(Tabela4[[#This Row],[Unidade]],Tabela4[[#This Row],[hifen]],Tabela4[[#This Row],[codun]])","v":"UACIS-7105"},"INTRODUÇÃO À ANTROPOLOGIA",{"$f":"LEFT(Tabela4[[#This Row],[Cód]],4)","v":"7105"},"-",4,4,"UACIS",188]
[7102003,{"$f":"CONCATENATE(Tabela4[[#This Row],[Unidade]],Tabela4[[#This Row],[hifen]],Tabela4[[#This Row],[codun]])","v":"UATEC-7102"},"INTRODUÇÃO À CIÊNCIA DA COMPUTAÇÃO",{"$f":"LEFT(Tabela4[[#This Row],[Cód]],4)","v":"7102"},"-",4,4,"UATEC",189]
[7102014,{"$f":"CONCATENATE(Tabela4[[#This Row],[Unidade]],Tabela4[[#This Row],[hifen]],Tabela4[[#This Row],[codun]])","v":"UATEC-7102"},"INTRODUÇÃO À CIÊNCIA DOS MATERIAIS",{"$f":"LEFT(Tabela4[[#This Row],[Cód]],4)","v":"7102"},"-",2,2,"UATEC",190]
[7105009,{"$f":"CONCATENATE(Tabela4[[#This Row],[Unidade]],Tabela4[[#This Row],[hifen]],Tabela4[[#This Row],[codun]])","v":"UACIS-7105"},"INTRODUÇÃO À CIÊNCIA POLITICA",{"$f":"LEFT(Tabela4[[#This Row],[Cód]],4)","v":"7105"},"-",4,4,"UACIS",191]
[7101002,{"$f":"CONCATENATE(Tabela4[[#This Row],[Unidade]],Tabela4[[#This Row],[hifen]],Tabela4[[#This Row],[codun]])","v":"UAEDUC-7101"},"INTRODUÇÃO À FILOSOFIA",{"$f":"LEFT(Tabela4[[#This Row],[Cód]],4)","v":"7101"},"-",4,4,"UAEDUC",192]
[7101073,{"$f":"CONCATENATE(Tabela4[[#This Row],[Unidade]],Tabela4[[#This Row],[hifen]],Tabela4[[#This Row],[codun]])","v":"UAEDUC-7101"},"INTRODUÇÃO À FÍSICA GERAL I",{"$f":"LEFT(Tabela4[[#This Row],[Cód]],4)","v":"7101"},"-",4,4,"UAEDUC",193]
[7101096,{"$f":"CONCATENATE(Tabela4[[#This Row],[Unidade]],Tabela4[[#This Row],[hifen]],Tabela4[[#This Row],[codun]])","v":"UAEDUC-7101"},"INTRODUÇÃO À FÍSICA GERAL II",{"$f":"LEFT(Tabela4[[#This Row],[Cód]],4)","v":"7101"},"-",4,4,"UAEDUC",194]
[7101108,{"$f":"CONCATENATE(Tabela4[[#This Row],[Unidade]],Tabela4[[#This Row],[hifen]],Tabela4[[#This Row],[codun]])","v":"UAEDUC-7101"},"INTRODUÇÃO À FÍSICA GERAL III",{"$f":"LEFT(Tabela4[[#This Row],[Cód]],4)","v":"7101"},"-",4,4,"UAEDUC",195]
[7101070,{"$f":"CONCATENATE(Tabela4[[#This Row],[Unidade]],Tabela4[[#This Row],[hifen]],Tabela4[[#This Row],[codun]])","v":"UAEDUC-7101"},"INTRODUÇÃO À GEOGRAFIA",{"$f":"LEFT(Tabela4[[#This Row],[Cód]],4)","v":"7101"},"-",4,4,"UAEDUC",196]
[7103071,{"$f":"CONCATENATE(Tabela4[[#This Row],[Unidade]],Tabela4[[#This Row],[hifen]],Tabela4[[#This Row],[codun]])","v":"UAEB-7103"},"INTRODUÇÃO À QUÍMICA GERAL",{"$f":"LEFT(Tabela4[[#This Row],[Cód]],4)","v":"7103"},"-",4,4,"UAEB",197]
[7103107,{"$f":"CONCATENATE(Tabela4[[#This Row],[Unidade]],Tabela4[[#This Row],[hifen]],Tabela4[[#This Row],[codun]])","v":"UAEB-7103"},"INTRODUÇÃO À QUÍMICA INORGÂNICA",{"$f":"LEFT(Tabela4[[#This Row],[Cód]],4)","v":"7103"},"-",4,4,"UAEB",198]
[7101145,{"$f":"CONCATENATE(Tabela4[[#This Row],[Unidade]],Tabela4[[#This Row],[hifen]],Tabela4[[#This Row],[codun]])","v":"UAEDUC-7101"},"INTRODUÇÃO À QUÍMICA ORGÂNICA",{"$f":"LEFT(Tabela4[[#This Row],[Cód]],4)","v":"7101"},"-",4,4,"UAEDUC",199]
[7101101,{"$f":"CONCATENATE(Tabela4[[#This Row],[Unidade]],Tabela4[[#This Row],[hifen]],Tabela4[[#This Row],[codun]])","v":"UAEDUC-7101"},"INTRODUÇÃO À SOCIOLINGUÍSTICA",{"$f":"LEFT(Tabela4[[#This Row],[Cód]],4)","v":"7101"},"-",2,2,"UAEDUC",200]
[7105003,{"$f":"CONCATENATE(Tabela4[[#This Row],[Unidade]],Tabela4[[#This Row],[hifen]],Tabela4[[#This Row],[codun]])","v":"UACIS-7105"},"INTRODUÇÃO À SOCIOLOGIA",{"$f":"LEFT(Tabela4[[#This Row],[Cód]],4)","v":"7105"},"-",4,4,"UACIS",201]
[7102026,{"$f":"CONCATENATE(Tabela4[[#This Row],[Unidade]],Tabela4[[#This Row],[hifen]],Tabela4[[#This Row],[codun]])","v":"UATEC-7102"},"INTRODUÇÃO À ZOOTECNIA",{"$f":"LEFT(Tabela4[[#This Row],[Cód]],4)","v":"7102"},"-",2,2,"UATEC",202]
[7102233,{"$f":"CONCATENATE(Tabela4[[#This Row],[Unidade]],Tabela4[[#This Row],[hifen]],Tabela4[[#This Row],[codun]])","v":"UATEC-7102"},"INTRODUÇÃO AO SENSORIAMENTO REMOTO",{"$f":"LEFT(Tabela4[[#This Row],[Cód]],4)","v":"7102"},"-",4,4,"UATEC",203]
[7101038,{"$f":"CONCATENATE(Tabela4[[#This Row],[Unidade]],Tabela4[[#This Row],[hifen]],Tabela4[[#This Row],[codun]])","v":"UAEDUC-7101"},"INTRODUÇÃO AOS ESTUDOS DE LING E CÓDIGOS",{"$f":"LEFT(Tabela4[[#This Row],[Cód]],4)","v":"7101"},"-",2,2,"UAEDUC",204]
[7101034,{"$f":"CONCATENATE(Tabela4[[#This Row],[Unidade]],Tabela4[[#This Row],[hifen]],Tabela4[[#This Row],[codun]])","v":"UAEDUC-7101"},"INTRODUÇÃO ÀS CIÊNCIAS DA NATUREZA",{"$f":"LEFT(Tabela4[[#This Row],[Cód]],4)","v":"7101"},"-",2,2,"UAEDUC",205]
[7101037,{"$f":"CONCATENATE(Tabela4[[#This Row],[Unidade]],Tabela4[[#This Row],[hifen]],Tabela4[[#This Row],[codun]])","v":"UAEDUC-7101"},"INTRODUÇÃO ÀS CIÊNCIAS HUMANAS E SOCIAIS",{"$f":"LEFT(Tabela4[[#This Row],[Cód]],4)","v":"7101"},"-",2,2,"UAEDUC",206]
[7102270,{"$f":"CONCATENATE(Tabela4[[#This Row],[Unidade]],Tabela4[[#This Row],[hifen]],Tabela4[[#This Row],[codun]])","v":"UATEC-7102"},"IRRIGACAO",{"$f":"LEFT(Tabela4[[#This Row],[Cód]],4)","v":"7102"},"-",4,4,"UATEC",207]
[7102084,{"$f":"CONCATENATE(Tabela4[[#This Row],[Unidade]],Tabela4[[#This Row],[hifen]],Tabela4[[#This Row],[codun]])","v":"UATEC-7102"},"IRRIGACAO E DRENAGEM",{"$f":"LEFT(Tabela4[[#This Row],[Cód]],4)","v":"7102"},"-",4,4,"UATEC",208]
[7101199,{"$f":"CONCATENATE(Tabela4[[#This Row],[Unidade]],Tabela4[[#This Row],[hifen]],Tabela4[[#This Row],[codun]])","v":"UAEDUC-7101"},"JOGO E CENA",{"$f":"LEFT(Tabela4[[#This Row],[Cód]],4)","v":"7101"},"-",4,4,"UAEDUC",209]
[7101054,{"$f":"CONCATENATE(Tabela4[[#This Row],[Unidade]],Tabela4[[#This Row],[hifen]],Tabela4[[#This Row],[codun]])","v":"UAEDUC-7101"},"JOGO E EDUCAÇÃO",{"$f":"LEFT(Tabela4[[#This Row],[Cód]],4)","v":"7101"},"-",4,4,"UAEDUC",210]
[7102112,{"$f":"CONCATENATE(Tabela4[[#This Row],[Unidade]],Tabela4[[#This Row],[hifen]],Tabela4[[#This Row],[codun]])","v":"UATEC-7102"},"LAB DE DIAGNOSE E USO DO SOLO",{"$f":"LEFT(Tabela4[[#This Row],[Cód]],4)","v":"7102"},"-",2,2,"UATEC",211]
[7101185,{"$f":"CONCATENATE(Tabela4[[#This Row],[Unidade]],Tabela4[[#This Row],[hifen]],Tabela4[[#This Row],[codun]])","v":"UAEDUC-7101"},"LAB DE ENSINO E PESQUISA DA LIBRAS",{"$f":"LEFT(Tabela4[[#This Row],[Cód]],4)","v":"7101"},"-",4,4,"UAEDUC",212]
[7102069,{"$f":"CONCATENATE(Tabela4[[#This Row],[Unidade]],Tabela4[[#This Row],[hifen]],Tabela4[[#This Row],[codun]])","v":"UATEC-7102"},"LAB DE FENOMENOS DE TRANSPORTE",{"$f":"LEFT(Tabela4[[#This Row],[Cód]],4)","v":"7102"},"-",4,4,"UATEC",213]
[7101040,{"$f":"CONCATENATE(Tabela4[[#This Row],[Unidade]],Tabela4[[#This Row],[hifen]],Tabela4[[#This Row],[codun]])","v":"UAEDUC-7101"},"LAB DE PES E PRAT PED EM ED DO CAMPO III",{"$f":"LEFT(Tabela4[[#This Row],[Cód]],4)","v":"7101"},"-",4,4,"UAEDUC",214]
[7101041,{"$f":"CONCATENATE(Tabela4[[#This Row],[Unidade]],Tabela4[[#This Row],[hifen]],Tabela4[[#This Row],[codun]])","v":"UAEDUC-7101"},"LAB DE PES E PRAT PED EM ED DO CAMPO IV",{"$f":"LEFT(Tabela4[[#This Row],[Cód]],4)","v":"7101"},"-",4,4,"UAEDUC",215]
[7101018,{"$f":"CONCATENATE(Tabela4[[#This Row],[Unidade]],Tabela4[[#This Row],[hifen]],Tabela4[[#This Row],[codun]])","v":"UAEDUC-7101"},"LAB DE PESQ E PRAT PED EM EDUC CAMPO II",{"$f":"LEFT(Tabela4[[#This Row],[Cód]],4)","v":"7101"},"-",4,4,"UAEDUC",216]
[7105081,{"$f":"CONCATENATE(Tabela4[[#This Row],[Unidade]],Tabela4[[#This Row],[hifen]],Tabela4[[#This Row],[codun]])","v":"UACIS-7105"},"LAB DE PESQ E PRAT PEDA EM C SOCIAIS III",{"$f":"LEFT(Tabela4[[#This Row],[Cód]],4)","v":"7105"},"-",4,4,"UACIS",217]
[7105090,{"$f":"CONCATENATE(Tabela4[[#This Row],[Unidade]],Tabela4[[#This Row],[hifen]],Tabela4[[#This Row],[codun]])","v":"UACIS-7105"},"LAB DE PESQ E PRAT PEDA EM C SOCIAIS IV",{"$f":"LEFT(Tabela4[[#This Row],[Cód]],4)","v":"7105"},"-",4,4,"UACIS",218]
[7105022,{"$f":"CONCATENATE(Tabela4[[#This Row],[Unidade]],Tabela4[[#This Row],[hifen]],Tabela4[[#This Row],[codun]])","v":"UACIS-7105"},"LAB DE PESQ E PRAT PEDAG EM C SOCIAIS I",{"$f":"LEFT(Tabela4[[#This Row],[Cód]],4)","v":"7105"},"-",4,4,"UACIS",219]
[7105046,{"$f":"CONCATENATE(Tabela4[[#This Row],[Unidade]],Tabela4[[#This Row],[hifen]],Tabela4[[#This Row],[codun]])","v":"UACIS-7105"},"LAB DE PESQ E PRAT PEDAG EM C SOCIAIS II",{"$f":"LEFT(Tabela4[[#This Row],[Cód]],4)","v":"7105"},"-",4,4,"UACIS",220]
[7105133,{"$f":"CONCATENATE(Tabela4[[#This Row],[Unidade]],Tabela4[[#This Row],[hifen]],Tabela4[[#This Row],[codun]])","v":"UACIS-7105"},"LAB DE PESQ E PRAT PEDAG EM C SOCIAIS V",{"$f":"LEFT(Tabela4[[#This Row],[Cód]],4)","v":"7105"},"-",4,4,"UACIS",221]
[7106027,{"$f":"CONCATENATE(Tabela4[[#This Row],[Unidade]],Tabela4[[#This Row],[hifen]],Tabela4[[#This Row],[codun]])","v":"UAGESP-7106"},"LAB DE PESQUISA EM POLITICAS PUBLICAS I",{"$f":"LEFT(Tabela4[[#This Row],[Cód]],4)","v":"7106"},"-",2,2,"UAGESP",222]
[7102087,{"$f":"CONCATENATE(Tabela4[[#This Row],[Unidade]],Tabela4[[#This Row],[hifen]],Tabela4[[#This Row],[codun]])","v":"UATEC-7102"},"LAB DE PROD DE DEFENSIVOS AGROECOLOGICOS",{"$f":"LEFT(Tabela4[[#This Row],[Cód]],4)","v":"7102"},"-",2,2,"UATEC",223]
[7105036,{"$f":"CONCATENATE(Tabela4[[#This Row],[Unidade]],Tabela4[[#This Row],[hifen]],Tabela4[[#This Row],[codun]])","v":"UACIS-7105"},"LAB PESQ E EXT EM DES RURAL I",{"$f":"LEFT(Tabela4[[#This Row],[Cód]],4)","v":"7105"},"-",6,6,"UACIS",224]
[7103054,{"$f":"CONCATENATE(Tabela4[[#This Row],[Unidade]],Tabela4[[#This Row],[hifen]],Tabela4[[#This Row],[codun]])","v":"UAEB-7103"},"LAB. DE BIOQUÍMICA E BIOLOGIA MOLECULAR",{"$f":"LEFT(Tabela4[[#This Row],[Cód]],4)","v":"7103"},"-",4,4,"UAEB",225]
[7101183,{"$f":"CONCATENATE(Tabela4[[#This Row],[Unidade]],Tabela4[[#This Row],[hifen]],Tabela4[[#This Row],[codun]])","v":"UAEDUC-7101"},"LAB. DE MATEMÁTICA PARA EDUC. DO CAMPO",{"$f":"LEFT(Tabela4[[#This Row],[Cód]],4)","v":"7101"},"-",4,4,"UAEDUC",226]
[7101007,{"$f":"CONCATENATE(Tabela4[[#This Row],[Unidade]],Tabela4[[#This Row],[hifen]],Tabela4[[#This Row],[codun]])","v":"UAEDUC-7101"},"LAB. DE PESQ. E PRAT. PED.DE EDU CAMPO I",{"$f":"LEFT(Tabela4[[#This Row],[Cód]],4)","v":"7101"},"-",4,4,"UAEDUC",227]
[7102122,{"$f":"CONCATENATE(Tabela4[[#This Row],[Unidade]],Tabela4[[#This Row],[hifen]],Tabela4[[#This Row],[codun]])","v":"UATEC-7102"},"LABORATÓRIO DE HIDRÁULICA",{"$f":"LEFT(Tabela4[[#This Row],[Cód]],4)","v":"7102"},"-",2,2,"UATEC",228]
[7102236,{"$f":"CONCATENATE(Tabela4[[#This Row],[Unidade]],Tabela4[[#This Row],[hifen]],Tabela4[[#This Row],[codun]])","v":"UATEC-7102"},"LABORATÓRIO DE PROC DE PROD AGROPECUÁRIO",{"$f":"LEFT(Tabela4[[#This Row],[Cód]],4)","v":"7102"},"-",4,4,"UATEC",229]
[7101084,{"$f":"CONCATENATE(Tabela4[[#This Row],[Unidade]],Tabela4[[#This Row],[hifen]],Tabela4[[#This Row],[codun]])","v":"UAEDUC-7101"},"LINGUA BRASILEIRA DE SINAIS-LIBRAS",{"$f":"LEFT(Tabela4[[#This Row],[Cód]],4)","v":"7101"},"-",4,4,"UAEDUC",230]
[7101099,{"$f":"CONCATENATE(Tabela4[[#This Row],[Unidade]],Tabela4[[#This Row],[hifen]],Tabela4[[#This Row],[codun]])","v":"UAEDUC-7101"},"LITERATURA BRASILEIRA",{"$f":"LEFT(Tabela4[[#This Row],[Cód]],4)","v":"7101"},"-",4,4,"UAEDUC",231]
[7101126,{"$f":"CONCATENATE(Tabela4[[#This Row],[Unidade]],Tabela4[[#This Row],[hifen]],Tabela4[[#This Row],[codun]])","v":"UAEDUC-7101"},"LITERATURA E CULTURA POPULAR",{"$f":"LEFT(Tabela4[[#This Row],[Cód]],4)","v":"7101"},"-",2,2,"UAEDUC",232]
[7101148,{"$f":"CONCATENATE(Tabela4[[#This Row],[Unidade]],Tabela4[[#This Row],[hifen]],Tabela4[[#This Row],[codun]])","v":"UAEDUC-7101"},"LITERATURA INFANTIL",{"$f":"LEFT(Tabela4[[#This Row],[Cód]],4)","v":"7101"},"-",2,2,"UAEDUC",233]
[7106056,{"$f":"CONCATENATE(Tabela4[[#This Row],[Unidade]],Tabela4[[#This Row],[hifen]],Tabela4[[#This Row],[codun]])","v":"UAGESP-7106"},"LOGISTICA E PATRIMONIO NA ADM PUBLICA",{"$f":"LEFT(Tabela4[[#This Row],[Cód]],4)","v":"7106"},"-",4,4,"UAGESP",234]
[7102059,{"$f":"CONCATENATE(Tabela4[[#This Row],[Unidade]],Tabela4[[#This Row],[hifen]],Tabela4[[#This Row],[codun]])","v":"UATEC-7102"},"MANEJO AGROEC DE DOENCAS DE PLANTAS",{"$f":"LEFT(Tabela4[[#This Row],[Cód]],4)","v":"7102"},"-",4,4,"UATEC",235]
[7102282,{"$f":"CONCATENATE(Tabela4[[#This Row],[Unidade]],Tabela4[[#This Row],[hifen]],Tabela4[[#This Row],[codun]])","v":"UATEC-7102"},"MANEJO AGROEC E CONSERVACAO DOS SOLOS",{"$f":"LEFT(Tabela4[[#This Row],[Cód]],4)","v":"7102"},"-",4,4,"UATEC",236]
[7102060,{"$f":"CONCATENATE(Tabela4[[#This Row],[Unidade]],Tabela4[[#This Row],[hifen]],Tabela4[[#This Row],[codun]])","v":"UATEC-7102"},"MANEJO AGROECOLOGICO DE PRAGAS",{"$f":"LEFT(Tabela4[[#This Row],[Cód]],4)","v":"7102"},"-",2,2,"UATEC",237]
[7102299,{"$f":"CONCATENATE(Tabela4[[#This Row],[Unidade]],Tabela4[[#This Row],[hifen]],Tabela4[[#This Row],[codun]])","v":"UATEC-7102"},"MANEJO DE BACIAS HIDROGRAFICAS",{"$f":"LEFT(Tabela4[[#This Row],[Cód]],4)","v":"7102"},"-",2,2,"UATEC",238]
[7102076,{"$f":"CONCATENATE(Tabela4[[#This Row],[Unidade]],Tabela4[[#This Row],[hifen]],Tabela4[[#This Row],[codun]])","v":"UATEC-7102"},"MANEJO E CONSERVACAO DO SOLO E DA AGUA",{"$f":"LEFT(Tabela4[[#This Row],[Cód]],4)","v":"7102"},"-",4,4,"UATEC",239]
[7102302,{"$f":"CONCATENATE(Tabela4[[#This Row],[Unidade]],Tabela4[[#This Row],[hifen]],Tabela4[[#This Row],[codun]])","v":"UATEC-7102"},"MANEJO INTEGRADO DE DOENCAS DE PLANTAS",{"$f":"LEFT(Tabela4[[#This Row],[Cód]],4)","v":"7102"},"-",4,4,"UATEC",240]
[7102074,{"$f":"CONCATENATE(Tabela4[[#This Row],[Unidade]],Tabela4[[#This Row],[hifen]],Tabela4[[#This Row],[codun]])","v":"UATEC-7102"},"MÁQUINAS AGRÍCOLAS",{"$f":"LEFT(Tabela4[[#This Row],[Cód]],4)","v":"7102"},"-",4,4,"UATEC",241]
[7103113,{"$f":"CONCATENATE(Tabela4[[#This Row],[Unidade]],Tabela4[[#This Row],[hifen]],Tabela4[[#This Row],[codun]])","v":"UAEB-7103"},"MARCADORES MOLECULARES",{"$f":"LEFT(Tabela4[[#This Row],[Cód]],4)","v":"7103"},"-",4,{"$f":"F243","v":4},"UAEB",242]
[7106179,{"$f":"CONCATENATE(Tabela4[[#This Row],[Unidade]],Tabela4[[#This Row],[hifen]],Tabela4[[#This Row],[codun]])","v":"UAGESP-7106"},"MARKETING NA GESTAO PUBLICA",{"$f":"LEFT(Tabela4[[#This Row],[Cód]],4)","v":"7106"},"-",2,2,"UAGESP",243]
[7106048,{"$f":"CONCATENATE(Tabela4[[#This Row],[Unidade]],Tabela4[[#This Row],[hifen]],Tabela4[[#This Row],[codun]])","v":"UAGESP-7106"},"MATEMÁTICA FINANCEIRA",{"$f":"LEFT(Tabela4[[#This Row],[Cód]],4)","v":"7106"},"-",4,4,"UAGESP",244]
[7101039,{"$f":"CONCATENATE(Tabela4[[#This Row],[Unidade]],Tabela4[[#This Row],[hifen]],Tabela4[[#This Row],[codun]])","v":"UAEDUC-7101"},"MATEMÁTICA NA EDUCAÇÃO BÁSICA I",{"$f":"LEFT(Tabela4[[#This Row],[Cód]],4)","v":"7101"},"-",4,4,"UAEDUC",245]
[7101074,{"$f":"CONCATENATE(Tabela4[[#This Row],[Unidade]],Tabela4[[#This Row],[hifen]],Tabela4[[#This Row],[codun]])","v":"UAEDUC-7101"},"MATEMÁTICA NA EDUCAÇÃO BÁSICA II",{"$f":"LEFT(Tabela4[[#This Row],[Cód]],4)","v":"7101"},"-",4,4,"UAEDUC",246]
[7101097,{"$f":"CONCATENATE(Tabela4[[#This Row],[Unidade]],Tabela4[[#This Row],[hifen]],Tabela4[[#This Row],[codun]])","v":"UAEDUC-7101"},"MATEMÁTICA NA EDUCAÇÃO BÁSICA III",{"$f":"LEFT(Tabela4[[#This Row],[Cód]],4)","v":"7101"},"-",4,4,"UAEDUC",247]
[7102116,{"$f":"CONCATENATE(Tabela4[[#This Row],[Unidade]],Tabela4[[#This Row],[hifen]],Tabela4[[#This Row],[codun]])","v":"UATEC-7102"},"MATERIA ORGANICA E COMPOSTAGEM",{"$f":"LEFT(Tabela4[[#This Row],[Cód]],4)","v":"7102"},"-",4,4,"UATEC",248]
[7102044,{"$f":"CONCATENATE(Tabela4[[#This Row],[Unidade]],Tabela4[[#This Row],[hifen]],Tabela4[[#This Row],[codun]])","v":"UATEC-7102"},"MECÂNICA GERAL",{"$f":"LEFT(Tabela4[[#This Row],[Cód]],4)","v":"7102"},"-",4,4,"UATEC",249]
[7102293,{"$f":"CONCATENATE(Tabela4[[#This Row],[Unidade]],Tabela4[[#This Row],[hifen]],Tabela4[[#This Row],[codun]])","v":"UATEC-7102"},"MEIO AMBIENTE E TURISMO AGROECOLOGICO",{"$f":"LEFT(Tabela4[[#This Row],[Cód]],4)","v":"7102"},"-",2,2,"UATEC",250]
[7103125,{"$f":"CONCATENATE(Tabela4[[#This Row],[Unidade]],Tabela4[[#This Row],[hifen]],Tabela4[[#This Row],[codun]])","v":"UAEB-7103"},"MELHORAMENTO ANIMAL",{"$f":"LEFT(Tabela4[[#This Row],[Cód]],4)","v":"7103"},"-",4,4,"UAEB",251]
[7103073,{"$f":"CONCATENATE(Tabela4[[#This Row],[Unidade]],Tabela4[[#This Row],[hifen]],Tabela4[[#This Row],[codun]])","v":"UAEB-7103"},"MELHORAMENTO VEGETAL",{"$f":"LEFT(Tabela4[[#This Row],[Cód]],4)","v":"7103"},"-",4,4,"UAEB",252]
[7101147,{"$f":"CONCATENATE(Tabela4[[#This Row],[Unidade]],Tabela4[[#This Row],[hifen]],Tabela4[[#This Row],[codun]])","v":"UAEDUC-7101"},"MET DO ENS DE C EXAT E DA NAT NO ENS FUN",{"$f":"LEFT(Tabela4[[#This Row],[Cód]],4)","v":"7101"},"-",4,4,"UAEDUC",253]
[7101170,{"$f":"CONCATENATE(Tabela4[[#This Row],[Unidade]],Tabela4[[#This Row],[hifen]],Tabela4[[#This Row],[codun]])","v":"UAEDUC-7101"},"MET DO ENS DE C EXAT E DA NAT NO ENS MED",{"$f":"LEFT(Tabela4[[#This Row],[Cód]],4)","v":"7101"},"-",4,4,"UAEDUC",254]
[7101143,{"$f":"CONCATENATE(Tabela4[[#This Row],[Unidade]],Tabela4[[#This Row],[hifen]],Tabela4[[#This Row],[codun]])","v":"UAEDUC-7101"},"MET DO ENS DE C HUM E SOC NO ENS FUNDAM",{"$f":"LEFT(Tabela4[[#This Row],[Cód]],4)","v":"7101"},"-",4,4,"UAEDUC",255]
[7101169,{"$f":"CONCATENATE(Tabela4[[#This Row],[Unidade]],Tabela4[[#This Row],[hifen]],Tabela4[[#This Row],[codun]])","v":"UAEDUC-7101"},"MET DO ENS DE C HUM E SOC NO ENS MEDIO",{"$f":"LEFT(Tabela4[[#This Row],[Cód]],4)","v":"7101"},"-",4,4,"UAEDUC",256]
[7101171,{"$f":"CONCATENATE(Tabela4[[#This Row],[Unidade]],Tabela4[[#This Row],[hifen]],Tabela4[[#This Row],[codun]])","v":"UAEDUC-7101"},"MET DO ENS DE L EST NO ENS FUND E MEDIO",{"$f":"LEFT(Tabela4[[#This Row],[Cód]],4)","v":"7101"},"-",4,4,"UAEDUC",257]
[7101151,{"$f":"CONCATENATE(Tabela4[[#This Row],[Unidade]],Tabela4[[#This Row],[hifen]],Tabela4[[#This Row],[codun]])","v":"UAEDUC-7101"},"MET ENS DE LING PORT NO ENS FUND E MEDIO",{"$f":"LEFT(Tabela4[[#This Row],[Cód]],4)","v":"7101"},"-",4,4,"UAEDUC",258]
[7106019,{"$f":"CONCATENATE(Tabela4[[#This Row],[Unidade]],Tabela4[[#This Row],[hifen]],Tabela4[[#This Row],[codun]])","v":"UAGESP-7106"},"METODOLOGIA CIENTÍFICA",{"$f":"LEFT(Tabela4[[#This Row],[Cód]],4)","v":"7106"},"-",4,4,"UAGESP",259]
[7102027,{"$f":"CONCATENATE(Tabela4[[#This Row],[Unidade]],Tabela4[[#This Row],[hifen]],Tabela4[[#This Row],[codun]])","v":"UATEC-7102"},"METODOLOGIA CIENTÍFICA",{"$f":"LEFT(Tabela4[[#This Row],[Cód]],4)","v":"7102"},"-",4,4,"UATEC",260]
[7102033,{"$f":"CONCATENATE(Tabela4[[#This Row],[Unidade]],Tabela4[[#This Row],[hifen]],Tabela4[[#This Row],[codun]])","v":"UATEC-7102"},"METODOLOGIA DA PESQUISA E SEMINARIOS",{"$f":"LEFT(Tabela4[[#This Row],[Cód]],4)","v":"7102"},"-",4,4,"UATEC",261]
[7101197,{"$f":"CONCATENATE(Tabela4[[#This Row],[Unidade]],Tabela4[[#This Row],[hifen]],Tabela4[[#This Row],[codun]])","v":"UAEDUC-7101"},"METODOLOGIA DO LAZER E RECREACAO ESCOLAR",{"$f":"LEFT(Tabela4[[#This Row],[Cód]],4)","v":"7101"},"-",2,2,"UAEDUC",262]
[7102091,{"$f":"CONCATENATE(Tabela4[[#This Row],[Unidade]],Tabela4[[#This Row],[hifen]],Tabela4[[#This Row],[codun]])","v":"UATEC-7102"},"MICROBIOLOGIA",{"$f":"LEFT(Tabela4[[#This Row],[Cód]],4)","v":"7102"},"-",4,4,"UATEC",263]
[7101270,{"$f":"CONCATENATE(Tabela4[[#This Row],[Unidade]],Tabela4[[#This Row],[hifen]],Tabela4[[#This Row],[codun]])","v":"UAEDUC-7101"},"MICROBIOLOGIA BASICA",{"$f":"LEFT(Tabela4[[#This Row],[Cód]],4)","v":"7101"},"-",4,4,"UAEDUC",264]
[7103042,{"$f":"CONCATENATE(Tabela4[[#This Row],[Unidade]],Tabela4[[#This Row],[hifen]],Tabela4[[#This Row],[codun]])","v":"UAEB-7103"},"MICROBIOLOGIA GERAL",{"$f":"LEFT(Tabela4[[#This Row],[Cód]],4)","v":"7103"},"-",4,4,"UAEB",265]
[7102037,{"$f":"CONCATENATE(Tabela4[[#This Row],[Unidade]],Tabela4[[#This Row],[hifen]],Tabela4[[#This Row],[codun]])","v":"UATEC-7102"},"MICROBIOLOGIA GERAL E DO SOLO",{"$f":"LEFT(Tabela4[[#This Row],[Cód]],4)","v":"7102"},"-",2,2,"UATEC",266]
[7103123,{"$f":"CONCATENATE(Tabela4[[#This Row],[Unidade]],Tabela4[[#This Row],[hifen]],Tabela4[[#This Row],[codun]])","v":"UAEB-7103"},"MODELAGEM E SIMULACAO",{"$f":"LEFT(Tabela4[[#This Row],[Cód]],4)","v":"7103"},"-",4,4,"UAEB",267]
[7105204,{"$f":"CONCATENATE(Tabela4[[#This Row],[Unidade]],Tabela4[[#This Row],[hifen]],Tabela4[[#This Row],[codun]])","v":"UACIS-7105"},"MOVIMENTOS SOCIAIS",{"$f":"LEFT(Tabela4[[#This Row],[Cód]],4)","v":"7105"},"-",2,2,"UACIS",268]
[7101193,{"$f":"CONCATENATE(Tabela4[[#This Row],[Unidade]],Tabela4[[#This Row],[hifen]],Tabela4[[#This Row],[codun]])","v":"UAEDUC-7101"},"MOVIMENTOS SOCIAIS",{"$f":"LEFT(Tabela4[[#This Row],[Cód]],4)","v":"7101"},"-",2,2,"UAEDUC",269]
[7103299,{"$f":"CONCATENATE(Tabela4[[#This Row],[Unidade]],Tabela4[[#This Row],[hifen]],Tabela4[[#This Row],[codun]])","v":"UAEB-7103"},"NANOTECNOLOGIA",{"$f":"LEFT(Tabela4[[#This Row],[Cód]],4)","v":"7103"},"-",4,4,"UAEB",270]
[7102117,{"$f":"CONCATENATE(Tabela4[[#This Row],[Unidade]],Tabela4[[#This Row],[hifen]],Tabela4[[#This Row],[codun]])","v":"UATEC-7102"},"NUTRICAO MINERAL DE PLANTAS",{"$f":"LEFT(Tabela4[[#This Row],[Cód]],4)","v":"7102"},"-",4,4,"UATEC",271]
[7101125,{"$f":"CONCATENATE(Tabela4[[#This Row],[Unidade]],Tabela4[[#This Row],[hifen]],Tabela4[[#This Row],[codun]])","v":"UAEDUC-7101"},"OFICINA DE ARTES VISUAIS",{"$f":"LEFT(Tabela4[[#This Row],[Cód]],4)","v":"7101"},"-",2,2,"UAEDUC",272]
[7101164,{"$f":"CONCATENATE(Tabela4[[#This Row],[Unidade]],Tabela4[[#This Row],[hifen]],Tabela4[[#This Row],[codun]])","v":"UAEDUC-7101"},"OFICINA DE PESQUISA",{"$f":"LEFT(Tabela4[[#This Row],[Cód]],4)","v":"7101"},"-",2,2,"UAEDUC",273]
[7105158,{"$f":"CONCATENATE(Tabela4[[#This Row],[Unidade]],Tabela4[[#This Row],[hifen]],Tabela4[[#This Row],[codun]])","v":"UACIS-7105"},"OFICINA DE PROJETO DE PESQUISA",{"$f":"LEFT(Tabela4[[#This Row],[Cód]],4)","v":"7105"},"-",4,4,"UACIS",274]
[7101083,{"$f":"CONCATENATE(Tabela4[[#This Row],[Unidade]],Tabela4[[#This Row],[hifen]],Tabela4[[#This Row],[codun]])","v":"UAEDUC-7101"},"OFICINA DE TEATRO",{"$f":"LEFT(Tabela4[[#This Row],[Cód]],4)","v":"7101"},"-",4,4,"UAEDUC",275]
[7102095,{"$f":"CONCATENATE(Tabela4[[#This Row],[Unidade]],Tabela4[[#This Row],[hifen]],Tabela4[[#This Row],[codun]])","v":"UATEC-7102"},"OPERACOES UNITARIAS",{"$f":"LEFT(Tabela4[[#This Row],[Cód]],4)","v":"7102"},"-",4,4,"UATEC",276]
[7106065,{"$f":"CONCATENATE(Tabela4[[#This Row],[Unidade]],Tabela4[[#This Row],[hifen]],Tabela4[[#This Row],[codun]])","v":"UAGESP-7106"},"PADROES DE REL EXECUTIVO-LEGISLATIVO",{"$f":"LEFT(Tabela4[[#This Row],[Cód]],4)","v":"7106"},"-",4,4,"UAGESP",277]
[7101149,{"$f":"CONCATENATE(Tabela4[[#This Row],[Unidade]],Tabela4[[#This Row],[hifen]],Tabela4[[#This Row],[codun]])","v":"UAEDUC-7101"},"PEDAGOGIA DO TEATRO",{"$f":"LEFT(Tabela4[[#This Row],[Cód]],4)","v":"7101"},"-",2,2,"UAEDUC",278]
[7102061,{"$f":"CONCATENATE(Tabela4[[#This Row],[Unidade]],Tabela4[[#This Row],[hifen]],Tabela4[[#This Row],[codun]])","v":"UATEC-7102"},"PEDOLOGIA E CLASSIFICACAO DOS SOLOS",{"$f":"LEFT(Tabela4[[#This Row],[Cód]],4)","v":"7102"},"-",4,4,"UATEC",279]
[7105079,{"$f":"CONCATENATE(Tabela4[[#This Row],[Unidade]],Tabela4[[#This Row],[hifen]],Tabela4[[#This Row],[codun]])","v":"UACIS-7105"},"PENSAMENTO POLITICO BRASILEIRO",{"$f":"LEFT(Tabela4[[#This Row],[Cód]],4)","v":"7105"},"-",2,2,"UACIS",280]
[7102249,{"$f":"CONCATENATE(Tabela4[[#This Row],[Unidade]],Tabela4[[#This Row],[hifen]],Tabela4[[#This Row],[codun]])","v":"UATEC-7102"},"PERÍCIA TÉCNICA",{"$f":"LEFT(Tabela4[[#This Row],[Cód]],4)","v":"7102"},"-",2,2,"UATEC",281]
[7101005,{"$f":"CONCATENATE(Tabela4[[#This Row],[Unidade]],Tabela4[[#This Row],[hifen]],Tabela4[[#This Row],[codun]])","v":"UAEDUC-7101"},"PESQUISA EM EDUCAÇÃO",{"$f":"LEFT(Tabela4[[#This Row],[Cód]],4)","v":"7101"},"-",4,4,"UAEDUC",282]
[7103252,{"$f":"CONCATENATE(Tabela4[[#This Row],[Unidade]],Tabela4[[#This Row],[hifen]],Tabela4[[#This Row],[codun]])","v":"UAEB-7103"},"PLANEJAMENTO EXPERIMENTAL",{"$f":"LEFT(Tabela4[[#This Row],[Cód]],4)","v":"7103"},"-",4,4,"UAEB",283]
[7101017,{"$f":"CONCATENATE(Tabela4[[#This Row],[Unidade]],Tabela4[[#This Row],[hifen]],Tabela4[[#This Row],[codun]])","v":"UAEDUC-7101"},"POL. EDUC. E EDUCAÇÃO BÁSICA NO BRASIL",{"$f":"LEFT(Tabela4[[#This Row],[Cód]],4)","v":"7101"},"-",4,4,"UAEDUC",284]
[7101006,{"$f":"CONCATENATE(Tabela4[[#This Row],[Unidade]],Tabela4[[#This Row],[hifen]],Tabela4[[#This Row],[codun]])","v":"UAEDUC-7101"},"PRAT. DE LEITURA E PRODUCAO DE TEXTOS",{"$f":"LEFT(Tabela4[[#This Row],[Cód]],4)","v":"7101"},"-",4,4,"UAEDUC",285]
[7102092,{"$f":"CONCATENATE(Tabela4[[#This Row],[Unidade]],Tabela4[[#This Row],[hifen]],Tabela4[[#This Row],[codun]])","v":"UATEC-7102"},"PRINCIPIOS DE BIOCLIMATOLOGIA",{"$f":"LEFT(Tabela4[[#This Row],[Cód]],4)","v":"7102"},"-",2,2,"UATEC",286]
[7102021,{"$f":"CONCATENATE(Tabela4[[#This Row],[Unidade]],Tabela4[[#This Row],[hifen]],Tabela4[[#This Row],[codun]])","v":"UATEC-7102"},"PROBABILIDADE E ESTATÍSTICA",{"$f":"LEFT(Tabela4[[#This Row],[Cód]],4)","v":"7102"},"-",4,4,"UATEC",287]
[7102243,{"$f":"CONCATENATE(Tabela4[[#This Row],[Unidade]],Tabela4[[#This Row],[hifen]],Tabela4[[#This Row],[codun]])","v":"UATEC-7102"},"PROCESSAMENTO DE SINAIS EM BIOSSISTEMAS",{"$f":"LEFT(Tabela4[[#This Row],[Cód]],4)","v":"7102"},"-",4,4,"UATEC",288]
[7101124,{"$f":"CONCATENATE(Tabela4[[#This Row],[Unidade]],Tabela4[[#This Row],[hifen]],Tabela4[[#This Row],[codun]])","v":"UAEDUC-7101"},"PROCESSOS DE ALFABETIZACAO E LETRAMENTO",{"$f":"LEFT(Tabela4[[#This Row],[Cód]],4)","v":"7101"},"-",4,4,"UAEDUC",289]
[7103273,{"$f":"CONCATENATE(Tabela4[[#This Row],[Unidade]],Tabela4[[#This Row],[hifen]],Tabela4[[#This Row],[codun]])","v":"UAEB-7103"},"PROJETO DE INDUSTRIA DE BIOPROCESSOS",{"$f":"LEFT(Tabela4[[#This Row],[Cód]],4)","v":"7103"},"-",2,2,"UAEB",290]
[7106110,{"$f":"CONCATENATE(Tabela4[[#This Row],[Unidade]],Tabela4[[#This Row],[hifen]],Tabela4[[#This Row],[codun]])","v":"UAGESP-7106"},"PROJETO DE PESQUISA",{"$f":"LEFT(Tabela4[[#This Row],[Cód]],4)","v":"7106"},"-",2,2,"UAGESP",291]
[7101014,{"$f":"CONCATENATE(Tabela4[[#This Row],[Unidade]],Tabela4[[#This Row],[hifen]],Tabela4[[#This Row],[codun]])","v":"UAEDUC-7101"},"PSICOLOGIA E EDUCAÇÃO",{"$f":"LEFT(Tabela4[[#This Row],[Cód]],4)","v":"7101"},"-",4,4,"UAEDUC",292]
[7102245,{"$f":"CONCATENATE(Tabela4[[#This Row],[Unidade]],Tabela4[[#This Row],[hifen]],Tabela4[[#This Row],[codun]])","v":"UATEC-7102"},"QUALIDADE DE ÁGUA",{"$f":"LEFT(Tabela4[[#This Row],[Cód]],4)","v":"7102"},"-",4,4,"UATEC",293]
[7103025,{"$f":"CONCATENATE(Tabela4[[#This Row],[Unidade]],Tabela4[[#This Row],[hifen]],Tabela4[[#This Row],[codun]])","v":"UAEB-7103"},"QUÍMICA ANALÍTICA APLICADA",{"$f":"LEFT(Tabela4[[#This Row],[Cód]],4)","v":"7103"},"-",4,4,"UAEB",294]
[7103032,{"$f":"CONCATENATE(Tabela4[[#This Row],[Unidade]],Tabela4[[#This Row],[hifen]],Tabela4[[#This Row],[codun]])","v":"UAEB-7103"},"QUÍMICA ANALÍTICA APLICADA",{"$f":"LEFT(Tabela4[[#This Row],[Cód]],4)","v":"7103"},"-",2,2,"UAEB",295]
[7103005,{"$f":"CONCATENATE(Tabela4[[#This Row],[Unidade]],Tabela4[[#This Row],[hifen]],Tabela4[[#This Row],[codun]])","v":"UAEB-7103"},"QUÍMICA EXPERIMENTAL",{"$f":"LEFT(Tabela4[[#This Row],[Cód]],4)","v":"7103"},"-",2,2,"UAEB",296]
[7103004,{"$f":"CONCATENATE(Tabela4[[#This Row],[Unidade]],Tabela4[[#This Row],[hifen]],Tabela4[[#This Row],[codun]])","v":"UAEB-7103"},"QUÍMICA GERAL",{"$f":"LEFT(Tabela4[[#This Row],[Cód]],4)","v":"7103"},"-",4,4,"UAEB",297]
[7103041,{"$f":"CONCATENATE(Tabela4[[#This Row],[Unidade]],Tabela4[[#This Row],[hifen]],Tabela4[[#This Row],[codun]])","v":"UAEB-7103"},"QUÍMICA ORGÂNICA",{"$f":"LEFT(Tabela4[[#This Row],[Cód]],4)","v":"7103"},"-",4,4,"UAEB",298]
[7103251,{"$f":"CONCATENATE(Tabela4[[#This Row],[Unidade]],Tabela4[[#This Row],[hifen]],Tabela4[[#This Row],[codun]])","v":"UAEB-7103"},"RECUPERACAO E PURIFICACAO DE BIOPROCESSO",{"$f":"LEFT(Tabela4[[#This Row],[Cód]],4)","v":"7103"},"-",2,2,"UAEB",299]
[7103250,{"$f":"CONCATENATE(Tabela4[[#This Row],[Unidade]],Tabela4[[#This Row],[hifen]],Tabela4[[#This Row],[codun]])","v":"UAEB-7103"},"RELAÇÃO CIÊNCIA, TECNOLOGIA E SOCIEDADE",{"$f":"LEFT(Tabela4[[#This Row],[Cód]],4)","v":"7103"},"-",2,2,"UAEB",300]
[7105176,{"$f":"CONCATENATE(Tabela4[[#This Row],[Unidade]],Tabela4[[#This Row],[hifen]],Tabela4[[#This Row],[codun]])","v":"UACIS-7105"},"RELACOES DE GENERO E SEXUALIDADE",{"$f":"LEFT(Tabela4[[#This Row],[Cód]],4)","v":"7105"},"-",2,2,"UACIS",301]
[7102080,{"$f":"CONCATENATE(Tabela4[[#This Row],[Unidade]],Tabela4[[#This Row],[hifen]],Tabela4[[#This Row],[codun]])","v":"UATEC-7102"},"RESISTENCIA DOS MATERIAIS",{"$f":"LEFT(Tabela4[[#This Row],[Cód]],4)","v":"7102"},"-",4,4,"UATEC",302]
[7105206,{"$f":"CONCATENATE(Tabela4[[#This Row],[Unidade]],Tabela4[[#This Row],[hifen]],Tabela4[[#This Row],[codun]])","v":"UACIS-7105"},"SEA(ANTROPOLOGIA DA RESISTÊNCIA)",{"$f":"LEFT(Tabela4[[#This Row],[Cód]],4)","v":"7105"},"-",2,2,"UACIS",303]
[7105200,{"$f":"CONCATENATE(Tabela4[[#This Row],[Unidade]],Tabela4[[#This Row],[hifen]],Tabela4[[#This Row],[codun]])","v":"UACIS-7105"},"SEA(ANTROPOLOGIA VISUAL)",{"$f":"LEFT(Tabela4[[#This Row],[Cód]],4)","v":"7105"},"-",2,2,"UACIS",304]
[7105162,{"$f":"CONCATENATE(Tabela4[[#This Row],[Unidade]],Tabela4[[#This Row],[hifen]],Tabela4[[#This Row],[codun]])","v":"UACIS-7105"},"SEA(CULTURA POPULAR E TEATRO)",{"$f":"LEFT(Tabela4[[#This Row],[Cód]],4)","v":"7105"},"-",2,2,"UACIS",305]
[7105136,{"$f":"CONCATENATE(Tabela4[[#This Row],[Unidade]],Tabela4[[#This Row],[hifen]],Tabela4[[#This Row],[codun]])","v":"UACIS-7105"},"SEA(ETNOMUSICOLOGIA)",{"$f":"LEFT(Tabela4[[#This Row],[Cód]],4)","v":"7105"},"-",2,{"$f":"F307","v":2},"UACIS",306]
[7105105,{"$f":"CONCATENATE(Tabela4[[#This Row],[Unidade]],Tabela4[[#This Row],[hifen]],Tabela4[[#This Row],[codun]])","v":"UACIS-7105"},"SECP I(INST POLITICAS E DEMOCRACIA)",{"$f":"LEFT(Tabela4[[#This Row],[Cód]],4)","v":"7105"},"-",2,2,"UACIS",307]
[7105205,{"$f":"CONCATENATE(Tabela4[[#This Row],[Unidade]],Tabela4[[#This Row],[hifen]],Tabela4[[#This Row],[codun]])","v":"UACIS-7105"},"SECP(O GOLPE 2016 E O FUT DA DEMOC.NO BR",{"$f":"LEFT(Tabela4[[#This Row],[Cód]],4)","v":"7105"},"-",2,2,"UACIS",308]
[7101206,{"$f":"CONCATENATE(Tabela4[[#This Row],[Unidade]],Tabela4[[#This Row],[hifen]],Tabela4[[#This Row],[codun]])","v":"UAEDUC-7101"},"SEMINARIO TEMATICO EM EDUCACAO",{"$f":"LEFT(Tabela4[[#This Row],[Cód]],4)","v":"7101"},"-",4,4,"UAEDUC",309]
[7105135,{"$f":"CONCATENATE(Tabela4[[#This Row],[Unidade]],Tabela4[[#This Row],[hifen]],Tabela4[[#This Row],[codun]])","v":"UACIS-7105"},"SES(SOCIOLOGIA DA ARTE)",{"$f":"LEFT(Tabela4[[#This Row],[Cód]],4)","v":"7105"},"-",2,2,"UACIS",310]
[7105134,{"$f":"CONCATENATE(Tabela4[[#This Row],[Unidade]],Tabela4[[#This Row],[hifen]],Tabela4[[#This Row],[codun]])","v":"UACIS-7105"},"SES(SOCIOLOGIA DE BOURDIEU)",{"$f":"LEFT(Tabela4[[#This Row],[Cód]],4)","v":"7105"},"-",2,2,"UACIS",311]
[7102242,{"$f":"CONCATENATE(Tabela4[[#This Row],[Unidade]],Tabela4[[#This Row],[hifen]],Tabela4[[#This Row],[codun]])","v":"UATEC-7102"},"SISTEMAS AGROFLORESTAIS NO SEMIÁRIDO",{"$f":"LEFT(Tabela4[[#This Row],[Cód]],4)","v":"7102"},"-",2,2,"UATEC",312]
[7102104,{"$f":"CONCATENATE(Tabela4[[#This Row],[Unidade]],Tabela4[[#This Row],[hifen]],Tabela4[[#This Row],[codun]])","v":"UATEC-7102"},"SISTEMAS AGROINDUSTRIAIS",{"$f":"LEFT(Tabela4[[#This Row],[Cód]],4)","v":"7102"},"-",4,4,"UATEC",313]
[7105187,{"$f":"CONCATENATE(Tabela4[[#This Row],[Unidade]],Tabela4[[#This Row],[hifen]],Tabela4[[#This Row],[codun]])","v":"UACIS-7105"},"SOCIEDADE,CULTURA E CINEMA",{"$f":"LEFT(Tabela4[[#This Row],[Cód]],4)","v":"7105"},"-",2,2,"UACIS",314]
[7105131,{"$f":"CONCATENATE(Tabela4[[#This Row],[Unidade]],Tabela4[[#This Row],[hifen]],Tabela4[[#This Row],[codun]])","v":"UACIS-7105"},"SOCIEDADES CAMPONESAS",{"$f":"LEFT(Tabela4[[#This Row],[Cód]],4)","v":"7105"},"-",4,4,"UACIS",315]
[7105161,{"$f":"CONCATENATE(Tabela4[[#This Row],[Unidade]],Tabela4[[#This Row],[hifen]],Tabela4[[#This Row],[codun]])","v":"UACIS-7105"},"SOCIEDADES INDIGENAS",{"$f":"LEFT(Tabela4[[#This Row],[Cód]],4)","v":"7105"},"-",2,2,"UACIS",316]
[7105180,{"$f":"CONCATENATE(Tabela4[[#This Row],[Unidade]],Tabela4[[#This Row],[hifen]],Tabela4[[#This Row],[codun]])","v":"UACIS-7105"},"SOCIOLOGIA AMBIENTAL",{"$f":"LEFT(Tabela4[[#This Row],[Cód]],4)","v":"7105"},"-",2,2,"UACIS",317]
[7105072,{"$f":"CONCATENATE(Tabela4[[#This Row],[Unidade]],Tabela4[[#This Row],[hifen]],Tabela4[[#This Row],[codun]])","v":"UACIS-7105"},"SOCIOLOGIA BRASILEIRA",{"$f":"LEFT(Tabela4[[#This Row],[Cód]],4)","v":"7105"},"-",2,2,"UACIS",318]
[7105130,{"$f":"CONCATENATE(Tabela4[[#This Row],[Unidade]],Tabela4[[#This Row],[hifen]],Tabela4[[#This Row],[codun]])","v":"UACIS-7105"},"SOCIOLOGIA CONTEMPORANEA",{"$f":"LEFT(Tabela4[[#This Row],[Cód]],4)","v":"7105"},"-",2,2,"UACIS",319]
[7105202,{"$f":"CONCATENATE(Tabela4[[#This Row],[Unidade]],Tabela4[[#This Row],[hifen]],Tabela4[[#This Row],[codun]])","v":"UACIS-7105"},"SOCIOLOGIA DA RELIGIAO",{"$f":"LEFT(Tabela4[[#This Row],[Cód]],4)","v":"7105"},"-",2,2,"UACIS",320]
[7105159,{"$f":"CONCATENATE(Tabela4[[#This Row],[Unidade]],Tabela4[[#This Row],[hifen]],Tabela4[[#This Row],[codun]])","v":"UACIS-7105"},"SOCIOLOGIA DO DESENVOLVIMENTO",{"$f":"LEFT(Tabela4[[#This Row],[Cód]],4)","v":"7105"},"-",2,2,"UACIS",321]
[7105011,{"$f":"CONCATENATE(Tabela4[[#This Row],[Unidade]],Tabela4[[#This Row],[hifen]],Tabela4[[#This Row],[codun]])","v":"UACIS-7105"},"SOCIOLOGIA E CIDADANIA",{"$f":"LEFT(Tabela4[[#This Row],[Cód]],4)","v":"7105"},"-",4,4,"UACIS",322]
[7105013,{"$f":"CONCATENATE(Tabela4[[#This Row],[Unidade]],Tabela4[[#This Row],[hifen]],Tabela4[[#This Row],[codun]])","v":"UACIS-7105"},"SOCIOLOGIA E EDUCAÇÃO",{"$f":"LEFT(Tabela4[[#This Row],[Cód]],4)","v":"7105"},"-",4,4,"UACIS",323]
[7105089,{"$f":"CONCATENATE(Tabela4[[#This Row],[Unidade]],Tabela4[[#This Row],[hifen]],Tabela4[[#This Row],[codun]])","v":"UACIS-7105"},"SOCIOLOGIA RURAL",{"$f":"LEFT(Tabela4[[#This Row],[Cód]],4)","v":"7105"},"-",4,4,"UACIS",324]
[7105178,{"$f":"CONCATENATE(Tabela4[[#This Row],[Unidade]],Tabela4[[#This Row],[hifen]],Tabela4[[#This Row],[codun]])","v":"UACIS-7105"},"SOCIOLOGIA URBANA",{"$f":"LEFT(Tabela4[[#This Row],[Cód]],4)","v":"7105"},"-",2,2,"UACIS",325]
[7102019,{"$f":"CONCATENATE(Tabela4[[#This Row],[Unidade]],Tabela4[[#This Row],[hifen]],Tabela4[[#This Row],[codun]])","v":"UATEC-7102"},"SOLOS DO SEMIARIDO",{"$f":"LEFT(Tabela4[[#This Row],[Cód]],4)","v":"7102"},"-",2,2,"UATEC",326]
[7101211,{"$f":"CONCATENATE(Tabela4[[#This Row],[Unidade]],Tabela4[[#This Row],[hifen]],Tabela4[[#This Row],[codun]])","v":"UAEDUC-7101"},"STAEDUC(MUSICA EM CENA)",{"$f":"LEFT(Tabela4[[#This Row],[Cód]],4)","v":"7101"},"-",2,2,"UAEDUC",327]
[7101210,{"$f":"CONCATENATE(Tabela4[[#This Row],[Unidade]],Tabela4[[#This Row],[hifen]],Tabela4[[#This Row],[codun]])","v":"UAEDUC-7101"},"TCP(INFANCIA,ADOLES.E JUVENTUDE DO CAMPO",{"$f":"LEFT(Tabela4[[#This Row],[Cód]],4)","v":"7101"},"-",2,2,"UAEDUC",328]
[7102296,{"$f":"CONCATENATE(Tabela4[[#This Row],[Unidade]],Tabela4[[#This Row],[hifen]],Tabela4[[#This Row],[codun]])","v":"UATEC-7102"},"TE -II(FONTES ALTERNATIVAS DE ENERGIA)",{"$f":"LEFT(Tabela4[[#This Row],[Cód]],4)","v":"7102"},"-",4,4,"UATEC",329]
[7103300,{"$f":"CONCATENATE(Tabela4[[#This Row],[Unidade]],Tabela4[[#This Row],[hifen]],Tabela4[[#This Row],[codun]])","v":"UAEB-7103"},"TEBB(BIOQUIMICA E METABOLICA)",{"$f":"LEFT(Tabela4[[#This Row],[Cód]],4)","v":"7103"},"-",4,4,"UAEB",330]
[7103265,{"$f":"CONCATENATE(Tabela4[[#This Row],[Unidade]],Tabela4[[#This Row],[hifen]],Tabela4[[#This Row],[codun]])","v":"UAEB-7103"},"TEBB(BIOTECNOLOGIA PARA O SECULO XXI)",{"$f":"LEFT(Tabela4[[#This Row],[Cód]],4)","v":"7103"},"-",4,4,"UAEB",331]
[7103301,{"$f":"CONCATENATE(Tabela4[[#This Row],[Unidade]],Tabela4[[#This Row],[hifen]],Tabela4[[#This Row],[codun]])","v":"UAEB-7103"},"TEBB(DOENCAS PARASITARIAS E VETORIAIS)",{"$f":"LEFT(Tabela4[[#This Row],[Cód]],4)","v":"7103"},"-",2,2,"UAEB",332]
[7103302,{"$f":"CONCATENATE(Tabela4[[#This Row],[Unidade]],Tabela4[[#This Row],[hifen]],Tabela4[[#This Row],[codun]])","v":"UAEB-7103"},"TEBB(EVOLUCAO E FILOGENIA)",{"$f":"LEFT(Tabela4[[#This Row],[Cód]],4)","v":"7103"},"-",2,2,"UAEB",333]
[7103304,{"$f":"CONCATENATE(Tabela4[[#This Row],[Unidade]],Tabela4[[#This Row],[hifen]],Tabela4[[#This Row],[codun]])","v":"UAEB-7103"},"TEBB(PROSPECÇÃO TECNOLÓGICA)",{"$f":"LEFT(Tabela4[[#This Row],[Cód]],4)","v":"7103"},"-",4,4,"UAEB",334]
[7102295,{"$f":"CONCATENATE(Tabela4[[#This Row],[Unidade]],Tabela4[[#This Row],[hifen]],Tabela4[[#This Row],[codun]])","v":"UATEC-7102"},"TEBIOS - II(GENETICA MOLECULAR)",{"$f":"LEFT(Tabela4[[#This Row],[Cód]],4)","v":"7102"},"-",4,4,"UATEC",335]
[7102276,{"$f":"CONCATENATE(Tabela4[[#This Row],[Unidade]],Tabela4[[#This Row],[hifen]],Tabela4[[#This Row],[codun]])","v":"UATEC-7102"},"TEBIOS I(MANEJO CONT DA SALIN NA AGRIC)",{"$f":"LEFT(Tabela4[[#This Row],[Cód]],4)","v":"7102"},"-",4,4,"UATEC",336]
[7103110,{"$f":"CONCATENATE(Tabela4[[#This Row],[Unidade]],Tabela4[[#This Row],[hifen]],Tabela4[[#This Row],[codun]])","v":"UAEB-7103"},"TECNOLOGIA DE ALIMENTOS",{"$f":"LEFT(Tabela4[[#This Row],[Cód]],4)","v":"7103"},"-",4,4,"UAEB",337]
[7102269,{"$f":"CONCATENATE(Tabela4[[#This Row],[Unidade]],Tabela4[[#This Row],[hifen]],Tabela4[[#This Row],[codun]])","v":"UATEC-7102"},"TECNOLOGIA DE SECAGEM E ARMAZENAMENTO",{"$f":"LEFT(Tabela4[[#This Row],[Cód]],4)","v":"7102"},"-",4,4,"UATEC",338]
[7102115,{"$f":"CONCATENATE(Tabela4[[#This Row],[Unidade]],Tabela4[[#This Row],[hifen]],Tabela4[[#This Row],[codun]])","v":"UATEC-7102"},"TECNOLOGIA DE SEMENTES",{"$f":"LEFT(Tabela4[[#This Row],[Cód]],4)","v":"7102"},"-",4,4,"UATEC",339]
[7101028,{"$f":"CONCATENATE(Tabela4[[#This Row],[Unidade]],Tabela4[[#This Row],[hifen]],Tabela4[[#This Row],[codun]])","v":"UAEDUC-7101"},"TECNOLOGIA EDUC E PROC DE APRENDIZAGEM",{"$f":"LEFT(Tabela4[[#This Row],[Cód]],4)","v":"7101"},"-",4,4,"UAEDUC",340]
[7102306,{"$f":"CONCATENATE(Tabela4[[#This Row],[Unidade]],Tabela4[[#This Row],[hifen]],Tabela4[[#This Row],[codun]])","v":"UATEC-7102"},"TECNOLOGIA SOCIAIS PARA DESENV SUSTENTAV",{"$f":"LEFT(Tabela4[[#This Row],[Cód]],4)","v":"7102"},"-",2,2,"UATEC",341]
[7105211,{"$f":"CONCATENATE(Tabela4[[#This Row],[Unidade]],Tabela4[[#This Row],[hifen]],Tabela4[[#This Row],[codun]])","v":"UACIS-7105"},"TECS(ANTROPOLOGIA VISUAL)",{"$f":"LEFT(Tabela4[[#This Row],[Cód]],4)","v":"7105"},"-",2,2,"UACIS",342]
[7105208,{"$f":"CONCATENATE(Tabela4[[#This Row],[Unidade]],Tabela4[[#This Row],[hifen]],Tabela4[[#This Row],[codun]])","v":"UACIS-7105"},"TECS(ESPANHOL I)",{"$f":"LEFT(Tabela4[[#This Row],[Cód]],4)","v":"7105"},"-",4,4,"UACIS",343]
[7105218,{"$f":"CONCATENATE(Tabela4[[#This Row],[Unidade]],Tabela4[[#This Row],[hifen]],Tabela4[[#This Row],[codun]])","v":"UACIS-7105"},"TECS(ESTADO E POLÍTICAS PÚBLICAS)",{"$f":"LEFT(Tabela4[[#This Row],[Cód]],4)","v":"7105"},"-",4,4,"UACIS",344]
[7105209,{"$f":"CONCATENATE(Tabela4[[#This Row],[Unidade]],Tabela4[[#This Row],[hifen]],Tabela4[[#This Row],[codun]])","v":"UACIS-7105"},"TECS(INGLÊS I)",{"$f":"LEFT(Tabela4[[#This Row],[Cód]],4)","v":"7105"},"-",4,4,"UACIS",345]
[7105217,{"$f":"CONCATENATE(Tabela4[[#This Row],[Unidade]],Tabela4[[#This Row],[hifen]],Tabela4[[#This Row],[codun]])","v":"UACIS-7105"},"TECS(INTRODUÇÃO À CIÊNCIA POLÍTICA)",{"$f":"LEFT(Tabela4[[#This Row],[Cód]],4)","v":"7105"},"-",2,2,"UACIS",346]
[7105210,{"$f":"CONCATENATE(Tabela4[[#This Row],[Unidade]],Tabela4[[#This Row],[hifen]],Tabela4[[#This Row],[codun]])","v":"UACIS-7105"},"TECS(INTRODUÇÃO À FILOSOFIA)",{"$f":"LEFT(Tabela4[[#This Row],[Cód]],4)","v":"7105"},"-",4,4,"UACIS",347]
[7105220,{"$f":"CONCATENATE(Tabela4[[#This Row],[Unidade]],Tabela4[[#This Row],[hifen]],Tabela4[[#This Row],[codun]])","v":"UACIS-7105"},"TECS(INTRODUÇÃO À SOCIOLOGIA)",{"$f":"LEFT(Tabela4[[#This Row],[Cód]],4)","v":"7105"},"-",4,4,"UACIS",348]
[7105221,{"$f":"CONCATENATE(Tabela4[[#This Row],[Unidade]],Tabela4[[#This Row],[hifen]],Tabela4[[#This Row],[codun]])","v":"UACIS-7105"},"TECS(LAB DE PES E PRAC PED CIEN SOCI I)",{"$f":"LEFT(Tabela4[[#This Row],[Cód]],4)","v":"7105"},"-",4,4,"UACIS",349]
[7105222,{"$f":"CONCATENATE(Tabela4[[#This Row],[Unidade]],Tabela4[[#This Row],[hifen]],Tabela4[[#This Row],[codun]])","v":"UACIS-7105"},"TECS(LAB DE PES E PRAC PED CIEN SOCI II)",{"$f":"LEFT(Tabela4[[#This Row],[Cód]],4)","v":"7105"},"-",4,4,"UACIS",350]
[7105219,{"$f":"CONCATENATE(Tabela4[[#This Row],[Unidade]],Tabela4[[#This Row],[hifen]],Tabela4[[#This Row],[codun]])","v":"UACIS-7105"},"TECS(OFICINA DE PROJETO DE PESQUISA)",{"$f":"LEFT(Tabela4[[#This Row],[Cód]],4)","v":"7105"},"-",4,4,"UACIS",351]
[7105212,{"$f":"CONCATENATE(Tabela4[[#This Row],[Unidade]],Tabela4[[#This Row],[hifen]],Tabela4[[#This Row],[codun]])","v":"UACIS-7105"},"TECS(POBREZA E DESIGUALDADE SOCIAL)",{"$f":"LEFT(Tabela4[[#This Row],[Cód]],4)","v":"7105"},"-",2,2,"UACIS",352]
[7105215,{"$f":"CONCATENATE(Tabela4[[#This Row],[Unidade]],Tabela4[[#This Row],[hifen]],Tabela4[[#This Row],[codun]])","v":"UACIS-7105"},"TECS(RELAÇÕES DE GÊNERO E SEXUALIDADE)",{"$f":"LEFT(Tabela4[[#This Row],[Cód]],4)","v":"7105"},"-",2,2,"UACIS",353]
[7105216,{"$f":"CONCATENATE(Tabela4[[#This Row],[Unidade]],Tabela4[[#This Row],[hifen]],Tabela4[[#This Row],[codun]])","v":"UACIS-7105"},"TECS(SEM ESP EM SOC (ESCR ACA CIEN SOC))",{"$f":"LEFT(Tabela4[[#This Row],[Cód]],4)","v":"7105"},"-",2,2,"UACIS",354]
[7105214,{"$f":"CONCATENATE(Tabela4[[#This Row],[Unidade]],Tabela4[[#This Row],[hifen]],Tabela4[[#This Row],[codun]])","v":"UACIS-7105"},"TECS(SOCIOLOGIA RURAL)",{"$f":"LEFT(Tabela4[[#This Row],[Cód]],4)","v":"7105"},"-",4,4,"UACIS",355]
[7105213,{"$f":"CONCATENATE(Tabela4[[#This Row],[Unidade]],Tabela4[[#This Row],[hifen]],Tabela4[[#This Row],[codun]])","v":"UACIS-7105"},"TECS(TRABALHO DE CONCLUSÃO DE CURSO TCC)",{"$f":"LEFT(Tabela4[[#This Row],[Cód]],4)","v":"7105"},"-",2,null,"UACIS",356]
[7102308,{"$f":"CONCATENATE(Tabela4[[#This Row],[Unidade]],Tabela4[[#This Row],[hifen]],Tabela4[[#This Row],[codun]])","v":"UATEC-7102"},"TEEB(PRODUÇÃO E USO DE HORTALIÇAS)",{"$f":"LEFT(Tabela4[[#This Row],[Cód]],4)","v":"7102"},"-",4,{"$f":"F358","v":4},"UATEC",357]
[7102309,{"$f":"CONCATENATE(Tabela4[[#This Row],[Unidade]],Tabela4[[#This Row],[hifen]],Tabela4[[#This Row],[codun]])","v":"UATEC-7102"},"TEEB(TRATAMENTO DE RESÍDUOS SÓLIDOS)",{"$f":"LEFT(Tabela4[[#This Row],[Cód]],4)","v":"7102"},"-",4,4,"UATEC",358]
[7101276,{"$f":"CONCATENATE(Tabela4[[#This Row],[Unidade]],Tabela4[[#This Row],[hifen]],Tabela4[[#This Row],[codun]])","v":"UAEDUC-7101"},"TEEC(EDU A DIST NA FORM DO EDUCADOR)",{"$f":"LEFT(Tabela4[[#This Row],[Cód]],4)","v":"7101"},"-",4,4,"UAEDUC",359]
[7101209,{"$f":"CONCATENATE(Tabela4[[#This Row],[Unidade]],Tabela4[[#This Row],[hifen]],Tabela4[[#This Row],[codun]])","v":"UAEDUC-7101"},"TEEC(FUND SOCIO-FILOS.DA EDUC DO CAMPO)",{"$f":"LEFT(Tabela4[[#This Row],[Cód]],4)","v":"7101"},"-",2,2,"UAEDUC",360]
[7101278,{"$f":"CONCATENATE(Tabela4[[#This Row],[Unidade]],Tabela4[[#This Row],[hifen]],Tabela4[[#This Row],[codun]])","v":"UAEDUC-7101"},"TEEC(INTERCULTURALIDADE E ENSINO DE LÍNG",{"$f":"LEFT(Tabela4[[#This Row],[Cód]],4)","v":"7101"},"-",2,2,"UAEDUC",361]
[7101207,{"$f":"CONCATENATE(Tabela4[[#This Row],[Unidade]],Tabela4[[#This Row],[hifen]],Tabela4[[#This Row],[codun]])","v":"UAEDUC-7101"},"TEEC(PEDAGOGIA DA ALTERNANCIA)",{"$f":"LEFT(Tabela4[[#This Row],[Cód]],4)","v":"7101"},"-",2,2,"UAEDUC",362]
[7101272,{"$f":"CONCATENATE(Tabela4[[#This Row],[Unidade]],Tabela4[[#This Row],[hifen]],Tabela4[[#This Row],[codun]])","v":"UAEDUC-7101"},"TEEC(PRÁTICAS DE LEITURAS PERFOMATIVAS)",{"$f":"LEFT(Tabela4[[#This Row],[Cód]],4)","v":"7101"},"-",4,4,"UAEDUC",363]
[7101271,{"$f":"CONCATENATE(Tabela4[[#This Row],[Unidade]],Tabela4[[#This Row],[hifen]],Tabela4[[#This Row],[codun]])","v":"UAEDUC-7101"},"TEEC(PRATICAS DE LINGUAGEM I)",{"$f":"LEFT(Tabela4[[#This Row],[Cód]],4)","v":"7101"},"-",2,2,"UAEDUC",364]
[7101212,{"$f":"CONCATENATE(Tabela4[[#This Row],[Unidade]],Tabela4[[#This Row],[hifen]],Tabela4[[#This Row],[codun]])","v":"UAEDUC-7101"},"TEEC(PRATICAS DE LINGUAGEM II)",{"$f":"LEFT(Tabela4[[#This Row],[Cód]],4)","v":"7101"},"-",2,2,"UAEDUC",365]
[7101208,{"$f":"CONCATENATE(Tabela4[[#This Row],[Unidade]],Tabela4[[#This Row],[hifen]],Tabela4[[#This Row],[codun]])","v":"UAEDUC-7101"},"TEEC(QUESTAO AGRARIA E CAMPESINATO)",{"$f":"LEFT(Tabela4[[#This Row],[Cód]],4)","v":"7101"},"-",2,2,"UAEDUC",366]
[7101275,{"$f":"CONCATENATE(Tabela4[[#This Row],[Unidade]],Tabela4[[#This Row],[hifen]],Tabela4[[#This Row],[codun]])","v":"UAEDUC-7101"},"TEEC(TEM CONT EM PSI:NEU, EDU E MEN FUT)",{"$f":"LEFT(Tabela4[[#This Row],[Cód]],4)","v":"7101"},"-",2,2,"UAEDUC",367]
[7106195,{"$f":"CONCATENATE(Tabela4[[#This Row],[Unidade]],Tabela4[[#This Row],[hifen]],Tabela4[[#This Row],[codun]])","v":"UAGESP-7106"},"TEGP(ECONOMIA DO SETOR PUBLICO)",{"$f":"LEFT(Tabela4[[#This Row],[Cód]],4)","v":"7106"},"-",4,4,"UAGESP",368]
[7106085,{"$f":"CONCATENATE(Tabela4[[#This Row],[Unidade]],Tabela4[[#This Row],[hifen]],Tabela4[[#This Row],[codun]])","v":"UAGESP-7106"},"TEGP(ECONOMIA SOLIDARIA)",{"$f":"LEFT(Tabela4[[#This Row],[Cód]],4)","v":"7106"},"-",2,2,"UAGESP",369]
[7106196,{"$f":"CONCATENATE(Tabela4[[#This Row],[Unidade]],Tabela4[[#This Row],[hifen]],Tabela4[[#This Row],[codun]])","v":"UAGESP-7106"},"TEGP(ECONOMIA SOLIDARIA)",{"$f":"LEFT(Tabela4[[#This Row],[Cód]],4)","v":"7106"},"-",2,2,"UAGESP",370]
[7106191,{"$f":"CONCATENATE(Tabela4[[#This Row],[Unidade]],Tabela4[[#This Row],[hifen]],Tabela4[[#This Row],[codun]])","v":"UAGESP-7106"},"TEGP(EMPREENDEDORISMO)",{"$f":"LEFT(Tabela4[[#This Row],[Cód]],4)","v":"7106"},"-",4,4,"UAGESP",371]
[7106194,{"$f":"CONCATENATE(Tabela4[[#This Row],[Unidade]],Tabela4[[#This Row],[hifen]],Tabela4[[#This Row],[codun]])","v":"UAGESP-7106"},"TEGP(GESTAO DA SEGURANCA PUBLICA)",{"$f":"LEFT(Tabela4[[#This Row],[Cód]],4)","v":"7106"},"-",4,4,"UAGESP",372]
[7106205,{"$f":"CONCATENATE(Tabela4[[#This Row],[Unidade]],Tabela4[[#This Row],[hifen]],Tabela4[[#This Row],[codun]])","v":"UAGESP-7106"},"TEGP(GOVERNANÇA E INOVAÇÃO NA ADM PUB)",{"$f":"LEFT(Tabela4[[#This Row],[Cód]],4)","v":"7106"},"-",4,4,"UAGESP",373]
[7106206,{"$f":"CONCATENATE(Tabela4[[#This Row],[Unidade]],Tabela4[[#This Row],[hifen]],Tabela4[[#This Row],[codun]])","v":"UAGESP-7106"},"TEGP(GOVERNANÇA E INOVAÇÃO NA GEST PUB)",{"$f":"LEFT(Tabela4[[#This Row],[Cód]],4)","v":"7106"},"-",4,4,"UAGESP",374]
[7106204,{"$f":"CONCATENATE(Tabela4[[#This Row],[Unidade]],Tabela4[[#This Row],[hifen]],Tabela4[[#This Row],[codun]])","v":"UAGESP-7106"},"TEGP(MARKETING POLITICO E ELEITORAL)",{"$f":"LEFT(Tabela4[[#This Row],[Cód]],4)","v":"7106"},"-",4,4,"UAGESP",375]
[7106203,{"$f":"CONCATENATE(Tabela4[[#This Row],[Unidade]],Tabela4[[#This Row],[hifen]],Tabela4[[#This Row],[codun]])","v":"UAGESP-7106"},"TEGP(POLITICAS CULTURAIS)",{"$f":"LEFT(Tabela4[[#This Row],[Cód]],4)","v":"7106"},"-",4,4,"UAGESP",376]
[7102300,{"$f":"CONCATENATE(Tabela4[[#This Row],[Unidade]],Tabela4[[#This Row],[hifen]],Tabela4[[#This Row],[codun]])","v":"UATEC-7102"},"TE-II(LOGISTICA REVERSA)",{"$f":"LEFT(Tabela4[[#This Row],[Cód]],4)","v":"7102"},"-",4,4,"UATEC",377]
[7105044,{"$f":"CONCATENATE(Tabela4[[#This Row],[Unidade]],Tabela4[[#This Row],[hifen]],Tabela4[[#This Row],[codun]])","v":"UACIS-7105"},"TEORIA ANTROPOLOGICA I",{"$f":"LEFT(Tabela4[[#This Row],[Cód]],4)","v":"7105"},"-",4,4,"UACIS",378]
[7105078,{"$f":"CONCATENATE(Tabela4[[#This Row],[Unidade]],Tabela4[[#This Row],[hifen]],Tabela4[[#This Row],[codun]])","v":"UACIS-7105"},"TEORIA ANTROPOLOGICA II",{"$f":"LEFT(Tabela4[[#This Row],[Cód]],4)","v":"7105"},"-",4,4,"UACIS",379]
[7101076,{"$f":"CONCATENATE(Tabela4[[#This Row],[Unidade]],Tabela4[[#This Row],[hifen]],Tabela4[[#This Row],[codun]])","v":"UAEDUC-7101"},"TEORIA DA LITERATURA",{"$f":"LEFT(Tabela4[[#This Row],[Cód]],4)","v":"7101"},"-",4,4,"UAEDUC",380]
[7101076,{"$f":"CONCATENATE(Tabela4[[#This Row],[Unidade]],Tabela4[[#This Row],[hifen]],Tabela4[[#This Row],[codun]])","v":"UAEDUC-7101"},"TEORIA DA LITERATURA",{"$f":"LEFT(Tabela4[[#This Row],[Cód]],4)","v":"7101"},"-",4,4,"UAEDUC",381]
[7105021,{"$f":"CONCATENATE(Tabela4[[#This Row],[Unidade]],Tabela4[[#This Row],[hifen]],Tabela4[[#This Row],[codun]])","v":"UACIS-7105"},"TEORIA DO CONHECIMENTO",{"$f":"LEFT(Tabela4[[#This Row],[Cód]],4)","v":"7105"},"-",4,4,"UACIS",382]
[7106058,{"$f":"CONCATENATE(Tabela4[[#This Row],[Unidade]],Tabela4[[#This Row],[hifen]],Tabela4[[#This Row],[codun]])","v":"UAGESP-7106"},"TEORIA GERAL DO PROCESSO",{"$f":"LEFT(Tabela4[[#This Row],[Cód]],4)","v":"7106"},"-",4,4,"UAGESP",383]
[7106026,{"$f":"CONCATENATE(Tabela4[[#This Row],[Unidade]],Tabela4[[#This Row],[hifen]],Tabela4[[#This Row],[codun]])","v":"UAGESP-7106"},"TEORIA POLITICA DO ESTADO",{"$f":"LEFT(Tabela4[[#This Row],[Cód]],4)","v":"7106"},"-",4,4,"UAGESP",384]
[7105045,{"$f":"CONCATENATE(Tabela4[[#This Row],[Unidade]],Tabela4[[#This Row],[hifen]],Tabela4[[#This Row],[codun]])","v":"UACIS-7105"},"TEORIA POLITICA I",{"$f":"LEFT(Tabela4[[#This Row],[Cód]],4)","v":"7105"},"-",4,4,"UACIS",385]
[7105087,{"$f":"CONCATENATE(Tabela4[[#This Row],[Unidade]],Tabela4[[#This Row],[hifen]],Tabela4[[#This Row],[codun]])","v":"UACIS-7105"},"TEORIA POLITICA II",{"$f":"LEFT(Tabela4[[#This Row],[Cód]],4)","v":"7105"},"-",4,4,"UACIS",386]
[7105020,{"$f":"CONCATENATE(Tabela4[[#This Row],[Unidade]],Tabela4[[#This Row],[hifen]],Tabela4[[#This Row],[codun]])","v":"UACIS-7105"},"TEORIA SOCIOLOGICA I",{"$f":"LEFT(Tabela4[[#This Row],[Cód]],4)","v":"7105"},"-",4,4,"UACIS",387]
[7105043,{"$f":"CONCATENATE(Tabela4[[#This Row],[Unidade]],Tabela4[[#This Row],[hifen]],Tabela4[[#This Row],[codun]])","v":"UACIS-7105"},"TEORIA SOCIOLOGICA II",{"$f":"LEFT(Tabela4[[#This Row],[Cód]],4)","v":"7105"},"-",4,4,"UACIS",388]
[7102050,{"$f":"CONCATENATE(Tabela4[[#This Row],[Unidade]],Tabela4[[#This Row],[hifen]],Tabela4[[#This Row],[codun]])","v":"UATEC-7102"},"TERMODINAMICA",{"$f":"LEFT(Tabela4[[#This Row],[Cód]],4)","v":"7102"},"-",4,4,"UATEC",389]
[7105207,{"$f":"CONCATENATE(Tabela4[[#This Row],[Unidade]],Tabela4[[#This Row],[hifen]],Tabela4[[#This Row],[codun]])","v":"UACIS-7105"},"TES(ESCRITA ACADÊMICA NAS CIENC SOCIAIS)",{"$f":"LEFT(Tabela4[[#This Row],[Cód]],4)","v":"7105"},"-",2,2,"UACIS",390]
[7102024,{"$f":"CONCATENATE(Tabela4[[#This Row],[Unidade]],Tabela4[[#This Row],[hifen]],Tabela4[[#This Row],[codun]])","v":"UATEC-7102"},"TOPOGRAFIA",{"$f":"LEFT(Tabela4[[#This Row],[Cód]],4)","v":"7102"},"-",4,4,"UATEC",391]
[7102039,{"$f":"CONCATENATE(Tabela4[[#This Row],[Unidade]],Tabela4[[#This Row],[hifen]],Tabela4[[#This Row],[codun]])","v":"UATEC-7102"},"TOPOGRAFIA E GEOPROCESSAMENTO",{"$f":"LEFT(Tabela4[[#This Row],[Cód]],4)","v":"7102"},"-",4,4,"UATEC",392]
[7103100,{"$f":"CONCATENATE(Tabela4[[#This Row],[Unidade]],Tabela4[[#This Row],[hifen]],Tabela4[[#This Row],[codun]])","v":"UAEB-7103"},"TOXICOLOGIA",{"$f":"LEFT(Tabela4[[#This Row],[Cód]],4)","v":"7103"},"-",2,2,"UAEB",393]
[7103288,{"$f":"CONCATENATE(Tabela4[[#This Row],[Unidade]],Tabela4[[#This Row],[hifen]],Tabela4[[#This Row],[codun]])","v":"UAEB-7103"},"TRABALHO DE CONCLUSAO DE CURSO",{"$f":"LEFT(Tabela4[[#This Row],[Cód]],4)","v":"7103"},"-",4,null,"UAEB",394]
[7102257,{"$f":"CONCATENATE(Tabela4[[#This Row],[Unidade]],Tabela4[[#This Row],[hifen]],Tabela4[[#This Row],[codun]])","v":"UATEC-7102"},"TRABALHO DE CONCLUSAO DE CURSO",{"$f":"LEFT(Tabela4[[#This Row],[Cód]],4)","v":"7102"},"-",4,null,"UATEC",395]
[7102285,{"$f":"CONCATENATE(Tabela4[[#This Row],[Unidade]],Tabela4[[#This Row],[hifen]],Tabela4[[#This Row],[codun]])","v":"UATEC-7102"},"TRABALHO DE CONCLUSAO DE CURSO",{"$f":"LEFT(Tabela4[[#This Row],[Cód]],4)","v":"7102"},"-",4,null,"UATEC",396]
[7106153,{"$f":"CONCATENATE(Tabela4[[#This Row],[Unidade]],Tabela4[[#This Row],[hifen]],Tabela4[[#This Row],[codun]])","v":"UAGESP-7106"},"TRABALHO DE CONCLUSÃO DE CURSO",{"$f":"LEFT(Tabela4[[#This Row],[Cód]],4)","v":"7106"},"-",4,null,"UAGESP",397]
[7105166,{"$f":"CONCATENATE(Tabela4[[#This Row],[Unidade]],Tabela4[[#This Row],[hifen]],Tabela4[[#This Row],[codun]])","v":"UACIS-7105"},"TRABALHO DE CONCLUSAO DE CURSO - TCC",{"$f":"LEFT(Tabela4[[#This Row],[Cód]],4)","v":"7105"},"-",2,null,"UACIS",398]
[7101167,{"$f":"CONCATENATE(Tabela4[[#This Row],[Unidade]],Tabela4[[#This Row],[hifen]],Tabela4[[#This Row],[codun]])","v":"UAEDUC-7101"},"TRABALHO DE CONCLUSAO DE CURSO - TCC",{"$f":"LEFT(Tabela4[[#This Row],[Cód]],4)","v":"7101"},"-",4,null,"UAEDUC",399]
[7102267,{"$f":"CONCATENATE(Tabela4[[#This Row],[Unidade]],Tabela4[[#This Row],[hifen]],Tabela4[[#This Row],[codun]])","v":"UATEC-7102"},"TRATAMENTO DE ÁGUAS RESIDUÁRIAS",{"$f":"LEFT(Tabela4[[#This Row],[Cód]],4)","v":"7102"},"-",4,{"$f":"F401","v":4},"UATEC",400]
[7103271,{"$f":"CONCATENATE(Tabela4[[#This Row],[Unidade]],Tabela4[[#This Row],[hifen]],Tabela4[[#This Row],[codun]])","v":"UAEB-7103"},"TRATAMENTO DE EFLUENTES",{"$f":"LEFT(Tabela4[[#This Row],[Cód]],4)","v":"7103"},"-",2,2,"UAEB",401]
[7103114,{"$f":"CONCATENATE(Tabela4[[#This Row],[Unidade]],Tabela4[[#This Row],[hifen]],Tabela4[[#This Row],[codun]])","v":"UAEB-7103"},"TRATAMENTOS DE RESIDUOS SOLIDOS",{"$f":"LEFT(Tabela4[[#This Row],[Cód]],4)","v":"7103"},"-",4,4,"UAEB",402]
[7102043,{"$f":"CONCATENATE(Tabela4[[#This Row],[Unidade]],Tabela4[[#This Row],[hifen]],Tabela4[[#This Row],[codun]])","v":"UATEC-7102"},"USO SUSTENTAVEL DA BIODIVERSIDADE",{"$f":"LEFT(Tabela4[[#This Row],[Cód]],4)","v":"7102"},"-",2,2,"UATEC",403]
[7102109,{"$f":"CONCATENATE(Tabela4[[#This Row],[Unidade]],Tabela4[[#This Row],[hifen]],Tabela4[[#This Row],[codun]])","v":"UATEC-7102"},"USO SUSTENTAVEL DA BIODIVERSIDADE",{"$f":"LEFT(Tabela4[[#This Row],[Cód]],4)","v":"7102"},"-",4,4,"UATEC",404]
[7101146,{"$f":"CONCATENATE(Tabela4[[#This Row],[Unidade]],Tabela4[[#This Row],[hifen]],Tabela4[[#This Row],[codun]])","v":"UAEDUC-7101"},"ZOOLOGIA DO SEMIARIDO",{"$f":"LEFT(Tabela4[[#This Row],[Cód]],4)","v":"7101"},"-",4,4,"UAEDUC",405]
[7102057,{"$f":"CONCATENATE(Tabela4[[#This Row],[Unidade]],Tabela4[[#This Row],[hifen]],Tabela4[[#This Row],[codun]])","v":"UATEC-7102"},"ZOOTECNIA APLICADA",{"$f":"LEFT(Tabela4[[#This Row],[Cód]],4)","v":"7102"},"-",4,4,"UATEC",406]
[7102268,{"$f":"CONCATENATE(Tabela4[[#This Row],[Unidade]],Tabela4[[#This Row],[hifen]],Tabela4[[#This Row],[codun]])","v":"UATEC-7102"},"ZOOTECNIA DE PRECISAO",{"$f":"LEFT(Tabela4[[#This Row],[Cód]],4)","v":"7102"},"-",2,2,"UATEC",407]
[7104040,{"$f":"CONCATENATE(Tabela4[[#This Row],[Unidade]],Tabela4[[#This Row],[hifen]],Tabela4[[#This Row],[codun]])","v":"UAEP-7104"},"ADMINISTRAÇÃO PARA ENGENHARIA",{"$f":"LEFT(Tabela4[[#This Row],[Cód]],4)","v":"7104"},"-",4,4,"UAEP",408]
[7104118,{"$f":"CONCATENATE(Tabela4[[#This Row],[Unidade]],Tabela4[[#This Row],[hifen]],Tabela4[[#This Row],[codun]])","v":"UAEP-7104"},"AUTOMAÇÃO",{"$f":"LEFT(Tabela4[[#This Row],[Cód]],4)","v":"7104"},"-",4,4,"UAEP",409]
[7104279,{"$f":"CONCATENATE(Tabela4[[#This Row],[Unidade]],Tabela4[[#This Row],[hifen]],Tabela4[[#This Row],[codun]])","v":"UAEP-7104"},"CONTROLE ESTATISTICO DE QUALIDADE",{"$f":"LEFT(Tabela4[[#This Row],[Cód]],4)","v":"7104"},"-",4,4,"UAEP",410]
[7104263,{"$f":"CONCATENATE(Tabela4[[#This Row],[Unidade]],Tabela4[[#This Row],[hifen]],Tabela4[[#This Row],[codun]])","v":"UAEP-7104"},"CUSTOS DA PRODUCAO",{"$f":"LEFT(Tabela4[[#This Row],[Cód]],4)","v":"7104"},"-",4,4,"UAEP",411]
[7104106,{"$f":"CONCATENATE(Tabela4[[#This Row],[Unidade]],Tabela4[[#This Row],[hifen]],Tabela4[[#This Row],[codun]])","v":"UAEP-7104"},"ELETROTÉCNICA",{"$f":"LEFT(Tabela4[[#This Row],[Cód]],4)","v":"7104"},"-",4,4,"UAEP",412]
[7104102,{"$f":"CONCATENATE(Tabela4[[#This Row],[Unidade]],Tabela4[[#This Row],[hifen]],Tabela4[[#This Row],[codun]])","v":"UAEP-7104"},"ENGENHARIA DE MÉTODOS",{"$f":"LEFT(Tabela4[[#This Row],[Cód]],4)","v":"7104"},"-",4,4,"UAEP",413]
[7104079,{"$f":"CONCATENATE(Tabela4[[#This Row],[Unidade]],Tabela4[[#This Row],[hifen]],Tabela4[[#This Row],[codun]])","v":"UAEP-7104"},"ENGENHARIA ECONOMICA",{"$f":"LEFT(Tabela4[[#This Row],[Cód]],4)","v":"7104"},"-",4,4,"UAEP",414]
[7104081,{"$f":"CONCATENATE(Tabela4[[#This Row],[Unidade]],Tabela4[[#This Row],[hifen]],Tabela4[[#This Row],[codun]])","v":"UAEP-7104"},"ERGONOMIA",{"$f":"LEFT(Tabela4[[#This Row],[Cód]],4)","v":"7104"},"-",4,4,"UAEP",415]
[7104290,{"$f":"CONCATENATE(Tabela4[[#This Row],[Unidade]],Tabela4[[#This Row],[hifen]],Tabela4[[#This Row],[codun]])","v":"UAEP-7104"},"ESTAGIO CURRICULAR SUPERVISIONADO",{"$f":"LEFT(Tabela4[[#This Row],[Cód]],4)","v":"7104"},"-",14,null,"UAEP",416]
[7104277,{"$f":"CONCATENATE(Tabela4[[#This Row],[Unidade]],Tabela4[[#This Row],[hifen]],Tabela4[[#This Row],[codun]])","v":"UAEP-7104"},"ESTRATEGIAS DE MERCADOS AGROINDUSTRIAIS",{"$f":"LEFT(Tabela4[[#This Row],[Cód]],4)","v":"7104"},"-",4,4,"UAEP",417]
[7104046,{"$f":"CONCATENATE(Tabela4[[#This Row],[Unidade]],Tabela4[[#This Row],[hifen]],Tabela4[[#This Row],[codun]])","v":"UAEP-7104"},"FÍSICA EXPERIMENTAL",{"$f":"LEFT(Tabela4[[#This Row],[Cód]],4)","v":"7104"},"-",4,4,"UAEP",418]
[7104011,{"$f":"CONCATENATE(Tabela4[[#This Row],[Unidade]],Tabela4[[#This Row],[hifen]],Tabela4[[#This Row],[codun]])","v":"UAEP-7104"},"FÍSICA GERAL I",{"$f":"LEFT(Tabela4[[#This Row],[Cód]],4)","v":"7104"},"-",4,4,"UAEP",419]
[7104023,{"$f":"CONCATENATE(Tabela4[[#This Row],[Unidade]],Tabela4[[#This Row],[hifen]],Tabela4[[#This Row],[codun]])","v":"UAEP-7104"},"FÍSICA GERAL II",{"$f":"LEFT(Tabela4[[#This Row],[Cód]],4)","v":"7104"},"-",4,4,"UAEP",420]
[7104045,{"$f":"CONCATENATE(Tabela4[[#This Row],[Unidade]],Tabela4[[#This Row],[hifen]],Tabela4[[#This Row],[codun]])","v":"UAEP-7104"},"FÍSICA GERAL III",{"$f":"LEFT(Tabela4[[#This Row],[Cód]],4)","v":"7104"},"-",4,4,"UAEP",421]
[7104131,{"$f":"CONCATENATE(Tabela4[[#This Row],[Unidade]],Tabela4[[#This Row],[hifen]],Tabela4[[#This Row],[codun]])","v":"UAEP-7104"},"GESTAO DA INFORMACAO",{"$f":"LEFT(Tabela4[[#This Row],[Cód]],4)","v":"7104"},"-",4,4,"UAEP",422]
[7104280,{"$f":"CONCATENATE(Tabela4[[#This Row],[Unidade]],Tabela4[[#This Row],[hifen]],Tabela4[[#This Row],[codun]])","v":"UAEP-7104"},"GESTAO DA MANUTENCAO",{"$f":"LEFT(Tabela4[[#This Row],[Cód]],4)","v":"7104"},"-",4,4,"UAEP",423]
[7104262,{"$f":"CONCATENATE(Tabela4[[#This Row],[Unidade]],Tabela4[[#This Row],[hifen]],Tabela4[[#This Row],[codun]])","v":"UAEP-7104"},"GESTAO DA QUALIDADE",{"$f":"LEFT(Tabela4[[#This Row],[Cód]],4)","v":"7104"},"-",4,4,"UAEP",424]
[7104281,{"$f":"CONCATENATE(Tabela4[[#This Row],[Unidade]],Tabela4[[#This Row],[hifen]],Tabela4[[#This Row],[codun]])","v":"UAEP-7104"},"GESTAO DE PROJETOS",{"$f":"LEFT(Tabela4[[#This Row],[Cód]],4)","v":"7104"},"-",4,4,"UAEP",425]
[7104264,{"$f":"CONCATENATE(Tabela4[[#This Row],[Unidade]],Tabela4[[#This Row],[hifen]],Tabela4[[#This Row],[codun]])","v":"UAEP-7104"},"GESTAO,INOVACAO E EMPREENDEDORISMO",{"$f":"LEFT(Tabela4[[#This Row],[Cód]],4)","v":"7104"},"-",4,4,"UAEP",426]
[7104105,{"$f":"CONCATENATE(Tabela4[[#This Row],[Unidade]],Tabela4[[#This Row],[hifen]],Tabela4[[#This Row],[codun]])","v":"UAEP-7104"},"HIGIENE E SEGURANCA DO TRABALHO",{"$f":"LEFT(Tabela4[[#This Row],[Cód]],4)","v":"7104"},"-",4,4,"UAEP",427]
[7104008,{"$f":"CONCATENATE(Tabela4[[#This Row],[Unidade]],Tabela4[[#This Row],[hifen]],Tabela4[[#This Row],[codun]])","v":"UAEP-7104"},"INT. A ENG. DE PRODUCAO",{"$f":"LEFT(Tabela4[[#This Row],[Cód]],4)","v":"7104"},"-",2,2,"UAEP",428]
[7104089,{"$f":"CONCATENATE(Tabela4[[#This Row],[Unidade]],Tabela4[[#This Row],[hifen]],Tabela4[[#This Row],[codun]])","v":"UAEP-7104"},"INTRODUÇÃO À ENGENHARIA DE FABRICAÇÃO",{"$f":"LEFT(Tabela4[[#This Row],[Cód]],4)","v":"7104"},"-",4,4,"UAEP",429]
[7104132,{"$f":"CONCATENATE(Tabela4[[#This Row],[Unidade]],Tabela4[[#This Row],[hifen]],Tabela4[[#This Row],[codun]])","v":"UAEP-7104"},"LOGISTICA E DISTRIBUICAO",{"$f":"LEFT(Tabela4[[#This Row],[Cód]],4)","v":"7104"},"-",4,4,"UAEP",430]
[7104078,{"$f":"CONCATENATE(Tabela4[[#This Row],[Unidade]],Tabela4[[#This Row],[hifen]],Tabela4[[#This Row],[codun]])","v":"UAEP-7104"},"ORGANIZACAO DO TRABALHO",{"$f":"LEFT(Tabela4[[#This Row],[Cód]],4)","v":"7104"},"-",4,4,"UAEP",431]
[7104129,{"$f":"CONCATENATE(Tabela4[[#This Row],[Unidade]],Tabela4[[#This Row],[hifen]],Tabela4[[#This Row],[codun]])","v":"UAEP-7104"},"PESQUISA OPERACIONAL I",{"$f":"LEFT(Tabela4[[#This Row],[Cód]],4)","v":"7104"},"-",4,4,"UAEP",432]
[7104260,{"$f":"CONCATENATE(Tabela4[[#This Row],[Unidade]],Tabela4[[#This Row],[hifen]],Tabela4[[#This Row],[codun]])","v":"UAEP-7104"},"PESQUISA OPERACIONAL II",{"$f":"LEFT(Tabela4[[#This Row],[Cód]],4)","v":"7104"},"-",4,4,"UAEP",433]
[7104101,{"$f":"CONCATENATE(Tabela4[[#This Row],[Unidade]],Tabela4[[#This Row],[hifen]],Tabela4[[#This Row],[codun]])","v":"UAEP-7104"},"PLANEJAMENTO E CONTROLE DA PRODUCAO I",{"$f":"LEFT(Tabela4[[#This Row],[Cód]],4)","v":"7104"},"-",4,4,"UAEP",434]
[7104128,{"$f":"CONCATENATE(Tabela4[[#This Row],[Unidade]],Tabela4[[#This Row],[hifen]],Tabela4[[#This Row],[codun]])","v":"UAEP-7104"},"PLANEJAMENTO E CONTROLE DA PRODUCAO II",{"$f":"LEFT(Tabela4[[#This Row],[Cód]],4)","v":"7104"},"-",4,4,"UAEP",435]
[7104130,{"$f":"CONCATENATE(Tabela4[[#This Row],[Unidade]],Tabela4[[#This Row],[hifen]],Tabela4[[#This Row],[codun]])","v":"UAEP-7104"},"PLANEJAMENTO E PROJETO DE PRODUTO",{"$f":"LEFT(Tabela4[[#This Row],[Cód]],4)","v":"7104"},"-",4,4,"UAEP",436]
[7104261,{"$f":"CONCATENATE(Tabela4[[#This Row],[Unidade]],Tabela4[[#This Row],[hifen]],Tabela4[[#This Row],[codun]])","v":"UAEP-7104"},"PLANEJAMENTO ESTRATEGICO",{"$f":"LEFT(Tabela4[[#This Row],[Cód]],4)","v":"7104"},"-",4,4,"UAEP",437]
[7104029,{"$f":"CONCATENATE(Tabela4[[#This Row],[Unidade]],Tabela4[[#This Row],[hifen]],Tabela4[[#This Row],[codun]])","v":"UAEP-7104"},"PROGRAMAÇÃO",{"$f":"LEFT(Tabela4[[#This Row],[Cód]],4)","v":"7104"},"-",4,4,"UAEP",438]
[7104278,{"$f":"CONCATENATE(Tabela4[[#This Row],[Unidade]],Tabela4[[#This Row],[hifen]],Tabela4[[#This Row],[codun]])","v":"UAEP-7104"},"PROJETO DE FABRICA E LAYOUT",{"$f":"LEFT(Tabela4[[#This Row],[Cód]],4)","v":"7104"},"-",4,4,"UAEP",439]
[7104259,{"$f":"CONCATENATE(Tabela4[[#This Row],[Unidade]],Tabela4[[#This Row],[hifen]],Tabela4[[#This Row],[codun]])","v":"UAEP-7104"},"SIMULACAO DE SISTEMAS",{"$f":"LEFT(Tabela4[[#This Row],[Cód]],4)","v":"7104"},"-",4,4,"UAEP",440]
[7104030,{"$f":"CONCATENATE(Tabela4[[#This Row],[Unidade]],Tabela4[[#This Row],[hifen]],Tabela4[[#This Row],[codun]])","v":"UAEP-7104"},"SISTEMAS DE PRODUCAO",{"$f":"LEFT(Tabela4[[#This Row],[Cód]],4)","v":"7104"},"-",4,4,"UAEP",441]
[7104299,{"$f":"CONCATENATE(Tabela4[[#This Row],[Unidade]],Tabela4[[#This Row],[hifen]],Tabela4[[#This Row],[codun]])","v":"UAEP-7104"},"TEEP(AVANCOS EM PESQUISA OPERACIONAL)",{"$f":"LEFT(Tabela4[[#This Row],[Cód]],4)","v":"7104"},"-",4,4,"UAEP",442]
[7104298,{"$f":"CONCATENATE(Tabela4[[#This Row],[Unidade]],Tabela4[[#This Row],[hifen]],Tabela4[[#This Row],[codun]])","v":"UAEP-7104"},"TEEP(CONFIABILIDADE E ANALISE DE RISCOS)",{"$f":"LEFT(Tabela4[[#This Row],[Cód]],4)","v":"7104"},"-",4,4,"UAEP",443]
[7104241,{"$f":"CONCATENATE(Tabela4[[#This Row],[Unidade]],Tabela4[[#This Row],[hifen]],Tabela4[[#This Row],[codun]])","v":"UAEP-7104"},"TEEP(FONTES ALTERNATIVAS DE ENERGIA)",{"$f":"LEFT(Tabela4[[#This Row],[Cód]],4)","v":"7104"},"-",4,4,"UAEP",444]
[7104297,{"$f":"CONCATENATE(Tabela4[[#This Row],[Unidade]],Tabela4[[#This Row],[hifen]],Tabela4[[#This Row],[codun]])","v":"UAEP-7104"},"TEEP(MATEMATICA FINANCEIRA)",{"$f":"LEFT(Tabela4[[#This Row],[Cód]],4)","v":"7104"},"-",4,4,"UAEP",445]
[7104300,{"$f":"CONCATENATE(Tabela4[[#This Row],[Unidade]],Tabela4[[#This Row],[hifen]],Tabela4[[#This Row],[codun]])","v":"UAEP-7104"},"TEEP(NEGOCIAÇÃO E RESOLUÇÃO DE CONFL)",{"$f":"LEFT(Tabela4[[#This Row],[Cód]],4)","v":"7104"},"-",4,4,"UAEP",446]
[7104291,{"$f":"CONCATENATE(Tabela4[[#This Row],[Unidade]],Tabela4[[#This Row],[hifen]],Tabela4[[#This Row],[codun]])","v":"UAEP-7104"},"TRABALHO DE CONCLUSAO DE CURSO",{"$f":"LEFT(Tabela4[[#This Row],[Cód]],4)","v":"7104"},"-",4,null,"UAEP",447]
[null,{"$f":"CONCATENATE(Tabela4[[#This Row],[Unidade]],Tabela4[[#This Row],[hifen]],Tabela4[[#This Row],[codun]])","v":""},null,{"$f":"LEFT(Tabela4[[#This Row],[Cód]],4)","v":""}]

{"sheet":"BD Atividades","index":3,"n_rows":163,"n_cols":2,"rows_kept":163,"cut":false,"hidden":true,"merged":[[0,0,0,1]]}
["Seção 1.2(Demais atividades de ensino)"]
["Tipo de atividade","Pontos"]
["Escolha um item..."]
["1. Monografia",2.5]
["2. Estágio Curricular",2.5]
["3. TCC – Trabalho de Conclusão de Curso",2.5]
["4. Projetos Experimentais",2.5]
["5. Prática Jurídica",2.5]
["6. Prática Terapêutica",2.5]
["7. Outras atividades correlatas",2.5]
["8. Prática de Ensino",10]
[]
["Seção 2 (Produção intelectual)"]
["Tipo de atividade","Pontos"]
["Escolha um item..."]
["1. Livros técnico-científicos ou artístico-culturais publicados na área acadêmica, com autoria individual, aprovados por Conselho Editorial ou com registro ISBN",40]
["2. Livros técnico-científicos ou artístico-culturais publicados na área acadêmica, com mais de um autor, aprovados por Conselho Editorial ou com registro ISBN",30]
["3. Capítulos de livros técnico-científicos ou artístico-culturais publicados na área acadêmica, aprovados por Conselho Editorial ou com registro ISBN",10]
["4. Publicação de tradução de livro técnico-científico ou artístico-cultural, aprovada por Conselho Editorial ou com registro ISBN",15]
["5. Publicação de tradução de capítulo de livro técnico-científico ou artístico-cultural, aprovada por Conselho Editorial ou com registro ISBN",5]
["6. Publicação de tradução de artigo técnico-científico ou artístico-cultural, aprovada por Conselho Editorial",5]
["7. Artigos técnicos ou científicos publicados em periódicos indexados internacionalmente",20]
["8. Artigos técnicos ou científicos publicados em periódicos de circulação nacional",15]
["9. Artigos de divulgação científica, tecnológica, artística ou cultural publicados em periódicos especializados",10]
["10. Trabalhos completos publicados em anais de eventos internacionais",13]
["11. Trabalhos completos publicados em anais de eventos nacionais",8]
["12. Resumos publicados em anais de eventos internacionais",5]
["13. Resumos publicados em anais de eventos nacionais",3]
["14. Obras artísticas ou culturais premiadas internacionalmente",40]
["15. Obras artísticas ou culturais apresentadas ou publicadas internacionalmente",20]
["16. Obras artísticas ou culturais premiadas nacionalmente",30]
["17. Obras artísticas ou culturais apresentadas ou publicadas nacionalmente",15]
["18. Obras artísticas ou culturais premiadas regionalmente",20]
["19. Obras artísticas ou culturais apresentadas ou publicadas regionalmente",10]
["20. Obras artísticas ou culturais premiadas localmente",8]
["21. Obras artísticas ou culturais apresentadas ou publicadas localmente",5]
["22. Apresentação pública como instrumentista solista, cantor solista, maestro, bailarino solista, ator principal ou diretor, em eventos de responsabilidade institucional",3]
["23. Apresentação pública como instrumentista de conjunto ou orquestra, coralista, vocalista, ator coadjuvante, bailarino do corpo, em eventos de responsabilidade institucional",1]
["24. Patentes registradas",40]
["25. Participação em eventos técnico-científicos ou artístico-culturais como conferencista ou artista convidado",10]
["26. Participação em eventos técnico-científicos ou artístico-culturais como debatedor convidado",5]
["27. Ministração de minicursos ou palestras em eventos técnico-científicos ou artístico-culturais",10]
["28. Participação em Conselho Editorial de Editoras ou revistas técnico-científicas ou artístico-culturais indexadas",10]
["29. Participação em Conselho Editorial de revistas técnico científicas ou artístico-culturais",5]
["30. Editoração de revista técnico-científica ou artístico-cultural indexada",15]
["31. Editoração de revista técnico-científica ou artístico-cultural com conselho editorial",10]
["32. Organização de livros técnico-científicos ou artístico-culturais ou revistas técnico-científicas ou artístico-culturais, na área acadêmica, aprovados por Conselho Editorial ou com registro ISBN",10]
["33. Produção de material didático instrucional mediante comprovação pelo setor competente",5]
["34. Tradução simultânea de cunho institucional em evento técnico-científico ou artístico-cultural",5]
["35. Relatório Final de Pesquisa ou Extensão, aprovados pela Unidade Acadêmica ou órgão de fomento à pesquisa, relativo aos itens, 1, 2, 4 e 5 da Seção 3",8]
[]
["Seção 3 (Atividades de Pesquisa e de Extensão)"]
["Tipo de atividade","Pontos"]
["Escolha um item..."]
["1. Coordenação de Programas de intercâmbio científico para formação de RH de alto nível e de projeto integrado de pesquisa cadastrado em agência de fomento ou aprovada pela Unidade Acadêmica (não cumulativa com o item 3, para o mesmo projeto)",15]
["2. Execução de projeto individual de pesquisa cadastrada em agência de fomento ou aprovada pela Unidade Acadêmica.",15]
["3. Participação de projeto integrado de pesquisa cadastrada em agência de fomento ou aprovada pela Unidade Acadêmica.",10]
["4. Coordenação de ação permanente de extensão aprovada na Unidade Acadêmica, com registro na PROPEX, que apresente interface com o ensino ou a pesquisa, e caráter interunidades (não cumulativo com os itens 5 e 6)",15]
["5. Coordenação de ação permanente de extensão aprovada na Unidade Acadêmica, com registro na PROPEX, que apresente interface com o ensino ou a pesquisa.",15]
["6. Participação de ação permanente de extensão (membro da equipe) aprovada na Unidade Acadêmica, com registro na PROPEX.",10]
["7. Assessoria e consultoria externas conveniadas (Convênio ou Termo Aditivo, com registro na SEPLAN) aprovada na Unidade Acadêmica.",10]
["8. Elaboração de laudos técnicos",2]
["9. Prestação direta de serviços à comunidade, nas unidades HU’s, HV, laboratórios, clínicas, escritórios de prática jurídica, fazendas experimentais e órgãos assemelhados, com aprovação na Unidade Acadêmica (não cumulativo com as atividades de ensino)",3]
["10. Consultoria ad hoc a Instituições ou agências de fomento para análise ou participação em processos seletivos de projetos em programas oficiais",2]
["Carga horária Semanal Total da Seção 3"]
[]
[]
["Seção 4 (Atividades de Qualificação)"]
[]
["Tipo de atividade"]
["Escolha um item..."]
["1. Participação em programa de qualificação em mestrado ou doutorado, ou em estágio de pós-doutorado, e programa de formação de recursos humanos de alto nível, regularmente afastado.",84]
["2. Apresentação do Formulário de Acompanhamento do Docente em Capacitação, da PRPG, aprovado pelo orientador.",56]
["3. Apresentação do relatório de pesquisa para os docentes em estágio de pós-doutorado, aprovado pela Unidade Acadêmica.",56]
[]
["Carga horária Semanal Total da Seção 4"]
["Escolha um item..."]
["1. Participação em programa de qualificação em mestrado ou doutorado, ou em estágio de pós-doutorado, e programa de formação de recursos humanos de alto nível, SEM AFASTAMENTO."]
["Seção 5 (Atividades Administrativas e de Representação)"]
[]
["Tipo de atividade"]
["Escolha um item..."]
["1. Vice-Coordenação de Curso e Núcleo",10]
["2. Assessoria à Administração Superior com função\nnão correspondente a CD, FG1 ou FG2",10]
["3. Assessoria a Centro (no limite de cinco assessores por Centro)",10]
["4. Assessoria de Unidade Acadêmica (no limite de três assessores por unidade acadêmica)",10]
["5. Chefia de setor produtivo, agroindústria, agricultura, zootecnia e similares",5]
["6. Coordenação de cursos lato sensu",20]
["7. Coordenação Geral de programas e projetos permanentes institucionais",10]
["8. Coordenação de projetos de Monitoria, PROLICEN, PET e demais programas institucionais, no âmbito de Departamento ou Curso ou Unidade Acadêmica",10]
["9. Coordenação de Laboratório de Pesquisa e de apoio ao ensino",10]
["10. Coordenação de Curso de Extensão devidamente regularizado",3]
["11. Coordenação de disciplina",2]
["12. Tutoria de aluno de graduação",2]
["13. Representante de área acadêmica, preceptor de residência médica, chefe de serviços médicos, chefe de divisão clínica",5]
["14. Participação ponderada pela presença às sessões das reuniões em Conselhos Superiores, na qualidade de membro titular (não serão atribuídos os pontos deste item aos membros natos desses Conselhos Superiores)",10]
["15. Participação ponderada pela presença às sessões das reuniões em Conselhos Superiores, na qualidade de membro suplente (não serão atribuídos os pontos deste item aos suplentes dos membros natos destes Conselhos Superiores)",5]
["16. Participação em Conselhos e Fóruns de políticas públicas representando a UFCG com ato de nomeação do Reitor",5]
["17. Cargo de direção em Sindicato Docente (local ou nacional) ou em Conselhos de Políticas Públicas ou Entidades de Representação Profissional ou da Sociedade Científica",10]
["18. Participação ponderada pela presença às sessões das reuniões em Colegiados de Cursos, Câmaras Departamentais ou de Conselhos Hospitalares na qualidade de membro titular (não serão atribuídos os pontos deste item aos membros natos desses Colegiados)",5]
["19. Participação ponderada pela presença às sessões das reuniões em Colegiados de Cursos, Câmaras Departamentais ou de Conselhos Hospitalares na qualidade de membro suplente (não serão atribuídos os pontos deste item aos membros natos desses Colegiados)",5]
["Carga Horária Semanal total da Seção 5"]
[]
[]
["Seção 6 (Orientação Acadêmica)"]
[]
["Tipo de atividade"]
["Escolha um item..."]
["1. Orientação de tese",20]
["2. Coorientação de tese",8]
["3. Orientação de dissertação",10]
["4. Coorientação de dissertação",4]
["5. Orientação de trabalhos finais de curso lato sensu",5]
["6. Coorientação de trabalhos finais de curso lato sensu",2]
["Carga Horária Semanal total da Seção 6"]
[]
[]
["Seção 7 (Outras Atividades)"]
[]
["Tipo de atividade"]
["Escolha um item..."]
["1. Participação em equipe executora de programas e projetos permanentes institucionais",5]
["2. Participação em equipe executora de projetos de Monitoria, PROLICEN, PROIN, PET e demais programas institucionais no âmbito do Departamento, Unidade Acadêmica ou Curso",5]
["3. Orientação a alunos de graduação em projetos de ensino, pesquisa e extensão",5]
["4. Teses defendidas e aprovadas sob orientação do docente",5]
["5. Dissertações defendidas e aprovadas sob orientação do docente",5]
["6. Monografias defendidas e aprovadas sob orientação do docente",5]
["7. Participação em banca examinadora de tese",3]
["8. Participação em banca examinadora de dissertação",2]
["9. Participação em banca examinadora de monografia, TCC, relatórios técnicos ou similares, exigidos para integralização curricular dos cursos de graduação e lato sensu",1]
["10. Participação em banca examinadora de concurso público para professor titular",3]
["11. Participação em banca examinadora de concurso público para nomeação de professor de ensino superior",2]
["12. Participação em banca examinadora de seleção para professor temporário",1]
["13. Participação em comissões acadêmicas, assessorias e consultorias que tratem de assunto de abrangência geral da Instituição, por designação da Administração Superior, através de portaria, ou por solicitação de outros órgãos",5]
["14. Participação em comissões acadêmicas, assessorias e consultorias que tratem de assunto de abrangência do Centro por designação do chefe imediato",1]
["15. Consultoria a revistas técnico-científicas ou artístico-culturais",2]
["16. Participação em banca de seleção de alunos para o doutorado",3]
["17. Participação em banca de seleção de alunos para o mestrado",2]
["18. Participação em banca de seleção de alunos para a especialização",1]
["19. Participação em bancas examinadoras de exame de qualificação",1]
["20. Participação em processo seletivo de alunos de graduação candidatos à bolsa em programas institucionais",2]
["21. Participação em provas de proficiência em línguas estrangeiras (elaboração, aplicação e avaliação)",2]
["22. Coordenação de evento técnico-científico ou artístico-cultural internacional",5]
["23. Coordenação de evento técnico-científico ou artístico-cultural nacional",5]
["24. Coordenação de evento técnico-científico ou artístico-cultural regional",4]
["25. Coordenação de evento técnico-científico ou artístico-cultural local",2]
["26. Membro de comissão de evento técnico-científico ou artístico-cultural internacional",5]
["27. Membro de comissão de evento técnico-científico ou artístico-cultural nacional",3]
["28. Membro de comissão de evento técnico-científico ou artístico-cultural regional",2]
["29. Membro de comissão de evento técnico-científico ou artístico-cultural local",1]
["30. Participação efetiva em seminário ou minicurso visando o aperfeiçoamento profissional",1]
["31. Participação em comissões de especialistas ou comissões de avaliação de condições de oferta ou ensino ou de reconhecimento de cursos",3]
["32. Coordenação de seminário em nível de Departamento, Unidade Acadêmica ou Centro",2]
[]
[]
[]
[]
["Seção 8 (Cargo de Direção e ou de Chefia)"]
["Tipo de atividade"]
["Escolha um item..."]
["1. Docente ocupante de cargos de direção – CD (percebendo ou não a gratificação)",140]
["2. Docente ocupante de funções gratificadas FG ou CD (percebendo ou não a devida gratificação)",84]
["3. Exercício de cargo em comissão, ou equivalente, em Órgão ou Entidade dos Poderes da União, dos Estados e Municípios e do Distrito Federal.",84]

{"sheet":"BD Listas","index":4,"n_rows":22,"n_cols":11,"rows_kept":22,"cut":false,"hidden":true,"merged":[]}
["Escolha um curso...",null,null,"Unidade Ofertante",null,null,"semestre (graduação)","modo",null,null,"Prog.Promo?"]
["ST-Gestão Pública",null,null,"Escolha...",null,null,2020.3,"Remoto",null,null,"Escolha uma opção..."]
["ST-Agroecologia",null,null,"UAC!S",null,null,"2020.3","Remoto",null,null,"Relatório p/ Progressão ou Promoção Funcional"]
["Ciências Sociais",null,null,"UAEDUC",null,null,"2020-3","Remoto",null,null,"Relatório Anual de Atividades Docente"]
["Educação do Campo",null,null,"UAEB",null,null,"2020.1","Remoto",null,null,"Plano Anual de Atividades Docente"]
["Eng. da Produção",null,null,"UAEP",null,null,2020.1,"Remoto"]
["Eng. de Biossistemas",null,null,"UAGESP",null,null,"2020-1","Remoto"]
["Eng. de Biotec. e Bioproc.",null,null,"UATEC",null,null,"2020.1e","Remoto"]
[null,null,null,null,null,null,"2020,1e","Remoto"]
[null,null,null,null,null,null,"2020-1e","Remoto"]
[null,null,null,null,null,null,"2020.2","Remoto"]
[null,null,null,null,null,null,2020.2,"Remoto"]
[null,null,null,null,null,null,"2020-3","Remoto"]
[null,null,null,null,null,null,"2020.2e","Remoto"]
[null,null,null,null,null,null,"2020,2e","Remoto"]
[null,null,null,null,null,null,"2020-2e","Remoto"]
[null,null,null,null,null,null,"2021.1","Remoto"]
[null,null,null,null,null,null,2021.1,"Remoto"]
[null,null,null,null,null,null,"2021-1","Remoto"]
[null,null,null,null,null,null,"2021.1e","Remoto"]
[null,null,null,null,null,null,"2021,1e","Remoto"]
[null,null,null,null,null,null,"2021-1e","Remoto"]

{"sheet":"Filtro","index":5,"n_rows":449,"n_cols":9,"rows_kept":449,"cut":false,"hidden":true,"merged":[]}
["Cód","codUnid","Disciplina","codun","hifen","Créditos","CH extrassala","Unidade","ID"]
[7101190,"UAEDUC-7101","A EDUCACAO DA PESSOA SURDA","7101","-",2,2,"UAEDUC",1]
[7101051,"UAEDUC-7101","AÇÃO COLETIVA,ASSOCIAT E COOPERATIVISMO","7101","-",2,2,"UAEDUC",2]
[7102094,"UATEC-7102","ADMINISTRAÇÃO E EMPREENDEDORISMO","7102","-",2,2,"UATEC",3]
[7106047,"UAGESP-7106","ADMINISTRAÇÃO ESTRATÉGICA","7106","-",4,4,"UAGESP",4]
[7102266,"UATEC-7102","AGRICULTURA DE PRECISAO","7102","-",4,4,"UATEC",5]
[7102307,"UATEC-7102","AGRICULTURA ORGÂNICA","7102","-",2,2,"UATEC",6]
[7102086,"UATEC-7102","AGROEC APLIC AO CULT DE PLANTAS ALIMENT","7102","-",4,4,"UATEC",7]
[7102085,"UATEC-7102","AGROEC APLIC AO CULTIVO DE FRUTIFERAS","7102","-",2,2,"UATEC",8]
[7102082,"UATEC-7102","AGROEC APLIC AO CULTIVO DE OLERICOLAS","7102","-",4,4,"UATEC",9]
[7102063,"UATEC-7102","AGROECOLOGIA","7102","-",2,2,"UATEC",10]
[7102083,"UATEC-7102","AGROECOLOGIA ANIMAL","7102","-",4,4,"UATEC",11]
[7102067,"UATEC-7102","AGROMETEOROLOGIA","7102","-",4,4,"UATEC",12]
[7102010,"UATEC-7102","ÁLGEBRA LINEAR","7102","-",4,4,"UATEC",13]
[7102036,"UATEC-7102","ANATO-FISIOLOGIA VEGETAL","7102","-",4,4,"UATEC",14]
[7102068,"UATEC-7102","ANATOMIA VEGETAL","7102","-",2,2,"UATEC",15]
[7105088,"UACIS-7105","ANTROPOLOGIA BRASILEIRA","7105","-",2,2,"UACIS",16]
[7105192,"UACIS-7105","ANTROPOLOGIA DA ARTE","7105","-",2,2,"UACIS",17]
[7105001,"UACIS-7105","ANTROPOLOGIA E EDUCAÇÃO","7105","-",4,4,"UACIS",18]
[7102303,"UATEC-7102","APICULTURA","7102","-",4,4,"UATEC",19]
[7101123,"UAEDUC-7101","ASPECT MORFOSSINTATICOS DA L PORTUGUESA","7101","-",4,4,"UAEDUC",20]
[7101173,"UAEDUC-7101","ASPECTOS SOCIOANTROPOLOGICOS DO ESPORTE","7101","-",2,2,"UAEDUC",21]
[7101172,"UAEDUC-7101","ATIVID ACADEMICO-CIENTIFICO-CULTURAIS","7101","-",14,14,"UAEDUC",22]
[7105157,"UACIS-7105","ATIVIDADES COMPLEMENTARES FLEXIVEIS","7105","-",14,14,"UACIS",23]
[7102258,"UATEC-7102","ATIVIDADES COMPLEMENTARES FLEXIVEIS","7102","-",16,16,"UATEC",24]
[7102286,"UATEC-7102","ATIVIDADES COMPLEMENTARES FLEXIVEIS","7102","-",4,4,"UATEC",25]
[7102289,"UATEC-7102","ATIVIDADES COMPLEMENTARES FLEXIVEIS","7102","-",5,5,"UATEC",26]
[7102292,"UATEC-7102","ATIVIDADES COMPLEMENTARES FLEXIVEIS","7102","-",4,4,"UATEC",27]
[7106111,"UAGESP-7106","AVALIAÇÃO DE POLÍTICAS PÚBLICAS","7106","-",4,4,"UAGESP",28]
[7101091,"UAEDUC-7101","AVALIAÇÃO DOS PROCESSOS EDUCACIONAIS","7101","-",4,4,"UAEDUC",29]
[7103244,"UAEB-7103","BIOCOMBUSTIVEIS","7103","-",2,2,"UAEB",30]
[7103303,"UAEB-7103","BIOCOMBUSTIVEIS","7103","-",4,4,"UAEB",31]
[7102304,"UATEC-7102","BIOCONTROLE DE DOENCAS DE PLANTAS","7102","-",2,2,"UATEC",32]
[7106138,"UAGESP-7106","BIODIREITO","7106","-",2,2,"UAGESP",33]
[7103253,"UAEB-7103","BIOINFORMÁTICA","7103","-",4,4,"UAEB",34]
[7103001,"UAEB-7103","BIOLOGIA CELULAR E MOLECULAR","7103","-",4,4,"UAEB",35]
[7102016,"UATEC-7102","BIOLOGIA DO SEMIARIDO","7102","-",2,2,"UATEC",36]
[7103254,"UAEB-7103","BIOMATERIAIS","7103","-",2,2,"UAEB",37]
[7103053,"UAEB-7103","BIOQUÍMICA","7103","-",4,4,"UAEB",38]
[7103055,"UAEB-7103","BIOSSEGURANCA","7103","-",2,2,"UAEB",39]
[7103272,"UAEB-7103","BIOTECNOLOGIA AMBIENTAL","7103","-",4,4,"UAEB",40]
[7102283,"UATEC-7102","BIOTECNOLOGIA DOS SOLOS","7102","-",2,2,"UATEC",41]
[7102022,"UATEC-7102","BOTANICA","7102","-",2,2,"UATEC",42]
[7101144,"UAEDUC-7101","BOTANICA DO SEMIARIDO","7101","-",4,4,"UAEDUC",43]
[7102002,"UATEC-7102","CALCULO DIFERENCIAL E INTEGRAL I","7102","-",4,4,"UATEC",44]
[7102009,"UATEC-7102","CALCULO DIFERENCIAL E INTEGRAL II","7102","-",4,4,"UATEC",45]
[7102028,"UATEC-7102","CALCULO DIFERENCIAL E INTEGRAL III","7102","-",4,4,"UATEC",46]
[7102088,"UATEC-7102","CAPRINOCULTURA LEITEIRA","7102","-",4,4,"UATEC",47]
[7101117,"UAEDUC-7101","CARTOGRAFIA GERAL","7101","-",4,4,"UAEDUC",48]
[7102235,"UATEC-7102","CERTIFICAÇÃO DE SISTEMAS AGROECOLÓGICOS","7102","-",4,4,"UATEC",49]
[7105137,"UACIS-7105","CIDADANIA E TRABALHO","7105","-",2,2,"UACIS",50]
[7102051,"UATEC-7102","CIÊNCIAS DO AMBIENTE","7102","-",2,2,"UATEC",51]
[7103126,"UAEB-7103","CINETICA E CALCULO DE BIORREATORES","7103","-",4,4,"UAEB",52]
[7102247,"UATEC-7102","CLIMATIZAÇÃO E AUTOM. EM AMB. PROTEGIDOS","7102","-",4,4,"UATEC",53]
[7101174,"UAEDUC-7101","CLIMATOLOGIA,HIDROLOGIA E SOLOS DO SEMIA","7101","-",4,4,"UAEDUC",54]
[7102111,"UATEC-7102","CONSTRUÇÕES E MÁQUINAS RURAIS","7102","-",4,4,"UATEC",55]
[7102121,"UATEC-7102","CONSTRUCOES RURAIS E AMBIENCIA","7102","-",4,4,"UATEC",56]
[7106063,"UAGESP-7106","CONT INTERNOS E EXTERNOS DA GEST PUBLICA","7106","-",4,4,"UAGESP",57]
[7106112,"UAGESP-7106","CONTABILIDADE AMBIENTAL","7106","-",4,4,"UAGESP",58]
[7102246,"UATEC-7102","CONTROLE EM PROCESSOS AGROPECUARIOS","7102","-",2,2,"UATEC",59]
[7101015,"UAEDUC-7101","CULTURA CORPORAL","7101","-",4,4,"UAEDUC",60]
[7103098,"UAEB-7103","CULTURA DE CELULAS ANIMAIS","7103","-",4,4,"UAEB",61]
[7103099,"UAEB-7103","CULTURA DE TECIDOS VEGETAIS","7103","-",4,4,"UAEB",62]
[7105186,"UACIS-7105","CULTURA POLÍTICA","7105","-",2,2,"UACIS",63]
[7101066,"UAEDUC-7101","CURRICULO E ESCOLA","7101","-",4,4,"UAEDUC",64]
[7105030,"UACIS-7105","DES SUST, IDENTIDADES E TERRITORIALIDADE","7105","-",2,2,"UACIS",65]
[7102012,"UATEC-7102","DESENHO TÉCNICO","7102","-",4,4,"UATEC",66]
[7101082,"UAEDUC-7101","DESENVOLVIMENTO HUMANO E MOVIM CORPORAIS","7101","-",4,4,"UAEDUC",67]
[7102305,"UATEC-7102","DESENVOLVIMENTO RURAL E SUSTENTABILIDADE","7102","-",2,2,"UATEC",68]
[7101029,"UAEDUC-7101","DIDATICA","7101","-",4,4,"UAEDUC",69]
[7106077,"UAGESP-7106","DIREITO","7106","-",2,2,"UAGESP",70]
[7106061,"UAGESP-7106","DIREITO ADMINISTRATIVO","7106","-",4,4,"UAGESP",71]
[7106127,"UAGESP-7106","DIREITO AGRARIO E AMBIENTAL","7106","-",2,2,"UAGESP",72]
[7106155,"UAGESP-7106","DIREITO AMBIENTAL","7106","-",2,2,"UAGESP",73]
[7106049,"UAGESP-7106","DIREITO CONSTITUCIONAL","7106","-",4,4,"UAGESP",74]
[7106177,"UAGESP-7106","DIREITO E ETICA","7106","-",2,2,"UAGESP",75]
[7106080,"UAGESP-7106","DIREITO REGULATORIO","7106","-",2,2,"UAGESP",76]
[7106108,"UAGESP-7106","DIREITO TRIBUTARIO","7106","-",2,2,"UAGESP",77]
[7105198,"UACIS-7105","DIREITOS HUMANOS","7105","-",2,2,"UACIS",78]
[7106156,"UAGESP-7106","DIREITOS HUMANOS E DESENVOLV. HUMANO","7106","-",4,4,"UAGESP",79]
[7101189,"UAEDUC-7101","DIREITOS HUMANOS E DESENVOLVIMENTO","7101","-",4,4,"UAEDUC",80]
[7102248,"UATEC-7102","DRENAGEM AGRICOLA","7102","-",4,4,"UATEC",81]
[7101128,"UAEDUC-7101","ECOLOGIA DO SEMIARIDO","7101","-",2,2,"UAEDUC",82]
[7102035,"UATEC-7102","ECOLOGIA DO SEMIARIDO","7102","-",4,4,"UATEC",83]
[7106132,"UAGESP-7106","ECONOMIA","7106","-",2,2,"UAGESP",84]
[7106184,"UAGESP-7106","ECONOMIA POLÍTICA","7106","-",4,4,"UAGESP",85]
[7106181,"UAGESP-7106","ECONOMIA RURAL","7106","-",4,4,"UAGESP",86]
[7106106,"UAGESP-7106","ECONOMIA SOLIDARIA E AUTOGESTAO","7106","-",4,4,"UAGESP",87]
[7101150,"UAEDUC-7101","ED. FÍSICA NO ENS. FUND. E ENS. MÉDIO","7101","-",4,4,"UAEDUC",88]
[7101114,"UAEDUC-7101","EDUCAÇÃO DE JOVENS E ADULTOS","7101","-",4,4,"UAEDUC",89]
[7101016,"UAEDUC-7101","EDUCAÇÃO DO CAMPO","7101","-",4,4,"UAEDUC",90]
[7101067,"UAEDUC-7101","EDUCAÇÃO ESPECIAL","7101","-",4,4,"UAEDUC",91]
[7101100,"UAEDUC-7101","EDUCAÇÃO MUSICAL","7101","-",2,2,"UAEDUC",92]
[7101069,"UAEDUC-7101","EDUCAÇÃO POPULAR E MOVIMENTOS SOCIAIS","7101","-",4,4,"UAEDUC",93]
[7106152,"UAGESP-7106","ELAB DE PROJ E CAPT DE RECURS PUBLICOS","7106","-",4,4,"UAGESP",94]
[7102238,"UATEC-7102","ELABORAÇÃO E AVAL. DE PROJ. ECONÔMICOS","7102","-",4,4,"UATEC",95]
[7102075,"UATEC-7102","ELETRICIDADE BASICA","7102","-",2,2,"UATEC",96]
[7103090,"UAEB-7103","EMBRIOLOGIA","7103","-",4,4,"UAEB",97]
[7102038,"UATEC-7102","ENTOMOLOGIA GERAL","7102","-",2,2,"UATEC",98]
[7103072,"UAEB-7103","ENZIMOLOGIA E TECNOLOGIA DA FERMENTAÇÃO","7103","-",4,4,"UAEB",99]
[7102020,"UATEC-7102","EQUACOES DIFERENCIAIS LINEARES","7102","-",4,4,"UATEC",100]
[7101086,"UAEDUC-7101","ESPANHOL I","7101","-",4,4,"UAEDUC",101]
[7101120,"UAEDUC-7101","ESPANHOL II","7101","-",4,4,"UAEDUC",102]
[7105113,"UACIS-7105","ESTADO E POLITICAS PUBLICAS","7105","-",4,4,"UACIS",103]
[7105160,"UACIS-7105","ESTAGIO CURICULAR SUPERVISIONADO I","7105","-",13,null,"UACIS",104]
[7102256,"UATEC-7102","ESTAGIO CURRICULAR SUPERVISIONADO","7102","-",10,null,"UATEC",105]
[7101092,"UAEDUC-7101","ESTAGIO CURRICULAR SUPERVISIONADO I","7101","-",6,null,"UAEDUC",106]
[7105165,"UACIS-7105","ESTAGIO CURRICULAR SUPERVISIONADO II","7105","-",14,null,"UACIS",107]
[7101116,"UAEDUC-7101","ESTAGIO CURRICULAR SUPERVISIONADO II","7101","-",6,null,"UAEDUC",108]
[7101140,"UAEDUC-7101","ESTAGIO CURRICULAR SUPERVISIONADO III","7101","-",9,null,"UAEDUC",109]
[7101168,"UAEDUC-7101","ESTAGIO CURRICULAR SUPERVISIONADO IV","7101","-",12,null,"UAEDUC",110]
[7106154,"UAGESP-7106","ESTAGIO SUPERVISIONADO","7106","-",4,null,"UAGESP",111]
[7103287,"UAEB-7103","ESTAGIO SUPERVISIONADO","7103","-",16,null,"UAEB",112]
[7102284,"UATEC-7102","ESTAGIO SUPERVISIONADO","7102","-",12,null,"UATEC",113]
[7106062,"UAGESP-7106","ESTATÍSTICA BÁSICA","7106","-",2,2,"UAGESP",114]
[7103234,"UAEB-7103","ESTATÍSTICA EXPERIMENTAL","7103","-",4,4,"UAEB",115]
[7102294,"UATEC-7102","ESTATÍSTICA EXPERIMENTAL","7102","-",4,4,"UATEC",116]
[7101055,"UAEDUC-7101","ESTUDO DO TEXTO DRAMATICO","7101","-",4,4,"UAEDUC",117]
[7106064,"UAGESP-7106","ÉTICA","7106","-",2,2,"UAGESP",118]
[7105139,"UACIS-7105","ETNOLOGIA INDIGENA NO BRASIL","7105","-",4,4,"UACIS",119]
[7101031,"UAEDUC-7101","ETNOMUSICOLOGIA","7101","-",4,4,"UAEDUC",120]
[7102237,"UATEC-7102","ETOLOGIA","7102","-",4,4,"UATEC",121]
[7102298,"UATEC-7102","EXTENSAO RURAL","7102","-",4,4,"UATEC",122]
[7103124,"UAEB-7103","FARMACOBIOTECNOLOGIA","7103","-",4,4,"UAEB",123]
[7106059,"UAGESP-7106","FEDERALISMO FISCAL","7106","-",4,4,"UAGESP",124]
[7102065,"UATEC-7102","FENOMENOS DE TRANSPORTE","7102","-",4,4,"UATEC",125]
[7101095,"UAEDUC-7101","FILOSOFIA CONTEMPORANEA","7101","-",4,4,"UAEDUC",126]
[7101012,"UAEDUC-7101","FILOSOFIA E EDUCAÇÃO","7101","-",4,4,"UAEDUC",127]
[7106182,"UAGESP-7106","FILOSOFIA POLITICA","7106","-",2,2,"UAGESP",128]
[7103052,"UAEB-7103","FÍSICO-QUÍMICA","7103","-",4,4,"UAEB",129]
[7102048,"UATEC-7102","FÍSICO-QUÍMICA DOS SOLOS","7102","-",4,4,"UATEC",130]
[7103239,"UAEB-7103","FISIOLOGIA MOLECULAR","7103","-",4,4,"UAEB",131]
[7101163,"UAEDUC-7101","FRANCES I","7101","-",4,4,"UAEDUC",132]
[7101188,"UAEDUC-7101","FRANCES II","7101","-",4,4,"UAEDUC",133]
[7101098,"UAEDUC-7101","FUND FONET E FONOLOG DA LINGUA PORTUGUES","7101","-",4,4,"UAEDUC",134]
[7105010,"UACIS-7105","FUND. DE PESQUISA EM CIÊNCIAS SOCIAIS","7105","-",4,4,"UACIS",135]
[7101075,"UAEDUC-7101","FUNDAMENTOS DA CIÊNCIA DA LINGUAGEM","7101","-",4,4,"UAEDUC",136]
[7106025,"UAGESP-7106","FUNDAMENTOS DA ECONOMIA","7106","-",4,4,"UAGESP",137]
[7102034,"UATEC-7102","FUNDAMENTOS DA PESQUISA AMBIENTAL","7102","-",2,2,"UATEC",138]
[7101033,"UAEDUC-7101","FUNDAMENTOS DAS LINGUAGENS ARTISTICAS","7101","-",2,2,"UAEDUC",139]
[7103097,"UAEB-7103","FUNDAMENTOS DE ENGENHARIA GENETICA","7103","-",4,4,"UAEB",140]
[7106057,"UAGESP-7106","FUNDAMENTOS DE SOCIOLOGIA","7106","-",4,4,"UAGESP",141]
[7106023,"UAGESP-7106","FUNDAMENTOS E TEORIAS DA ADMINISTRACAO","7106","-",4,4,"UAGESP",142]
[7101004,"UAEDUC-7101","FUNDAMENTOS HISTÓRICOS DA EDUCAÇÃO","7101","-",4,4,"UAEDUC",143]
[7102049,"UATEC-7102","GENESE E MORFOLOGIA DOS SOLOS","7102","-",4,4,"UATEC",144]
[7103013,"UAEB-7103","GENETICA MOLECULAR","7103","-",4,4,"UAEB",145]
[7101052,"UAEDUC-7101","GEOGRAFIA AGRARIA","7101","-",4,4,"UAEDUC",146]
[7101141,"UAEDUC-7101","GEOGRAFIA DA PARAIBA","7101","-",4,4,"UAEDUC",147]
[7101094,"UAEDUC-7101","GEOGRAFIA DO BRASIL","7101","-",4,4,"UAEDUC",148]
[7101122,"UAEDUC-7101","GEOMETRIA PLANA,ESPACIAL E ANALÍTICA","7101","-",4,4,"UAEDUC",149]
[7102093,"UATEC-7102","GEOPROCESSAMENTO","7102","-",4,4,"UATEC",150]
[7102103,"UATEC-7102","GESTAO AMBIENTAL","7102","-",4,4,"UATEC",151]
[7106109,"UAGESP-7106","GESTAO DAS ORGAN DO TERCEIRO SETOR","7106","-",4,4,"UAGESP",152]
[7106060,"UAGESP-7106","GESTAO DE PESSOAS NA ADM PUBLICA","7106","-",4,4,"UAGESP",153]
[7102275,"UATEC-7102","GESTAO DE RECURSOS HIDRICOS","7102","-",4,4,"UATEC",154]
[7101068,"UAEDUC-7101","GESTAO DOS PROCESSOS EDUCATIVOS","7101","-",4,4,"UAEDUC",155]
[7103240,"UAEB-7103","GESTAO E INOVACAO EM BIOTECNOLOGIA","7103","-",4,4,"UAEB",156]
[7106107,"UAGESP-7106","GESTAO PUBLICA SUSTENTAVEL","7106","-",4,4,"UAGESP",157]
[7102119,"UATEC-7102","GRANDES CULTIVOS","7102","-",4,4,"UATEC",158]
[7102062,"UATEC-7102","HIDRAULICA","7102","-",4,4,"UATEC",159]
[7102120,"UATEC-7102","HIDROLOGIA APLICADA","7102","-",4,4,"UATEC",160]
[7102017,"UATEC-7102","HIDROLOGIA E CLIMATOLOGIA DO SEMIARIDO","7102","-",2,2,"UATEC",161]
[7101071,"UAEDUC-7101","HISTÓRIA ANTIGA E MEDIEVAL","7101","-",4,4,"UAEDUC",162]
[7101142,"UAEDUC-7101","HISTÓRIA DA PARAÍBA","7101","-",4,4,"UAEDUC",163]
[7101118,"UAEDUC-7101","HISTÓRIA DO BRASIL","7101","-",4,4,"UAEDUC",164]
[7105115,"UACIS-7105","HISTÓRIA E CULTURA AFRO-BRASILEIRA","7105","-",4,4,"UACIS",165]
[7101053,"UAEDUC-7101","HISTÓRIA E LINGUAGEM","7101","-",4,4,"UAEDUC",166]
[7101093,"UAEDUC-7101","HISTÓRIA MODERNA E CONTEMPORÂNEA","7101","-",4,4,"UAEDUC",167]
[7105050,"UACIS-7105","HISTÓRIA SOCIAL DO CAMPESINATO","7105","-",2,2,"UACIS",168]
[7102056,"UATEC-7102","HORTICULTURA BASICA","7102","-",2,2,"UATEC",169]
[7105203,"UACIS-7105","IDENTIDADE E RELACOES INTERETNICAS","7105","-",2,2,"UACIS",170]
[7105201,"UACIS-7105","IDENTIDADE E TERRITORIALIDADE","7105","-",2,2,"UACIS",171]
[7105119,"UACIS-7105","IDENTIDADES E TERRITORIALIDADES","7105","-",4,4,"UACIS",172]
[7102058,"UATEC-7102","IMPACTOS E RECUP DE AREAS DEGRADADAS","7102","-",4,4,"UATEC",173]
[7103127,"UAEB-7103","IMUNOLOGIA GERAL E VACINOLOGIA","7103","-",2,2,"UAEB",174]
[7101115,"UAEDUC-7101","INFORMÁTICA BÁSICA","7101","-",2,2,"UAEDUC",175]
[7101042,"UAEDUC-7101","INGLES I","7101","-",4,4,"UAEDUC",176]
[7101102,"UAEDUC-7101","INGLES II","7101","-",4,4,"UAEDUC",177]
[7102066,"UATEC-7102","INST. ELÉTRICAS E EFICIÊNCIA ENERGÉTICA","7102","-",4,4,"UATEC",178]
[7106024,"UAGESP-7106","INSTITUICOES DE DIREITO PUB E PRIVADO","7106","-",4,4,"UAGESP",179]
[7103255,"UAEB-7103","INSTRUMENTACAO E CONTROLE DE PROCESSOS","7103","-",4,4,"UAEB",180]
[7102301,"UATEC-7102","INSTRUMENTAÇÃO E EXPERIM.EM BIOSSISTEMAS","7102","-",4,4,"UATEC",181]
[7102007,"UATEC-7102","INT. A ENG. DE BIOSSISTEMAS","7102","-",2,2,"UATEC",182]
[7103006,"UAEB-7103","INT. A ENG. DE BIOTEC. E BIOPROCESSOS","7103","-",2,2,"UAEB",183]
[7102064,"UATEC-7102","INTROD A BIOLOGIA CELULAR E MOLECULAR","7102","-",4,4,"UATEC",184]
[7101121,"UAEDUC-7101","INTROD. A ANATOMIA E FISIOLOGIA HUMANA","7101","-",4,4,"UAEDUC",185]
[7102047,"UATEC-7102","INTRODUÇÃO À AGRICULTURA","7102","-",2,2,"UATEC",186]
[7102018,"UATEC-7102","INTRODUÇÃO À AGROECOLOGIA","7102","-",4,4,"UATEC",187]
[7105008,"UACIS-7105","INTRODUÇÃO À ANTROPOLOGIA","7105","-",4,4,"UACIS",188]
[7102003,"UATEC-7102","INTRODUÇÃO À CIÊNCIA DA COMPUTAÇÃO","7102","-",4,4,"UATEC",189]
[7102014,"UATEC-7102","INTRODUÇÃO À CIÊNCIA DOS MATERIAIS","7102","-",2,2,"UATEC",190]
[7105009,"UACIS-7105","INTRODUÇÃO À CIÊNCIA POLITICA","7105","-",4,4,"UACIS",191]
[7101002,"UAEDUC-7101","INTRODUÇÃO À FILOSOFIA","7101","-",4,4,"UAEDUC",192]
[7101073,"UAEDUC-7101","INTRODUÇÃO À FÍSICA GERAL I","7101","-",4,4,"UAEDUC",193]
[7101096,"UAEDUC-7101","INTRODUÇÃO À FÍSICA GERAL II","7101","-",4,4,"UAEDUC",194]
[7101108,"UAEDUC-7101","INTRODUÇÃO À FÍSICA GERAL III","7101","-",4,4,"UAEDUC",195]
[7101070,"UAEDUC-7101","INTRODUÇÃO À GEOGRAFIA","7101","-",4,4,"UAEDUC",196]
[7103071,"UAEB-7103","INTRODUÇÃO À QUÍMICA GERAL","7103","-",4,4,"UAEB",197]
[7103107,"UAEB-7103","INTRODUÇÃO À QUÍMICA INORGÂNICA","7103","-",4,4,"UAEB",198]
[7101145,"UAEDUC-7101","INTRODUÇÃO À QUÍMICA ORGÂNICA","7101","-",4,4,"UAEDUC",199]
[7101101,"UAEDUC-7101","INTRODUÇÃO À SOCIOLINGUÍSTICA","7101","-",2,2,"UAEDUC",200]
[7105003,"UACIS-7105","INTRODUÇÃO À SOCIOLOGIA","7105","-",4,4,"UACIS",201]
[7102026,"UATEC-7102","INTRODUÇÃO À ZOOTECNIA","7102","-",2,2,"UATEC",202]
[7102233,"UATEC-7102","INTRODUÇÃO AO SENSORIAMENTO REMOTO","7102","-",4,4,"UATEC",203]
[7101038,"UAEDUC-7101","INTRODUÇÃO AOS ESTUDOS DE LING E CÓDIGOS","7101","-",2,2,"UAEDUC",204]
[7101034,"UAEDUC-7101","INTRODUÇÃO ÀS CIÊNCIAS DA NATUREZA","7101","-",2,2,"UAEDUC",205]
[7101037,"UAEDUC-7101","INTRODUÇÃO ÀS CIÊNCIAS HUMANAS E SOCIAIS","7101","-",2,2,"UAEDUC",206]
[7102270,"UATEC-7102","IRRIGACAO","7102","-",4,4,"UATEC",207]
[7102084,"UATEC-7102","IRRIGACAO E DRENAGEM","7102","-",4,4,"UATEC",208]
[7101199,"UAEDUC-7101","JOGO E CENA","7101","-",4,4,"UAEDUC",209]
[7101054,"UAEDUC-7101","JOGO E EDUCAÇÃO","7101","-",4,4,"UAEDUC",210]
[7102112,"UATEC-7102","LAB DE DIAGNOSE E USO DO SOLO","7102","-",2,2,"UATEC",211]
[7101185,"UAEDUC-7101","LAB DE ENSINO E PESQUISA DA LIBRAS","7101","-",4,4,"UAEDUC",212]
[7102069,"UATEC-7102","LAB DE FENOMENOS DE TRANSPORTE","7102","-",4,4,"UATEC",213]
[7101040,"UAEDUC-7101","LAB DE PES E PRAT PED EM ED DO CAMPO III","7101","-",4,4,"UAEDUC",214]
[7101041,"UAEDUC-7101","LAB DE PES E PRAT PED EM ED DO CAMPO IV","7101","-",4,4,"UAEDUC",215]
[7101018,"UAEDUC-7101","LAB DE PESQ E PRAT PED EM EDUC CAMPO II","7101","-",4,4,"UAEDUC",216]
[7105081,"UACIS-7105","LAB DE PESQ E PRAT PEDA EM C SOCIAIS III","7105","-",4,4,"UACIS",217]
[7105090,"UACIS-7105","LAB DE PESQ E PRAT PEDA EM C SOCIAIS IV","7105","-",4,4,"UACIS",218]
[7105022,"UACIS-7105","LAB DE PESQ E PRAT PEDAG EM C SOCIAIS I","7105","-",4,4,"UACIS",219]
[7105046,"UACIS-7105","LAB DE PESQ E PRAT PEDAG EM C SOCIAIS II","7105","-",4,4,"UACIS",220]
[7105133,"UACIS-7105","LAB DE PESQ E PRAT PEDAG EM C SOCIAIS V","7105","-",4,4,"UACIS",221]
[7106027,"UAGESP-7106","LAB DE PESQUISA EM POLITICAS PUBLICAS I","7106","-",2,2,"UAGESP",222]
[7102087,"UATEC-7102","LAB DE PROD DE DEFENSIVOS AGROECOLOGICOS","7102","-",2,2,"UATEC",223]
[7105036,"UACIS-7105","LAB PESQ E EXT EM DES RURAL I","7105","-",6,6,"UACIS",224]
[7103054,"UAEB-7103","LAB. DE BIOQUÍMICA E BIOLOGIA MOLECULAR","7103","-",4,4,"UAEB",225]
[7101183,"UAEDUC-7101","LAB. DE MATEMÁTICA PARA EDUC. DO CAMPO","7101","-",4,4,"UAEDUC",226]
[7101007,"UAEDUC-7101","LAB. DE PESQ. E PRAT. PED.DE EDU CAMPO I","7101","-",4,4,"UAEDUC",227]
[7102122,"UATEC-7102","LABORATÓRIO DE HIDRÁULICA","7102","-",2,2,"UATEC",228]
[7102236,"UATEC-7102","LABORATÓRIO DE PROC DE PROD AGROPECUÁRIO","7102","-",4,4,"UATEC",229]
[7101084,"UAEDUC-7101","LINGUA BRASILEIRA DE SINAIS-LIBRAS","7101","-",4,4,"UAEDUC",230]
[7101099,"UAEDUC-7101","LITERATURA BRASILEIRA","7101","-",4,4,"UAEDUC",231]
[7101126,"UAEDUC-7101","LITERATURA E CULTURA POPULAR","7101","-",2,2,"UAEDUC",232]
[7101148,"UAEDUC-7101","LITERATURA INFANTIL","7101","-",2,2,"UAEDUC",233]
[7106056,"UAGESP-7106","LOGISTICA E PATRIMONIO NA ADM PUBLICA","7106","-",4,4,"UAGESP",234]
[7102059,"UATEC-7102","MANEJO AGROEC DE DOENCAS DE PLANTAS","7102","-",4,4,"UATEC",235]
[7102282,"UATEC-7102","MANEJO AGROEC E CONSERVACAO DOS SOLOS","7102","-",4,4,"UATEC",236]
[7102060,"UATEC-7102","MANEJO AGROECOLOGICO DE PRAGAS","7102","-",2,2,"UATEC",237]
[7102299,"UATEC-7102","MANEJO DE BACIAS HIDROGRAFICAS","7102","-",2,2,"UATEC",238]
[7102076,"UATEC-7102","MANEJO E CONSERVACAO DO SOLO E DA AGUA","7102","-",4,4,"UATEC",239]
[7102302,"UATEC-7102","MANEJO INTEGRADO DE DOENCAS DE PLANTAS","7102","-",4,4,"UATEC",240]
[7102074,"UATEC-7102","MÁQUINAS AGRÍCOLAS","7102","-",4,4,"UATEC",241]
[7103113,"UAEB-7103","MARCADORES MOLECULARES","7103","-",4,4,"UAEB",242]
[7106179,"UAGESP-7106","MARKETING NA GESTAO PUBLICA","7106","-",2,2,"UAGESP",243]
[7106048,"UAGESP-7106","MATEMÁTICA FINANCEIRA","7106","-",4,4,"UAGESP",244]
[7101039,"UAEDUC-7101","MATEMÁTICA NA EDUCAÇÃO BÁSICA I","7101","-",4,4,"UAEDUC",245]
[7101074,"UAEDUC-7101","MATEMÁTICA NA EDUCAÇÃO BÁSICA II","7101","-",4,4,"UAEDUC",246]
[7101097,"UAEDUC-7101","MATEMÁTICA NA EDUCAÇÃO BÁSICA III","7101","-",4,4,"UAEDUC",247]
[7102116,"UATEC-7102","MATERIA ORGANICA E COMPOSTAGEM","7102","-",4,4,"UATEC",248]
[7102044,"UATEC-7102","MECÂNICA GERAL","7102","-",4,4,"UATEC",249]
[7102293,"UATEC-7102","MEIO AMBIENTE E TURISMO AGROECOLOGICO","7102","-",2,2,"UATEC",250]
[7103125,"UAEB-7103","MELHORAMENTO ANIMAL","7103","-",4,4,"UAEB",251]
[7103073,"UAEB-7103","MELHORAMENTO VEGETAL","7103","-",4,4,"UAEB",252]
[7101147,"UAEDUC-7101","MET DO ENS DE C EXAT E DA NAT NO ENS FUN","7101","-",4,4,"UAEDUC",253]
[7101170,"UAEDUC-7101","MET DO ENS DE C EXAT E DA NAT NO ENS MED","7101","-",4,4,"UAEDUC",254]
[7101143,"UAEDUC-7101","MET DO ENS DE C HUM E SOC NO ENS FUNDAM","7101","-",4,4,"UAEDUC",255]
[7101169,"UAEDUC-7101","MET DO ENS DE C HUM E SOC NO ENS MEDIO","7101","-",4,4,"UAEDUC",256]
[7101171,"UAEDUC-7101","MET DO ENS DE L EST NO ENS FUND E MEDIO","7101","-",4,4,"UAEDUC",257]
[7101151,"UAEDUC-7101","MET ENS DE LING PORT NO ENS FUND E MEDIO","7101","-",4,4,"UAEDUC",258]
[7106019,"UAGESP-7106","METODOLOGIA CIENTÍFICA","7106","-",4,4,"UAGESP",259]
[7102027,"UATEC-7102","METODOLOGIA CIENTÍFICA","7102","-",4,4,"UATEC",260]
[7102033,"UATEC-7102","METODOLOGIA DA PESQUISA E SEMINARIOS","7102","-",4,4,"UATEC",261]
[7101197,"UAEDUC-7101","METODOLOGIA DO LAZER E RECREACAO ESCOLAR","7101","-",2,2,"UAEDUC",262]
[7102091,"UATEC-7102","MICROBIOLOGIA","7102","-",4,4,"UATEC",263]
[7101270,"UAEDUC-7101","MICROBIOLOGIA BASICA","7101","-",4,4,"UAEDUC",264]
[7103042,"UAEB-7103","MICROBIOLOGIA GERAL","7103","-",4,4,"UAEB",265]
[7102037,"UATEC-7102","MICROBIOLOGIA GERAL E DO SOLO","7102","-",2,2,"UATEC",266]
[7103123,"UAEB-7103","MODELAGEM E SIMULACAO","7103","-",4,4,"UAEB",267]
[7105204,"UACIS-7105","MOVIMENTOS SOCIAIS","7105","-",2,2,"UACIS",268]
[7101193,"UAEDUC-7101","MOVIMENTOS SOCIAIS","7101","-",2,2,"UAEDUC",269]
[7103299,"UAEB-7103","NANOTECNOLOGIA","7103","-",4,4,"UAEB",270]
[7102117,"UATEC-7102","NUTRICAO MINERAL DE PLANTAS","7102","-",4,4,"UATEC",271]
[7101125,"UAEDUC-7101","OFICINA DE ARTES VISUAIS","7101","-",2,2,"UAEDUC",272]
[7101164,"UAEDUC-7101","OFICINA DE PESQUISA","7101","-",2,2,"UAEDUC",273]
[7105158,"UACIS-7105","OFICINA DE PROJETO DE PESQUISA","7105","-",4,4,"UACIS",274]
[7101083,"UAEDUC-7101","OFICINA DE TEATRO","7101","-",4,4,"UAEDUC",275]
[7102095,"UATEC-7102","OPERACOES UNITARIAS","7102","-",4,4,"UATEC",276]
[7106065,"UAGESP-7106","PADROES DE REL EXECUTIVO-LEGISLATIVO","7106","-",4,4,"UAGESP",277]
[7101149,"UAEDUC-7101","PEDAGOGIA DO TEATRO","7101","-",2,2,"UAEDUC",278]
[7102061,"UATEC-7102","PEDOLOGIA E CLASSIFICACAO DOS SOLOS","7102","-",4,4,"UATEC",279]
[7105079,"UACIS-7105","PENSAMENTO POLITICO BRASILEIRO","7105","-",2,2,"UACIS",280]
[7102249,"UATEC-7102","PERÍCIA TÉCNICA","7102","-",2,2,"UATEC",281]
[7101005,"UAEDUC-7101","PESQUISA EM EDUCAÇÃO","7101","-",4,4,"UAEDUC",282]
[7103252,"UAEB-7103","PLANEJAMENTO EXPERIMENTAL","7103","-",4,4,"UAEB",283]
[7101017,"UAEDUC-7101","POL. EDUC. E EDUCAÇÃO BÁSICA NO BRASIL","7101","-",4,4,"UAEDUC",284]
[7101006,"UAEDUC-7101","PRAT. DE LEITURA E PRODUCAO DE TEXTOS","7101","-",4,4,"UAEDUC",285]
[7102092,"UATEC-7102","PRINCIPIOS DE BIOCLIMATOLOGIA","7102","-",2,2,"UATEC",286]
[7102021,"UATEC-7102","PROBABILIDADE E ESTATÍSTICA","7102","-",4,4,"UATEC",287]
[7102243,"UATEC-7102","PROCESSAMENTO DE SINAIS EM BIOSSISTEMAS","7102","-",4,4,"UATEC",288]
[7101124,"UAEDUC-7101","PROCESSOS DE ALFABETIZACAO E LETRAMENTO","7101","-",4,4,"UAEDUC",289]
[7103273,"UAEB-7103","PROJETO DE INDUSTRIA DE BIOPROCESSOS","7103","-",2,2,"UAEB",290]
[7106110,"UAGESP-7106","PROJETO DE PESQUISA","7106","-",2,2,"UAGESP",291]
[7101014,"UAEDUC-7101","PSICOLOGIA E EDUCAÇÃO","7101","-",4,4,"UAEDUC",292]
[7102245,"UATEC-7102","QUALIDADE DE ÁGUA","7102","-",4,4,"UATEC",293]
[7103025,"UAEB-7103","QUÍMICA ANALÍTICA APLICADA","7103","-",4,4,"UAEB",294]
[7103032,"UAEB-7103","QUÍMICA ANALÍTICA APLICADA","7103","-",2,2,"UAEB",295]
[7103005,"UAEB-7103","QUÍMICA EXPERIMENTAL","7103","-",2,2,"UAEB",296]
[7103004,"UAEB-7103","QUÍMICA GERAL","7103","-",4,4,"UAEB",297]
[7103041,"UAEB-7103","QUÍMICA ORGÂNICA","7103","-",4,4,"UAEB",298]
[7103251,"UAEB-7103","RECUPERACAO E PURIFICACAO DE BIOPROCESSO","7103","-",2,2,"UAEB",299]
[7103250,"UAEB-7103","RELAÇÃO CIÊNCIA, TECNOLOGIA E SOCIEDADE","7103","-",2,2,"UAEB",300]
[7105176,"UACIS-7105","RELACOES DE GENERO E SEXUALIDADE","7105","-",2,2,"UACIS",301]
[7102080,"UATEC-7102","RESISTENCIA DOS MATERIAIS","7102","-",4,4,"UATEC",302]
[7105206,"UACIS-7105","SEA(ANTROPOLOGIA DA RESISTÊNCIA)","7105","-",2,2,"UACIS",303]
[7105200,"UACIS-7105","SEA(ANTROPOLOGIA VISUAL)","7105","-",2,2,"UACIS",304]
[7105162,"UACIS-7105","SEA(CULTURA POPULAR E TEATRO)","7105","-",2,2,"UACIS",305]
[7105136,"UACIS-7105","SEA(ETNOMUSICOLOGIA)","7105","-",2,2,"UACIS",306]
[7105105,"UACIS-7105","SECP I(INST POLITICAS E DEMOCRACIA)","7105","-",2,2,"UACIS",307]
[7105205,"UACIS-7105","SECP(O GOLPE 2016 E O FUT DA DEMOC.NO BR","7105","-",2,2,"UACIS",308]
[7101206,"UAEDUC-7101","SEMINARIO TEMATICO EM EDUCACAO","7101","-",4,4,"UAEDUC",309]
[7105135,"UACIS-7105","SES(SOCIOLOGIA DA ARTE)","7105","-",2,2,"UACIS",310]
[7105134,"UACIS-7105","SES(SOCIOLOGIA DE BOURDIEU)","7105","-",2,2,"UACIS",311]
[7102242,"UATEC-7102","SISTEMAS AGROFLORESTAIS NO SEMIÁRIDO","7102","-",2,2,"UATEC",312]
[7102104,"UATEC-7102","SISTEMAS AGROINDUSTRIAIS","7102","-",4,4,"UATEC",313]
[7105187,"UACIS-7105","SOCIEDADE,CULTURA E CINEMA","7105","-",2,2,"UACIS",314]
[7105131,"UACIS-7105","SOCIEDADES CAMPONESAS","7105","-",4,4,"UACIS",315]
[7105161,"UACIS-7105","SOCIEDADES INDIGENAS","7105","-",2,2,"UACIS",316]
[7105180,"UACIS-7105","SOCIOLOGIA AMBIENTAL","7105","-",2,2,"UACIS",317]
[7105072,"UACIS-7105","SOCIOLOGIA BRASILEIRA","7105","-",2,2,"UACIS",318]
[7105130,"UACIS-7105","SOCIOLOGIA CONTEMPORANEA","7105","-",2,2,"UACIS",319]
[7105202,"UACIS-7105","SOCIOLOGIA DA RELIGIAO","7105","-",2,2,"UACIS",320]
[7105159,"UACIS-7105","SOCIOLOGIA DO DESENVOLVIMENTO","7105","-",2,2,"UACIS",321]
[7105011,"UACIS-7105","SOCIOLOGIA E CIDADANIA","7105","-",4,4,"UACIS",322]
[7105013,"UACIS-7105","SOCIOLOGIA E EDUCAÇÃO","7105","-",4,4,"UACIS",323]
[7105089,"UACIS-7105","SOCIOLOGIA RURAL","7105","-",4,4,"UACIS",324]
[7105178,"UACIS-7105","SOCIOLOGIA URBANA","7105","-",2,2,"UACIS",325]
[7102019,"UATEC-7102","SOLOS DO SEMIARIDO","7102","-",2,2,"UATEC",326]
[7101211,"UAEDUC-7101","STAEDUC(MUSICA EM CENA)","7101","-",2,2,"UAEDUC",327]
[7101210,"UAEDUC-7101","TCP(INFANCIA,ADOLES.E JUVENTUDE DO CAMPO","7101","-",2,2,"UAEDUC",328]
[7102296,"UATEC-7102","TE -II(FONTES ALTERNATIVAS DE ENERGIA)","7102","-",4,4,"UATEC",329]
[7103300,"UAEB-7103","TEBB(BIOQUIMICA E METABOLICA)","7103","-",4,4,"UAEB",330]
[7103265,"UAEB-7103","TEBB(BIOTECNOLOGIA PARA O SECULO XXI)","7103","-",4,4,"UAEB",331]
[7103301,"UAEB-7103","TEBB(DOENCAS PARASITARIAS E VETORIAIS)","7103","-",2,2,"UAEB",332]
[7103302,"UAEB-7103","TEBB(EVOLUCAO E FILOGENIA)","7103","-",2,2,"UAEB",333]
[7103304,"UAEB-7103","TEBB(PROSPECÇÃO TECNOLÓGICA)","7103","-",4,4,"UAEB",334]
[7102295,"UATEC-7102","TEBIOS - II(GENETICA MOLECULAR)","7102","-",4,4,"UATEC",335]
[7102276,"UATEC-7102","TEBIOS I(MANEJO CONT DA SALIN NA AGRIC)","7102","-",4,4,"UATEC",336]
[7103110,"UAEB-7103","TECNOLOGIA DE ALIMENTOS","7103","-",4,4,"UAEB",337]
[7102269,"UATEC-7102","TECNOLOGIA DE SECAGEM E ARMAZENAMENTO","7102","-",4,4,"UATEC",338]
[7102115,"UATEC-7102","TECNOLOGIA DE SEMENTES","7102","-",4,4,"UATEC",339]
[7101028,"UAEDUC-7101","TECNOLOGIA EDUC E PROC DE APRENDIZAGEM","7101","-",4,4,"UAEDUC",340]
[7102306,"UATEC-7102","TECNOLOGIA SOCIAIS PARA DESENV SUSTENTAV","7102","-",2,2,"UATEC",341]
[7105211,"UACIS-7105","TECS(ANTROPOLOGIA VISUAL)","7105","-",2,2,"UACIS",342]
[7105208,"UACIS-7105","TECS(ESPANHOL I)","7105","-",4,4,"UACIS",343]
[7105218,"UACIS-7105","TECS(ESTADO E POLÍTICAS PÚBLICAS)","7105","-",4,4,"UACIS",344]
[7105209,"UACIS-7105","TECS(INGLÊS I)","7105","-",4,4,"UACIS",345]
[7105217,"UACIS-7105","TECS(INTRODUÇÃO À CIÊNCIA POLÍTICA)","7105","-",2,2,"UACIS",346]
[7105210,"UACIS-7105","TECS(INTRODUÇÃO À FILOSOFIA)","7105","-",4,4,"UACIS",347]
[7105220,"UACIS-7105","TECS(INTRODUÇÃO À SOCIOLOGIA)","7105","-",4,4,"UACIS",348]
[7105221,"UACIS-7105","TECS(LAB DE PES E PRAC PED CIEN SOCI I)","7105","-",4,4,"UACIS",349]
[7105222,"UACIS-7105","TECS(LAB DE PES E PRAC PED CIEN SOCI II)","7105","-",4,4,"UACIS",350]
[7105219,"UACIS-7105","TECS(OFICINA DE PROJETO DE PESQUISA)","7105","-",4,4,"UACIS",351]
[7105212,"UACIS-7105","TECS(POBREZA E DESIGUALDADE SOCIAL)","7105","-",2,2,"UACIS",352]
[7105215,"UACIS-7105","TECS(RELAÇÕES DE GÊNERO E SEXUALIDADE)","7105","-",2,2,"UACIS",353]
[7105216,"UACIS-7105","TECS(SEM ESP EM SOC (ESCR ACA CIEN SOC))","7105","-",2,2,"UACIS",354]
[7105214,"UACIS-7105","TECS(SOCIOLOGIA RURAL)","7105","-",4,4,"UACIS",355]
[7105213,"UACIS-7105","TECS(TRABALHO DE CONCLUSÃO DE CURSO TCC)","7105","-",2,null,"UACIS",356]
[7102308,"UATEC-7102","TEEB(PRODUÇÃO E USO DE HORTALIÇAS)","7102","-",4,4,"UATEC",357]
[7102309,"UATEC-7102","TEEB(TRATAMENTO DE RESÍDUOS SÓLIDOS)","7102","-",4,4,"UATEC",358]
[7101276,"UAEDUC-7101","TEEC(EDU A DIST NA FORM DO EDUCADOR)","7101","-",4,4,"UAEDUC",359]
[7101209,"UAEDUC-7101","TEEC(FUND SOCIO-FILOS.DA EDUC DO CAMPO)","7101","-",2,2,"UAEDUC",360]
[7101278,"UAEDUC-7101","TEEC(INTERCULTURALIDADE E ENSINO DE LÍNG","7101","-",2,2,"UAEDUC",361]
[7101207,"UAEDUC-7101","TEEC(PEDAGOGIA DA ALTERNANCIA)","7101","-",2,2,"UAEDUC",362]
[7101272,"UAEDUC-7101","TEEC(PRÁTICAS DE LEITURAS PERFOMATIVAS)","7101","-",4,4,"UAEDUC",363]
[7101271,"UAEDUC-7101","TEEC(PRATICAS DE LINGUAGEM I)","7101","-",2,2,"UAEDUC",364]
[7101212,"UAEDUC-7101","TEEC(PRATICAS DE LINGUAGEM II)","7101","-",2,2,"UAEDUC",365]
[7101208,"UAEDUC-7101","TEEC(QUESTAO AGRARIA E CAMPESINATO)","7101","-",2,2,"UAEDUC",366]
[7101275,"UAEDUC-7101","TEEC(TEM CONT EM PSI:NEU, EDU E MEN FUT)","7101","-",2,2,"UAEDUC",367]
[7106195,"UAGESP-7106","TEGP(ECONOMIA DO SETOR PUBLICO)","7106","-",4,4,"UAGESP",368]
[7106085,"UAGESP-7106","TEGP(ECONOMIA SOLIDARIA)","7106","-",2,2,"UAGESP",369]
[7106196,"UAGESP-7106","TEGP(ECONOMIA SOLIDARIA)","7106","-",2,2,"UAGESP",370]
[7106191,"UAGESP-7106","TEGP(EMPREENDEDORISMO)","7106","-",4,4,"UAGESP",371]
[7106194,"UAGESP-7106","TEGP(GESTAO DA SEGURANCA PUBLICA)","7106","-",4,4,"UAGESP",372]
[7106205,"UAGESP-7106","TEGP(GOVERNANÇA E INOVAÇÃO NA ADM PUB)","7106","-",4,4,"UAGESP",373]
[7106206,"UAGESP-7106","TEGP(GOVERNANÇA E INOVAÇÃO NA GEST PUB)","7106","-",4,4,"UAGESP",374]
[7106204,"UAGESP-7106","TEGP(MARKETING POLITICO E ELEITORAL)","7106","-",4,4,"UAGESP",375]
[7106203,"UAGESP-7106","TEGP(POLITICAS CULTURAIS)","7106","-",4,4,"UAGESP",376]
[7102300,"UATEC-7102","TE-II(LOGISTICA REVERSA)","7102","-",4,4,"UATEC",377]
[7105044,"UACIS-7105","TEORIA ANTROPOLOGICA I","7105","-",4,4,"UACIS",378]
[7105078,"UACIS-7105","TEORIA ANTROPOLOGICA II","7105","-",4,4,"UACIS",379]
[7101076,"UAEDUC-7101","TEORIA DA LITERATURA","7101","-",4,4,"UAEDUC",380]
[7101076,"UAEDUC-7101","TEORIA DA LITERATURA","7101","-",4,4,"UAEDUC",381]
[7105021,"UACIS-7105","TEORIA DO CONHECIMENTO","7105","-",4,4,"UACIS",382]
[7106058,"UAGESP-7106","TEORIA GERAL DO PROCESSO","7106","-",4,4,"UAGESP",383]
[7106026,"UAGESP-7106","TEORIA POLITICA DO ESTADO","7106","-",4,4,"UAGESP",384]
[7105045,"UACIS-7105","TEORIA POLITICA I","7105","-",4,4,"UACIS",385]
[7105087,"UACIS-7105","TEORIA POLITICA II","7105","-",4,4,"UACIS",386]
[7105020,"UACIS-7105","TEORIA SOCIOLOGICA I","7105","-",4,4,"UACIS",387]
[7105043,"UACIS-7105","TEORIA SOCIOLOGICA II","7105","-",4,4,"UACIS",388]
[7102050,"UATEC-7102","TERMODINAMICA","7102","-",4,4,"UATEC",389]
[7105207,"UACIS-7105","TES(ESCRITA ACADÊMICA NAS CIENC SOCIAIS)","7105","-",2,2,"UACIS",390]
[7102024,"UATEC-7102","TOPOGRAFIA","7102","-",4,4,"UATEC",391]
[7102039,"UATEC-7102","TOPOGRAFIA E GEOPROCESSAMENTO","7102","-",4,4,"UATEC",392]
[7103100,"UAEB-7103","TOXICOLOGIA","7103","-",2,2,"UAEB",393]
[7103288,"UAEB-7103","TRABALHO DE CONCLUSAO DE CURSO","7103","-",4,null,"UAEB",394]
[7102257,"UATEC-7102","TRABALHO DE CONCLUSAO DE CURSO","7102","-",4,null,"UATEC",395]
[7102285,"UATEC-7102","TRABALHO DE CONCLUSAO DE CURSO","7102","-",4,null,"UATEC",396]
[7106153,"UAGESP-7106","TRABALHO DE CONCLUSÃO DE CURSO","7106","-",4,null,"UAGESP",397]
[7105166,"UACIS-7105","TRABALHO DE CONCLUSAO DE CURSO - TCC","7105","-",2,null,"UACIS",398]
[7101167,"UAEDUC-7101","TRABALHO DE CONCLUSAO DE CURSO - TCC","7101","-",4,null,"UAEDUC",399]
[7102267,"UATEC-7102","TRATAMENTO DE ÁGUAS RESIDUÁRIAS","7102","-",4,4,"UATEC",400]
[7103271,"UAEB-7103","TRATAMENTO DE EFLUENTES","7103","-",2,2,"UAEB",401]
[7103114,"UAEB-7103","TRATAMENTOS DE RESIDUOS SOLIDOS","7103","-",4,4,"UAEB",402]
[7102043,"UATEC-7102","USO SUSTENTAVEL DA BIODIVERSIDADE","7102","-",2,2,"UATEC",403]
[7102109,"UATEC-7102","USO SUSTENTAVEL DA BIODIVERSIDADE","7102","-",4,4,"UATEC",404]
[7101146,"UAEDUC-7101","ZOOLOGIA DO SEMIARIDO","7101","-",4,4,"UAEDUC",405]
[7102057,"UATEC-7102","ZOOTECNIA APLICADA","7102","-",4,4,"UATEC",406]
[7102268,"UATEC-7102","ZOOTECNIA DE PRECISAO","7102","-",2,2,"UATEC",407]
[7104040,"UAEP-7104","ADMINISTRAÇÃO PARA ENGENHARIA","7104","-",4,4,"UAEP",408]
[7104118,"UAEP-7104","AUTOMAÇÃO","7104","-",4,4,"UAEP",409]
[7104279,"UAEP-7104","CONTROLE ESTATISTICO DE QUALIDADE","7104","-",4,4,"UAEP",410]
[7104263,"UAEP-7104","CUSTOS DA PRODUCAO","7104","-",4,4,"UAEP",411]
[7104106,"UAEP-7104","ELETROTÉCNICA","7104","-",4,4,"UAEP",412]
[7104102,"UAEP-7104","ENGENHARIA DE MÉTODOS","7104","-",4,4,"UAEP",413]
[7104079,"UAEP-7104","ENGENHARIA ECONOMICA","7104","-",4,4,"UAEP",414]
[7104081,"UAEP-7104","ERGONOMIA","7104","-",4,4,"UAEP",415]
[7104290,"UAEP-7104","ESTAGIO CURRICULAR SUPERVISIONADO","7104","-",14,null,"UAEP",416]
[7104277,"UAEP-7104","ESTRATEGIAS DE MERCADOS AGROINDUSTRIAIS","7104","-",4,4,"UAEP",417]
[7104046,"UAEP-7104","FÍSICA EXPERIMENTAL","7104","-",4,4,"UAEP",418]
[7104011,"UAEP-7104","FÍSICA GERAL I","7104","-",4,4,"UAEP",419]
[7104023,"UAEP-7104","FÍSICA GERAL II","7104","-",4,4,"UAEP",420]
[7104045,"UAEP-7104","FÍSICA GERAL III","7104","-",4,4,"UAEP",421]
[7104131,"UAEP-7104","GESTAO DA INFORMACAO","7104","-",4,4,"UAEP",422]
[7104280,"UAEP-7104","GESTAO DA MANUTENCAO","7104","-",4,4,"UAEP",423]
[7104262,"UAEP-7104","GESTAO DA QUALIDADE","7104","-",4,4,"UAEP",424]
[7104281,"UAEP-7104","GESTAO DE PROJETOS","7104","-",4,4,"UAEP",425]
[7104264,"UAEP-7104","GESTAO,INOVACAO E EMPREENDEDORISMO","7104","-",4,4,"UAEP",426]
[7104105,"UAEP-7104","HIGIENE E SEGURANCA DO TRABALHO","7104","-",4,4,"UAEP",427]
[7104008,"UAEP-7104","INT. A ENG. DE PRODUCAO","7104","-",2,2,"UAEP",428]
[7104089,"UAEP-7104","INTRODUÇÃO À ENGENHARIA DE FABRICAÇÃO","7104","-",4,4,"UAEP",429]
[7104132,"UAEP-7104","LOGISTICA E DISTRIBUICAO","7104","-",4,4,"UAEP",430]
[7104078,"UAEP-7104","ORGANIZACAO DO TRABALHO","7104","-",4,4,"UAEP",431]
[7104129,"UAEP-7104","PESQUISA OPERACIONAL I","7104","-",4,4,"UAEP",432]
[7104260,"UAEP-7104","PESQUISA OPERACIONAL II","7104","-",4,4,"UAEP",433]
[7104101,"UAEP-7104","PLANEJAMENTO E CONTROLE DA PRODUCAO I","7104","-",4,4,"UAEP",434]
[7104128,"UAEP-7104","PLANEJAMENTO E CONTROLE DA PRODUCAO II","7104","-",4,4,"UAEP",435]
[7104130,"UAEP-7104","PLANEJAMENTO E PROJETO DE PRODUTO","7104","-",4,4,"UAEP",436]
[7104261,"UAEP-7104","PLANEJAMENTO ESTRATEGICO","7104","-",4,4,"UAEP",437]
[7104029,"UAEP-7104","PROGRAMAÇÃO","7104","-",4,4,"UAEP",438]
[7104278,"UAEP-7104","PROJETO DE FABRICA E LAYOUT","7104","-",4,4,"UAEP",439]
[7104259,"UAEP-7104","SIMULACAO DE SISTEMAS","7104","-",4,4,"UAEP",440]
[7104030,"UAEP-7104","SISTEMAS DE PRODUCAO","7104","-",4,4,"UAEP",441]
[7104299,"UAEP-7104","TEEP(AVANCOS EM PESQUISA OPERACIONAL)","7104","-",4,4,"UAEP",442]
[7104298,"UAEP-7104","TEEP(CONFIABILIDADE E ANALISE DE RISCOS)","7104","-",4,4,"UAEP",443]
[7104241,"UAEP-7104","TEEP(FONTES ALTERNATIVAS DE ENERGIA)","7104","-",4,4,"UAEP",444]
[7104297,"UAEP-7104","TEEP(MATEMATICA FINANCEIRA)","7104","-",4,4,"UAEP",445]
[7104300,"UAEP-7104","TEEP(NEGOCIAÇÃO E RESOLUÇÃO DE CONFL)","7104","-",4,4,"UAEP",446]
[7104291,"UAEP-7104","TRABALHO DE CONCLUSAO DE CURSO","7104","-",4,null,"UAEP",447]
[null,"",null,""]

{"sheet":"BD PrevisãoOrçamentária","index":6,"n_rows":5,"n_cols":1,"rows_kept":5,"cut":false,"hidden":true,"merged":[]}
["Diárias"]
["Passagens aéreas"]
["Inscrição"]
["Aquisição de materiais"]
["Outros serviços"]